Body Name,Date Paid,Transaction Number,Amount,Supplier Name,Supplier Type ,Expense Area,Cost Centre Description ,Expense Type
Cambridgeshire County Council,31-Jan-19,51300682140,"-75,037.04",HC-ONE,CARE ESTABLISHMENT,OP - City & South Blocks,City and South - Short term blocks,Supporting People
Cambridgeshire County Council,02-Jan-19,51300598481,"-41,500.67",KISIMUL SCHOOL,CARE ESTABLISHMENT,SEN Placements,Placements - Education,Independent School Placements
Cambridgeshire County Council,28-Jan-19,51300681406,"-38,333.34",WILDS LODGE SCHOOL LTD,EDUCATION,SEN Placements,Placements - Education,Educational Materials
Cambridgeshire County Council,18-Jan-19,51300656310,"-36,633.95",The Ryes College Ltd,CARE ESTABLISHMENT,LAC Placements,Placements - residential homes,Agency Placements - Out of  County
Cambridgeshire County Council,28-Jan-19,51300674028,"-26,666.67",WILDS LODGE SCHOOL LTD,EDUCATION,SEN Placements,Placements - Education,Educational Materials
Cambridgeshire County Council,30-Jan-19,51300682481,"-15,935.99",FAITHFUL AND GOULD,TRADE SUPPLIER,"Ramnoth Primary, Wisbech","Ramnoth Primary, Wisbech","New Construction, Conversion and Renovation"
Cambridgeshire County Council,09-Jan-19,51300115430,"-9,642.85",PLUS ONE (SOUTH WEST) LTD,CARE ESTABLISHMENT,LAC Placements,Placements - Social Care,Agency Placements - Out of  County
Cambridgeshire County Council,18-Jan-19,51300656395,"-8,133.54",Redacted Personal Data,INDIVIDUAL,Early Years Specialist Support,Procurement - TA LOVAAS,Educational Materials
Cambridgeshire County Council,04-Jan-19,51300629588,"-7,687.50",THE CAMBRIDGE NURSING CENTRE,CARE ESTABLISHMENT,OP - City & South Blocks,City and South - Long term blocks,Nursing Care
Cambridgeshire County Council,04-Jan-19,51300629770,"-7,687.50",THE CAMBRIDGE NURSING CENTRE,CARE ESTABLISHMENT,OP - City & South Blocks,City and South - Long term blocks,Nursing Care
Cambridgeshire County Council,07-Jan-19,51300598500,"-7,618.25",RED BALLOON LEARNER CENTRE CAMBRIDGE,EDUCATION,SEN Placements,Placements - Education,Educational Materials
Cambridgeshire County Council,02-Jan-19,51300509077,"-7,333.33",RED BALLOON OF THE AIR,CARE ESTABLISHMENT,SEN Placements,Placements - Education,Independent School Placements
Cambridgeshire County Council,11-Jan-19,51300665039,"-6,510.00",WINGS EDUCATION LTD,TRADE SUPPLIER,LAC Placements,Placements - Social Care,Agency Placements - Out of  County
Cambridgeshire County Council,04-Jan-19,51300629587,"-5,491.07",THE CAMBRIDGE NURSING CENTRE,CARE ESTABLISHMENT,OP - City & South Blocks,City and South - Long term blocks,Nursing Care
Cambridgeshire County Council,04-Jan-19,51300651387,"-4,655.00",Accomplish Group Support Limited,CARE ESTABLISHMENT,LD - Hunts Locality,LD - Huntigndonshire  - Special Needs,Rehabilitation And Respite Care
Cambridgeshire County Council,04-Jan-19,51300651429,"-4,655.00",Accomplish Group Support Limited,CARE ESTABLISHMENT,LD - Hunts Locality,LD - Huntigndonshire  - Special Needs,Rehabilitation And Respite Care
Cambridgeshire County Council,04-Jan-19,51300626301,"-4,655.00",Accomplish Group Support Limited,CARE ESTABLISHMENT,LD - Hunts Locality,LD - Huntigndonshire  - Care,Rehabilitation And Respite Care
Cambridgeshire County Council,04-Jan-19,51300651394,"-4,655.00",Accomplish Group Support Limited,CARE ESTABLISHMENT,LD - Hunts Locality,LD - Huntigndonshire  - Care,Rehabilitation And Respite Care
Cambridgeshire County Council,04-Jan-19,51300626298,"-4,655.00",Accomplish Group Support Limited,CARE ESTABLISHMENT,LD - Hunts Locality,LD - Huntigndonshire  - Care,Rehabilitation And Respite Care
Cambridgeshire County Council,04-Jan-19,51300626291,"-4,655.00",Accomplish Group Support Limited,CARE ESTABLISHMENT,LD - Hunts Locality,LD - Huntigndonshire  - Care,Rehabilitation And Respite Care
Cambridgeshire County Council,04-Jan-19,51300626305,"-4,655.00",Accomplish Group Support Limited,CARE ESTABLISHMENT,LD - Hunts Locality,LD - Huntigndonshire  - Care,Rehabilitation And Respite Care
Cambridgeshire County Council,04-Jan-19,51300651407,"-4,655.00",Accomplish Group Support Limited,CARE ESTABLISHMENT,LD - Hunts Locality,LD - Huntigndonshire  - Care,Rehabilitation And Respite Care
Cambridgeshire County Council,04-Jan-19,51300626300,"-4,655.00",Accomplish Group Support Limited,CARE ESTABLISHMENT,LD - Hunts Locality,LD - Huntigndonshire  - Care,Rehabilitation And Respite Care
Cambridgeshire County Council,04-Jan-19,51300626307,"-4,655.00",Accomplish Group Support Limited,CARE ESTABLISHMENT,LD - Hunts Locality,LD - Huntigndonshire  - Special Needs,Rehabilitation And Respite Care
Cambridgeshire County Council,04-Jan-19,51300626292,"-4,655.00",Accomplish Group Support Limited,CARE ESTABLISHMENT,LD - Hunts Locality,LD - Huntigndonshire  - Special Needs,Rehabilitation And Respite Care
Cambridgeshire County Council,04-Jan-19,51300651401,"-4,655.00",Accomplish Group Support Limited,CARE ESTABLISHMENT,LD - Hunts Locality,LD - Huntigndonshire  - Special Needs,Rehabilitation And Respite Care
Cambridgeshire County Council,04-Jan-19,51300651419,"-4,655.00",Accomplish Group Support Limited,CARE ESTABLISHMENT,LD - Hunts Locality,LD - Huntigndonshire  - Special Needs,Rehabilitation And Respite Care
Cambridgeshire County Council,04-Jan-19,51300651422,"-4,655.00",Accomplish Group Support Limited,CARE ESTABLISHMENT,LD - Hunts Locality,LD - Huntigndonshire  - Special Needs,Rehabilitation And Respite Care
Cambridgeshire County Council,04-Jan-19,51300651424,"-4,655.00",Accomplish Group Support Limited,CARE ESTABLISHMENT,LD - Hunts Locality,LD - Huntigndonshire  - Special Needs,Rehabilitation And Respite Care
Cambridgeshire County Council,04-Jan-19,51300651388,"-4,655.00",Accomplish Group Support Limited,CARE ESTABLISHMENT,LD - Hunts Locality,LD - Huntigndonshire  - Special Needs,Rehabilitation And Respite Care
Cambridgeshire County Council,04-Jan-19,51300626299,"-4,655.00",Accomplish Group Support Limited,CARE ESTABLISHMENT,LD - Hunts Locality,LD - Huntigndonshire  - Special Needs,Rehabilitation And Respite Care
Cambridgeshire County Council,04-Jan-19,51300626304,"-4,655.00",Accomplish Group Support Limited,CARE ESTABLISHMENT,LD - Hunts Locality,LD - Huntigndonshire  - Special Needs,Rehabilitation And Respite Care
Cambridgeshire County Council,17-Jan-19,51300664018,"-4,655.00",Accomplish Group Support Limited,CARE ESTABLISHMENT,LD - Hunts Locality,LD - Huntigndonshire  - Special Needs,Rehabilitation And Respite Care
Cambridgeshire County Council,17-Jan-19,51300664020,"-4,655.00",Accomplish Group Support Limited,CARE ESTABLISHMENT,LD - Hunts Locality,LD - Huntigndonshire  - Special Needs,Rehabilitation And Respite Care
Cambridgeshire County Council,17-Jan-19,51300673057,"-4,655.00",Accomplish Group Support Limited,CARE ESTABLISHMENT,LD - Hunts Locality,LD - Huntigndonshire  - Care,Rehabilitation And Respite Care
Cambridgeshire County Council,17-Jan-19,51300664024,"-4,655.00",Accomplish Group Support Limited,CARE ESTABLISHMENT,LD - Hunts Locality,LD - Huntigndonshire  - Care,Rehabilitation And Respite Care
Cambridgeshire County Council,17-Jan-19,51300673060,"-4,655.00",Accomplish Group Support Limited,CARE ESTABLISHMENT,LD - Hunts Locality,LD - Huntigndonshire  - Care,Rehabilitation And Respite Care
Cambridgeshire County Council,17-Jan-19,51300664029,"-4,655.00",Accomplish Group Support Limited,CARE ESTABLISHMENT,LD - Hunts Locality,LD - Huntigndonshire  - Care,Rehabilitation And Respite Care
Cambridgeshire County Council,17-Jan-19,51300673050,"-4,655.00",Accomplish Group Support Limited,CARE ESTABLISHMENT,LD - Hunts Locality,LD - Huntigndonshire  - Care,Rehabilitation And Respite Care
Cambridgeshire County Council,17-Jan-19,51300673053,"-4,655.00",Accomplish Group Support Limited,CARE ESTABLISHMENT,LD - Hunts Locality,LD - Huntigndonshire  - Care,Rehabilitation And Respite Care
Cambridgeshire County Council,17-Jan-19,51300673045,"-4,655.00",Accomplish Group Support Limited,CARE ESTABLISHMENT,LD - Hunts Locality,LD - Huntigndonshire  - Care,Rehabilitation And Respite Care
Cambridgeshire County Council,17-Jan-19,51300673062,"-4,655.00",Accomplish Group Support Limited,CARE ESTABLISHMENT,LD - Hunts Locality,LD - Huntigndonshire  - Care,Rehabilitation And Respite Care
Cambridgeshire County Council,17-Jan-19,51300673064,"-4,655.00",Accomplish Group Support Limited,CARE ESTABLISHMENT,LD - Hunts Locality,LD - Huntigndonshire  - Care,Rehabilitation And Respite Care
Cambridgeshire County Council,17-Jan-19,51300664030,"-4,655.00",Accomplish Group Support Limited,CARE ESTABLISHMENT,LD - Hunts Locality,LD - Huntigndonshire  - Care,Rehabilitation And Respite Care
Cambridgeshire County Council,17-Jan-19,51300664028,"-4,655.00",Accomplish Group Support Limited,CARE ESTABLISHMENT,LD - Hunts Locality,LD - Huntigndonshire  - Special Needs,Rehabilitation And Respite Care
Cambridgeshire County Council,17-Jan-19,51300664032,"-4,655.00",Accomplish Group Support Limited,CARE ESTABLISHMENT,LD - Hunts Locality,LD - Huntigndonshire  - Special Needs,Rehabilitation And Respite Care
Cambridgeshire County Council,17-Jan-19,51300664016,"-4,655.00",Accomplish Group Support Limited,CARE ESTABLISHMENT,LD - Hunts Locality,LD - Huntigndonshire  - Special Needs,Rehabilitation And Respite Care
Cambridgeshire County Council,17-Jan-19,51300673047,"-4,655.00",Accomplish Group Support Limited,CARE ESTABLISHMENT,LD - Hunts Locality,LD - Huntigndonshire  - Special Needs,Rehabilitation And Respite Care
Cambridgeshire County Council,17-Jan-19,51300673051,"-4,655.00",Accomplish Group Support Limited,CARE ESTABLISHMENT,LD - Hunts Locality,LD - Huntigndonshire  - Special Needs,Rehabilitation And Respite Care
Cambridgeshire County Council,17-Jan-19,51300664026,"-4,655.00",Accomplish Group Support Limited,CARE ESTABLISHMENT,LD - Hunts Locality,LD - Huntigndonshire  - Special Needs,Rehabilitation And Respite Care
Cambridgeshire County Council,31-Jan-19,51300696739,"-4,655.00",Accomplish Group Support Limited,CARE ESTABLISHMENT,LD - Hunts Locality,LD - Huntigndonshire  - Special Needs,Rehabilitation And Respite Care
Cambridgeshire County Council,31-Jan-19,51300696730,"-4,655.00",Accomplish Group Support Limited,CARE ESTABLISHMENT,LD - Hunts Locality,LD - Huntigndonshire  - Special Needs,Rehabilitation And Respite Care
Cambridgeshire County Council,31-Jan-19,51300681010,"-4,655.00",Accomplish Group Support Limited,CARE ESTABLISHMENT,LD - Hunts Locality,LD - Huntigndonshire  - Care,Rehabilitation And Respite Care
Cambridgeshire County Council,31-Jan-19,51300696767,"-4,655.00",Accomplish Group Support Limited,CARE ESTABLISHMENT,LD - Hunts Locality,LD - Huntigndonshire  - Care,Rehabilitation And Respite Care
Cambridgeshire County Council,31-Jan-19,51300696731,"-4,655.00",Accomplish Group Support Limited,CARE ESTABLISHMENT,LD - Hunts Locality,LD - Huntigndonshire  - Care,Rehabilitation And Respite Care
Cambridgeshire County Council,31-Jan-19,51300681011,"-4,655.00",Accomplish Group Support Limited,CARE ESTABLISHMENT,LD - Hunts Locality,LD - Huntigndonshire  - Care,Rehabilitation And Respite Care
Cambridgeshire County Council,31-Jan-19,51300681006,"-4,655.00",Accomplish Group Support Limited,CARE ESTABLISHMENT,LD - Hunts Locality,LD - Huntigndonshire  - Care,Rehabilitation And Respite Care
Cambridgeshire County Council,31-Jan-19,51300696737,"-4,655.00",Accomplish Group Support Limited,CARE ESTABLISHMENT,LD - Hunts Locality,LD - Huntigndonshire  - Care,Rehabilitation And Respite Care
Cambridgeshire County Council,31-Jan-19,51300681000,"-4,655.00",Accomplish Group Support Limited,CARE ESTABLISHMENT,LD - Hunts Locality,LD - Huntigndonshire  - Care,Rehabilitation And Respite Care
Cambridgeshire County Council,31-Jan-19,51300680998,"-4,655.00",Accomplish Group Support Limited,CARE ESTABLISHMENT,LD - Hunts Locality,LD - Huntigndonshire  - Care,Rehabilitation And Respite Care
Cambridgeshire County Council,31-Jan-19,51300696758,"-4,655.00",Accomplish Group Support Limited,CARE ESTABLISHMENT,LD - Hunts Locality,LD - Huntigndonshire  - Care,Rehabilitation And Respite Care
Cambridgeshire County Council,31-Jan-19,51300696741,"-4,655.00",Accomplish Group Support Limited,CARE ESTABLISHMENT,LD - Hunts Locality,LD - Huntigndonshire  - Care,Rehabilitation And Respite Care
Cambridgeshire County Council,31-Jan-19,51300696736,"-4,655.00",Accomplish Group Support Limited,CARE ESTABLISHMENT,LD - Hunts Locality,LD - Huntigndonshire  - Care,Rehabilitation And Respite Care
Cambridgeshire County Council,31-Jan-19,51300681013,"-4,655.00",Accomplish Group Support Limited,CARE ESTABLISHMENT,LD - Hunts Locality,LD - Huntigndonshire  - Care,Rehabilitation And Respite Care
Cambridgeshire County Council,31-Jan-19,51300681002,"-4,655.00",Accomplish Group Support Limited,CARE ESTABLISHMENT,LD - Hunts Locality,LD - Huntigndonshire  - Special Needs,Rehabilitation And Respite Care
Cambridgeshire County Council,31-Jan-19,51300681009,"-4,655.00",Accomplish Group Support Limited,CARE ESTABLISHMENT,LD - Hunts Locality,LD - Huntigndonshire  - Special Needs,Rehabilitation And Respite Care
Cambridgeshire County Council,31-Jan-19,51300681012,"-4,655.00",Accomplish Group Support Limited,CARE ESTABLISHMENT,LD - Hunts Locality,LD - Huntigndonshire  - Special Needs,Rehabilitation And Respite Care
Cambridgeshire County Council,31-Jan-19,51300696729,"-4,655.00",Accomplish Group Support Limited,CARE ESTABLISHMENT,LD - Hunts Locality,LD - Huntigndonshire  - Special Needs,Rehabilitation And Respite Care
Cambridgeshire County Council,14-Jan-19,51300285074,"-4,640.00",Elysium Health Care Ltd,EDUCATION,Recoupment,Procurement - Out-County Hospitals,Educational Materials
Cambridgeshire County Council,04-Jan-19,51300629615,"-4,140.06",MIDFIELD LODGE CARE CENTRE,CARE ESTABLISHMENT,OP - City & South Blocks,City and South - Long term blocks,Nursing Care
Cambridgeshire County Council,04-Jan-19,51300629842,"-4,140.06",MIDFIELD LODGE CARE CENTRE,CARE ESTABLISHMENT,OP - City & South Blocks,City and South - Long term blocks,Nursing Care
Cambridgeshire County Council,04-Jan-19,51300626302,"-3,325.00",Accomplish Group Support Limited,CARE ESTABLISHMENT,LD - Hunts Locality,LD - Huntigndonshire  - Care,Rehabilitation And Respite Care
Cambridgeshire County Council,04-Jan-19,51300651405,"-3,325.00",Accomplish Group Support Limited,CARE ESTABLISHMENT,LD - Hunts Locality,LD - Huntigndonshire  - Care,Rehabilitation And Respite Care
Cambridgeshire County Council,17-Jan-19,51300664025,"-3,325.00",Accomplish Group Support Limited,CARE ESTABLISHMENT,LD - Hunts Locality,LD - Huntigndonshire  - Special Needs,Rehabilitation And Respite Care
Cambridgeshire County Council,17-Jan-19,51300673052,"-3,325.00",Accomplish Group Support Limited,CARE ESTABLISHMENT,LD - Hunts Locality,LD - Huntigndonshire  - Care,Rehabilitation And Respite Care
Cambridgeshire County Council,31-Jan-19,51300696733,"-3,325.00",Accomplish Group Support Limited,CARE ESTABLISHMENT,LD - Hunts Locality,LD - Huntigndonshire  - Special Needs,Rehabilitation And Respite Care
Cambridgeshire County Council,31-Jan-19,51300680994,"-3,325.00",Accomplish Group Support Limited,CARE ESTABLISHMENT,LD - Hunts Locality,LD - Huntigndonshire  - Care,Rehabilitation And Respite Care
Cambridgeshire County Council,09-Jan-19,51300570122,"-3,284.92",QUALITY FOSTER CARE LTD,CARE ESTABLISHMENT,LAC Placements,Placements - Social Care,Agency Placements - Out of  County
Cambridgeshire County Council,31-Jan-19,51300684706,"-3,191.10",MIDFIELD LODGE CARE CENTRE,CARE ESTABLISHMENT,OP - City & South Blocks,City and South - Long term blocks,Nursing Care
Cambridgeshire County Council,31-Jan-19,51300684704,"-3,191.10",MIDFIELD LODGE CARE CENTRE,CARE ESTABLISHMENT,OP - City & South Blocks,City and South - Long term blocks,Nursing Care
Cambridgeshire County Council,31-Jan-19,51300684708,"-3,191.10",MIDFIELD LODGE CARE CENTRE,CARE ESTABLISHMENT,OP - City & South Blocks,City and South - Long term blocks,Nursing Care
Cambridgeshire County Council,31-Jan-19,51300684705,"-3,191.10",MIDFIELD LODGE CARE CENTRE,CARE ESTABLISHMENT,OP - City & South Blocks,City and South - Long term blocks,Nursing Care
Cambridgeshire County Council,31-Jan-19,51300684707,"-3,191.10",MIDFIELD LODGE CARE CENTRE,CARE ESTABLISHMENT,OP - City & South Blocks,City and South - Long term blocks,Nursing Care
Cambridgeshire County Council,04-Jan-19,51300629808,"-3,075.02",HC-ONE,CARE ESTABLISHMENT,OP - Fenland Blocks,Fenland - Long term blocks,Nursing Care
Cambridgeshire County Council,30-Jan-19,51300682362,"-3,075.00",THE ELMS NURSING HOME,CARE ESTABLISHMENT,OP - Fenland Blocks,Fenland - Long term blocks,Nursing Care
Cambridgeshire County Council,18-Jan-19,51300673829,"-3,063.36",SAVILLS LIMITED,TRADE SUPPLIER,Housing Schemes,Housing Schemes,"New Construction, Conversion and Renovation"
Cambridgeshire County Council,04-Jan-19,51300622513,"-2,977.44",DECOY FARM,CARE ESTABLISHMENT,LD - East Locality,LD - East Cambs - Special Needs,Residential Care
Cambridgeshire County Council,04-Jan-19,51300629502,"-2,977.44",DECOY FARM,CARE ESTABLISHMENT,LD - East Locality,LD - East Cambs - Special Needs,Residential Care
Cambridgeshire County Council,04-Jan-19,51300629423,"-2,977.44",DECOY FARM,CARE ESTABLISHMENT,LD - East Locality,LD - East Cambs - Special Needs,Residential Care
Cambridgeshire County Council,04-Jan-19,51300622433,"-2,977.44",DECOY FARM,CARE ESTABLISHMENT,LD - East Locality,LD - East Cambs - Special Needs,Residential Care
Cambridgeshire County Council,04-Jan-19,51300629402,"-2,977.44",DECOY FARM,CARE ESTABLISHMENT,LD - East Locality,LD - East Cambs - Special Needs,Residential Care
Cambridgeshire County Council,04-Jan-19,51300622502,"-2,977.44",DECOY FARM,CARE ESTABLISHMENT,LD - East Locality,LD - East Cambs - Special Needs,Residential Care
Cambridgeshire County Council,04-Jan-19,51300629485,"-2,977.44",DECOY FARM,CARE ESTABLISHMENT,LD - East Locality,LD - East Cambs - Special Needs,Residential Care
Cambridgeshire County Council,04-Jan-19,51300629439,"-2,977.44",DECOY FARM,CARE ESTABLISHMENT,LD - East Locality,LD - East Cambs - Special Needs,Residential Care
Cambridgeshire County Council,04-Jan-19,51300629341,"-2,977.44",DECOY FARM,CARE ESTABLISHMENT,LD - East Locality,LD - East Cambs - Special Needs,Residential Care
Cambridgeshire County Council,04-Jan-19,51300622558,"-2,977.44",DECOY FARM,CARE ESTABLISHMENT,LD - East Locality,LD - East Cambs - Special Needs,Residential Care
Cambridgeshire County Council,04-Jan-19,51300622515,"-2,977.44",DECOY FARM,CARE ESTABLISHMENT,LD - East Locality,LD - East Cambs - Special Needs,Residential Care
Cambridgeshire County Council,04-Jan-19,51300622568,"-2,977.44",DECOY FARM,CARE ESTABLISHMENT,LD - East Locality,LD - East Cambs - Special Needs,Residential Care
Cambridgeshire County Council,04-Jan-19,51300622422,"-2,977.44",DECOY FARM,CARE ESTABLISHMENT,LD - East Locality,LD - East Cambs - Special Needs,Residential Care
Cambridgeshire County Council,04-Jan-19,51300622445,"-2,977.44",DECOY FARM,CARE ESTABLISHMENT,LD - East Locality,LD - East Cambs - Special Needs,Residential Care
Cambridgeshire County Council,04-Jan-19,51300622564,"-2,977.44",DECOY FARM,CARE ESTABLISHMENT,LD - East Locality,LD - East Cambs - Special Needs,Residential Care
Cambridgeshire County Council,04-Jan-19,51300622535,"-2,977.44",DECOY FARM,CARE ESTABLISHMENT,LD - East Locality,LD - East Cambs - Special Needs,Residential Care
Cambridgeshire County Council,04-Jan-19,51300622434,"-2,977.44",DECOY FARM,CARE ESTABLISHMENT,LD - East Locality,LD - East Cambs - Special Needs,Residential Care
Cambridgeshire County Council,04-Jan-19,51300622472,"-2,977.44",DECOY FARM,CARE ESTABLISHMENT,LD - East Locality,LD - East Cambs - Special Needs,Residential Care
Cambridgeshire County Council,04-Jan-19,51300622544,"-2,977.44",DECOY FARM,CARE ESTABLISHMENT,LD - East Locality,LD - East Cambs - Special Needs,Residential Care
Cambridgeshire County Council,04-Jan-19,51300622483,"-2,977.44",DECOY FARM,CARE ESTABLISHMENT,LD - East Locality,LD - East Cambs - Special Needs,Residential Care
Cambridgeshire County Council,04-Jan-19,51300629461,"-2,977.44",DECOY FARM,CARE ESTABLISHMENT,LD - East Locality,LD - East Cambs - Special Needs,Residential Care
Cambridgeshire County Council,04-Jan-19,51300629343,"-2,977.44",DECOY FARM,CARE ESTABLISHMENT,LD - East Locality,LD - East Cambs - Special Needs,Residential Care
Cambridgeshire County Council,04-Jan-19,51300629368,"-2,977.44",DECOY FARM,CARE ESTABLISHMENT,LD - East Locality,LD - East Cambs - Special Needs,Residential Care
Cambridgeshire County Council,04-Jan-19,51300629466,"-2,977.44",DECOY FARM,CARE ESTABLISHMENT,LD - East Locality,LD - East Cambs - Special Needs,Residential Care
Cambridgeshire County Council,04-Jan-19,51300629427,"-2,977.44",DECOY FARM,CARE ESTABLISHMENT,LD - East Locality,LD - East Cambs - Special Needs,Residential Care
Cambridgeshire County Council,04-Jan-19,51300622542,"-2,977.44",DECOY FARM,CARE ESTABLISHMENT,LD - East Locality,LD - East Cambs - Special Needs,Residential Care
Cambridgeshire County Council,04-Jan-19,51300622528,"-2,977.44",DECOY FARM,CARE ESTABLISHMENT,LD - East Locality,LD - East Cambs - Special Needs,Residential Care
Cambridgeshire County Council,04-Jan-19,51300622498,"-2,977.44",DECOY FARM,CARE ESTABLISHMENT,LD - East Locality,LD - East Cambs - Special Needs,Residential Care
Cambridgeshire County Council,04-Jan-19,51300629417,"-2,977.44",DECOY FARM,CARE ESTABLISHMENT,LD - East Locality,LD - East Cambs - Special Needs,Residential Care
Cambridgeshire County Council,04-Jan-19,51300629424,"-2,977.44",DECOY FARM,CARE ESTABLISHMENT,LD - East Locality,LD - East Cambs - Special Needs,Residential Care
Cambridgeshire County Council,04-Jan-19,51300629480,"-2,977.44",DECOY FARM,CARE ESTABLISHMENT,LD - East Locality,LD - East Cambs - Special Needs,Residential Care
Cambridgeshire County Council,04-Jan-19,51300622556,"-2,977.44",DECOY FARM,CARE ESTABLISHMENT,LD - East Locality,LD - East Cambs - Special Needs,Residential Care
Cambridgeshire County Council,04-Jan-19,51300622539,"-2,977.44",DECOY FARM,CARE ESTABLISHMENT,LD - East Locality,LD - East Cambs - Special Needs,Residential Care
Cambridgeshire County Council,04-Jan-19,51300629431,"-2,977.44",DECOY FARM,CARE ESTABLISHMENT,LD - East Locality,LD - East Cambs - Special Needs,Residential Care
Cambridgeshire County Council,04-Jan-19,51300629408,"-2,977.44",DECOY FARM,CARE ESTABLISHMENT,LD - East Locality,LD - East Cambs - Special Needs,Residential Care
Cambridgeshire County Council,04-Jan-19,51300629441,"-2,977.44",DECOY FARM,CARE ESTABLISHMENT,LD - East Locality,LD - East Cambs - Special Needs,Residential Care
Cambridgeshire County Council,04-Jan-19,51300629407,"-2,977.44",DECOY FARM,CARE ESTABLISHMENT,LD - East Locality,LD - East Cambs - Special Needs,Residential Care
Cambridgeshire County Council,04-Jan-19,51300622426,"-2,977.44",DECOY FARM,CARE ESTABLISHMENT,LD - East Locality,LD - East Cambs - Special Needs,Residential Care
Cambridgeshire County Council,04-Jan-19,51300629434,"-2,977.44",DECOY FARM,CARE ESTABLISHMENT,LD - East Locality,LD - East Cambs - Special Needs,Residential Care
Cambridgeshire County Council,04-Jan-19,51300629361,"-2,977.44",DECOY FARM,CARE ESTABLISHMENT,LD - East Locality,LD - East Cambs - Special Needs,Residential Care
Cambridgeshire County Council,04-Jan-19,51300622450,"-2,977.44",DECOY FARM,CARE ESTABLISHMENT,LD - East Locality,LD - East Cambs - Special Needs,Residential Care
Cambridgeshire County Council,04-Jan-19,51300629419,"-2,977.44",DECOY FARM,CARE ESTABLISHMENT,LD - East Locality,LD - East Cambs - Special Needs,Residential Care
Cambridgeshire County Council,04-Jan-19,51300629409,"-2,977.44",DECOY FARM,CARE ESTABLISHMENT,LD - East Locality,LD - East Cambs - Special Needs,Residential Care
Cambridgeshire County Council,04-Jan-19,51300622449,"-2,977.44",DECOY FARM,CARE ESTABLISHMENT,LD - East Locality,LD - East Cambs - Special Needs,Residential Care
Cambridgeshire County Council,04-Jan-19,51300622486,"-2,977.44",DECOY FARM,CARE ESTABLISHMENT,LD - East Locality,LD - East Cambs - Special Needs,Residential Care
Cambridgeshire County Council,04-Jan-19,51300629399,"-2,977.44",DECOY FARM,CARE ESTABLISHMENT,LD - East Locality,LD - East Cambs - Special Needs,Residential Care
Cambridgeshire County Council,04-Jan-19,51300629437,"-2,977.44",DECOY FARM,CARE ESTABLISHMENT,LD - East Locality,LD - East Cambs - Special Needs,Residential Care
Cambridgeshire County Council,04-Jan-19,51300629444,"-2,977.44",DECOY FARM,CARE ESTABLISHMENT,LD - East Locality,LD - East Cambs - Special Needs,Residential Care
Cambridgeshire County Council,04-Jan-19,51300629469,"-2,977.44",DECOY FARM,CARE ESTABLISHMENT,LD - East Locality,LD - East Cambs - Special Needs,Residential Care
Cambridgeshire County Council,04-Jan-19,51300622523,"-2,977.44",DECOY FARM,CARE ESTABLISHMENT,LD - East Locality,LD - East Cambs - Special Needs,Residential Care
Cambridgeshire County Council,04-Jan-19,51300622427,"-2,977.44",DECOY FARM,CARE ESTABLISHMENT,LD - East Locality,LD - East Cambs - Special Needs,Residential Care
Cambridgeshire County Council,04-Jan-19,51300629449,"-2,977.44",DECOY FARM,CARE ESTABLISHMENT,LD - East Locality,LD - East Cambs - Special Needs,Residential Care
Cambridgeshire County Council,04-Jan-19,51300629355,"-2,977.44",DECOY FARM,CARE ESTABLISHMENT,LD - East Locality,LD - East Cambs - Special Needs,Residential Care
Cambridgeshire County Council,04-Jan-19,51300622533,"-2,977.44",DECOY FARM,CARE ESTABLISHMENT,LD - East Locality,LD - East Cambs - Special Needs,Residential Care
Cambridgeshire County Council,04-Jan-19,51300622482,"-2,977.44",DECOY FARM,CARE ESTABLISHMENT,LD - East Locality,LD - East Cambs - Special Needs,Residential Care
Cambridgeshire County Council,04-Jan-19,51300622458,"-2,977.44",DECOY FARM,CARE ESTABLISHMENT,LD - East Locality,LD - East Cambs - Special Needs,Residential Care
Cambridgeshire County Council,04-Jan-19,51300622505,"-2,977.44",DECOY FARM,CARE ESTABLISHMENT,LD - East Locality,LD - East Cambs - Special Needs,Residential Care
Cambridgeshire County Council,04-Jan-19,51300622567,"-2,977.44",DECOY FARM,CARE ESTABLISHMENT,LD - East Locality,LD - East Cambs - Special Needs,Residential Care
Cambridgeshire County Council,04-Jan-19,51300622531,"-2,977.44",DECOY FARM,CARE ESTABLISHMENT,LD - East Locality,LD - East Cambs - Special Needs,Residential Care
Cambridgeshire County Council,04-Jan-19,51300622476,"-2,977.44",DECOY FARM,CARE ESTABLISHMENT,LD - East Locality,LD - East Cambs - Special Needs,Residential Care
Cambridgeshire County Council,04-Jan-19,51300622520,"-2,977.44",DECOY FARM,CARE ESTABLISHMENT,LD - East Locality,LD - East Cambs - Special Needs,Residential Care
Cambridgeshire County Council,04-Jan-19,51300622565,"-2,977.44",DECOY FARM,CARE ESTABLISHMENT,LD - East Locality,LD - East Cambs - Special Needs,Residential Care
Cambridgeshire County Council,04-Jan-19,51300629433,"-2,977.44",DECOY FARM,CARE ESTABLISHMENT,LD - East Locality,LD - East Cambs - Special Needs,Residential Care
Cambridgeshire County Council,04-Jan-19,51300629494,"-2,977.44",DECOY FARM,CARE ESTABLISHMENT,LD - East Locality,LD - East Cambs - Special Needs,Residential Care
Cambridgeshire County Council,04-Jan-19,51300622540,"-2,977.44",DECOY FARM,CARE ESTABLISHMENT,LD - East Locality,LD - East Cambs - Special Needs,Residential Care
Cambridgeshire County Council,04-Jan-19,51300622561,"-2,977.44",DECOY FARM,CARE ESTABLISHMENT,LD - East Locality,LD - East Cambs - Special Needs,Residential Care
Cambridgeshire County Council,04-Jan-19,51300622549,"-2,977.44",DECOY FARM,CARE ESTABLISHMENT,LD - East Locality,LD - East Cambs - Special Needs,Residential Care
Cambridgeshire County Council,04-Jan-19,51300629442,"-2,977.44",DECOY FARM,CARE ESTABLISHMENT,LD - East Locality,LD - East Cambs - Special Needs,Residential Care
Cambridgeshire County Council,04-Jan-19,51300629486,"-2,977.44",DECOY FARM,CARE ESTABLISHMENT,LD - East Locality,LD - East Cambs - Special Needs,Residential Care
Cambridgeshire County Council,04-Jan-19,51300622452,"-2,977.44",DECOY FARM,CARE ESTABLISHMENT,LD - East Locality,LD - East Cambs - Special Needs,Residential Care
Cambridgeshire County Council,04-Jan-19,51300629360,"-2,977.44",DECOY FARM,CARE ESTABLISHMENT,LD - East Locality,LD - East Cambs - Special Needs,Residential Care
Cambridgeshire County Council,04-Jan-19,51300629446,"-2,977.44",DECOY FARM,CARE ESTABLISHMENT,LD - East Locality,LD - East Cambs - Special Needs,Residential Care
Cambridgeshire County Council,04-Jan-19,51300629342,"-2,977.44",DECOY FARM,CARE ESTABLISHMENT,LD - East Locality,LD - East Cambs - Special Needs,Residential Care
Cambridgeshire County Council,04-Jan-19,51300622470,"-2,977.44",DECOY FARM,CARE ESTABLISHMENT,LD - East Locality,LD - East Cambs - Special Needs,Residential Care
Cambridgeshire County Council,04-Jan-19,51300629450,"-2,977.44",DECOY FARM,CARE ESTABLISHMENT,LD - East Locality,LD - East Cambs - Special Needs,Residential Care
Cambridgeshire County Council,04-Jan-19,51300622489,"-2,977.44",DECOY FARM,CARE ESTABLISHMENT,LD - East Locality,LD - East Cambs - Special Needs,Residential Care
Cambridgeshire County Council,04-Jan-19,51300622560,"-2,977.44",DECOY FARM,CARE ESTABLISHMENT,LD - East Locality,LD - East Cambs - Special Needs,Residential Care
Cambridgeshire County Council,04-Jan-19,51300629375,"-2,977.44",DECOY FARM,CARE ESTABLISHMENT,LD - East Locality,LD - East Cambs - Special Needs,Residential Care
Cambridgeshire County Council,04-Jan-19,51300622467,"-2,977.44",DECOY FARM,CARE ESTABLISHMENT,LD - East Locality,LD - East Cambs - Special Needs,Residential Care
Cambridgeshire County Council,04-Jan-19,51300629416,"-2,977.44",DECOY FARM,CARE ESTABLISHMENT,LD - East Locality,LD - East Cambs - Special Needs,Residential Care
Cambridgeshire County Council,04-Jan-19,51300622435,"-2,977.44",DECOY FARM,CARE ESTABLISHMENT,LD - East Locality,LD - East Cambs - Special Needs,Residential Care
Cambridgeshire County Council,04-Jan-19,51300622440,"-2,977.44",DECOY FARM,CARE ESTABLISHMENT,LD - East Locality,LD - East Cambs - Special Needs,Residential Care
Cambridgeshire County Council,04-Jan-19,51300622524,"-2,977.44",DECOY FARM,CARE ESTABLISHMENT,LD - East Locality,LD - East Cambs - Special Needs,Residential Care
Cambridgeshire County Council,04-Jan-19,51300629346,"-2,977.44",DECOY FARM,CARE ESTABLISHMENT,LD - East Locality,LD - East Cambs - Special Needs,Residential Care
Cambridgeshire County Council,04-Jan-19,51300622566,"-2,977.44",DECOY FARM,CARE ESTABLISHMENT,LD - East Locality,LD - East Cambs - Special Needs,Residential Care
Cambridgeshire County Council,04-Jan-19,51300622430,"-2,977.44",DECOY FARM,CARE ESTABLISHMENT,LD - East Locality,LD - East Cambs - Special Needs,Residential Care
Cambridgeshire County Council,04-Jan-19,51300629422,"-2,977.44",DECOY FARM,CARE ESTABLISHMENT,LD - East Locality,LD - East Cambs - Special Needs,Residential Care
Cambridgeshire County Council,04-Jan-19,51300622469,"-2,977.44",DECOY FARM,CARE ESTABLISHMENT,LD - East Locality,LD - East Cambs - Special Needs,Residential Care
Cambridgeshire County Council,04-Jan-19,51300629354,"-2,977.44",DECOY FARM,CARE ESTABLISHMENT,LD - East Locality,LD - East Cambs - Special Needs,Residential Care
Cambridgeshire County Council,04-Jan-19,51300622468,"-2,977.44",DECOY FARM,CARE ESTABLISHMENT,LD - East Locality,LD - East Cambs - Special Needs,Residential Care
Cambridgeshire County Council,04-Jan-19,51300622456,"-2,977.44",DECOY FARM,CARE ESTABLISHMENT,LD - East Locality,LD - East Cambs - Special Needs,Residential Care
Cambridgeshire County Council,04-Jan-19,51300629372,"-2,977.44",DECOY FARM,CARE ESTABLISHMENT,LD - East Locality,LD - East Cambs - Special Needs,Residential Care
Cambridgeshire County Council,04-Jan-19,51300629507,"-2,977.44",DECOY FARM,CARE ESTABLISHMENT,LD - East Locality,LD - East Cambs - Special Needs,Residential Care
Cambridgeshire County Council,04-Jan-19,51300622451,"-2,977.44",DECOY FARM,CARE ESTABLISHMENT,LD - East Locality,LD - East Cambs - Special Needs,Residential Care
Cambridgeshire County Council,04-Jan-19,51300622488,"-2,977.44",DECOY FARM,CARE ESTABLISHMENT,LD - East Locality,LD - East Cambs - Special Needs,Residential Care
Cambridgeshire County Council,04-Jan-19,51300622557,"-2,977.44",DECOY FARM,CARE ESTABLISHMENT,LD - East Locality,LD - East Cambs - Special Needs,Residential Care
Cambridgeshire County Council,04-Jan-19,51300629397,"-2,977.44",DECOY FARM,CARE ESTABLISHMENT,LD - East Locality,LD - East Cambs - Special Needs,Residential Care
Cambridgeshire County Council,04-Jan-19,51300629467,"-2,977.44",DECOY FARM,CARE ESTABLISHMENT,LD - East Locality,LD - East Cambs - Special Needs,Residential Care
Cambridgeshire County Council,04-Jan-19,51300629452,"-2,977.44",DECOY FARM,CARE ESTABLISHMENT,LD - East Locality,LD - East Cambs - Special Needs,Residential Care
Cambridgeshire County Council,04-Jan-19,51300629365,"-2,977.44",DECOY FARM,CARE ESTABLISHMENT,LD - East Locality,LD - East Cambs - Special Needs,Residential Care
Cambridgeshire County Council,04-Jan-19,51300629393,"-2,977.44",DECOY FARM,CARE ESTABLISHMENT,LD - East Locality,LD - East Cambs - Special Needs,Residential Care
Cambridgeshire County Council,04-Jan-19,51300629491,"-2,977.44",DECOY FARM,CARE ESTABLISHMENT,LD - East Locality,LD - East Cambs - Special Needs,Residential Care
Cambridgeshire County Council,04-Jan-19,51300629410,"-2,977.44",DECOY FARM,CARE ESTABLISHMENT,LD - East Locality,LD - East Cambs - Special Needs,Residential Care
Cambridgeshire County Council,04-Jan-19,51300629364,"-2,977.44",DECOY FARM,CARE ESTABLISHMENT,LD - East Locality,LD - East Cambs - Special Needs,Residential Care
Cambridgeshire County Council,04-Jan-19,51300629506,"-2,977.44",DECOY FARM,CARE ESTABLISHMENT,LD - East Locality,LD - East Cambs - Special Needs,Residential Care
Cambridgeshire County Council,04-Jan-19,51300629401,"-2,977.44",DECOY FARM,CARE ESTABLISHMENT,LD - East Locality,LD - East Cambs - Special Needs,Residential Care
Cambridgeshire County Council,04-Jan-19,51300629356,"-2,977.44",DECOY FARM,CARE ESTABLISHMENT,LD - East Locality,LD - East Cambs - Special Needs,Residential Care
Cambridgeshire County Council,04-Jan-19,51300622538,"-2,977.44",DECOY FARM,CARE ESTABLISHMENT,LD - East Locality,LD - East Cambs - Special Needs,Residential Care
Cambridgeshire County Council,04-Jan-19,51300622493,"-2,977.44",DECOY FARM,CARE ESTABLISHMENT,LD - East Locality,LD - East Cambs - Special Needs,Residential Care
Cambridgeshire County Council,04-Jan-19,51300629406,"-2,977.44",DECOY FARM,CARE ESTABLISHMENT,LD - East Locality,LD - East Cambs - Special Needs,Residential Care
Cambridgeshire County Council,04-Jan-19,51300629481,"-2,977.44",DECOY FARM,CARE ESTABLISHMENT,LD - East Locality,LD - East Cambs - Special Needs,Residential Care
Cambridgeshire County Council,04-Jan-19,51300629373,"-2,977.44",DECOY FARM,CARE ESTABLISHMENT,LD - East Locality,LD - East Cambs - Special Needs,Residential Care
Cambridgeshire County Council,04-Jan-19,51300622481,"-2,977.44",DECOY FARM,CARE ESTABLISHMENT,LD - East Locality,LD - East Cambs - Special Needs,Residential Care
Cambridgeshire County Council,04-Jan-19,51300622526,"-2,977.44",DECOY FARM,CARE ESTABLISHMENT,LD - East Locality,LD - East Cambs - Special Needs,Residential Care
Cambridgeshire County Council,04-Jan-19,51300622457,"-2,977.44",DECOY FARM,CARE ESTABLISHMENT,LD - East Locality,LD - East Cambs - Special Needs,Residential Care
Cambridgeshire County Council,04-Jan-19,51300622478,"-2,977.44",DECOY FARM,CARE ESTABLISHMENT,LD - East Locality,LD - East Cambs - Special Needs,Residential Care
Cambridgeshire County Council,04-Jan-19,51300629381,"-2,977.44",DECOY FARM,CARE ESTABLISHMENT,LD - East Locality,LD - East Cambs - Special Needs,Residential Care
Cambridgeshire County Council,04-Jan-19,51300629367,"-2,977.44",DECOY FARM,CARE ESTABLISHMENT,LD - East Locality,LD - East Cambs - Special Needs,Residential Care
Cambridgeshire County Council,04-Jan-19,51300629351,"-2,977.44",DECOY FARM,CARE ESTABLISHMENT,LD - East Locality,LD - East Cambs - Special Needs,Residential Care
Cambridgeshire County Council,04-Jan-19,51300629498,"-2,977.44",DECOY FARM,CARE ESTABLISHMENT,LD - East Locality,LD - East Cambs - Special Needs,Residential Care
Cambridgeshire County Council,04-Jan-19,51300629483,"-2,977.44",DECOY FARM,CARE ESTABLISHMENT,LD - East Locality,LD - East Cambs - Special Needs,Residential Care
Cambridgeshire County Council,04-Jan-19,51300629382,"-2,977.44",DECOY FARM,CARE ESTABLISHMENT,LD - East Locality,LD - East Cambs - Special Needs,Residential Care
Cambridgeshire County Council,04-Jan-19,51300629369,"-2,977.44",DECOY FARM,CARE ESTABLISHMENT,LD - East Locality,LD - East Cambs - Special Needs,Residential Care
Cambridgeshire County Council,04-Jan-19,51300622475,"-2,977.44",DECOY FARM,CARE ESTABLISHMENT,LD - East Locality,LD - East Cambs - Special Needs,Residential Care
Cambridgeshire County Council,04-Jan-19,51300622551,"-2,977.44",DECOY FARM,CARE ESTABLISHMENT,LD - East Locality,LD - East Cambs - Special Needs,Residential Care
Cambridgeshire County Council,04-Jan-19,51300629395,"-2,977.44",DECOY FARM,CARE ESTABLISHMENT,LD - East Locality,LD - East Cambs - Special Needs,Residential Care
Cambridgeshire County Council,04-Jan-19,51300629390,"-2,977.44",DECOY FARM,CARE ESTABLISHMENT,LD - East Locality,LD - East Cambs - Special Needs,Residential Care
Cambridgeshire County Council,04-Jan-19,51300629391,"-2,977.44",DECOY FARM,CARE ESTABLISHMENT,LD - East Locality,LD - East Cambs - Special Needs,Residential Care
Cambridgeshire County Council,04-Jan-19,51300622547,"-2,977.44",DECOY FARM,CARE ESTABLISHMENT,LD - East Locality,LD - East Cambs - Special Needs,Residential Care
Cambridgeshire County Council,04-Jan-19,51300622485,"-2,977.44",DECOY FARM,CARE ESTABLISHMENT,LD - East Locality,LD - East Cambs - Special Needs,Residential Care
Cambridgeshire County Council,04-Jan-19,51300622521,"-2,977.44",DECOY FARM,CARE ESTABLISHMENT,LD - East Locality,LD - East Cambs - Special Needs,Residential Care
Cambridgeshire County Council,04-Jan-19,51300629386,"-2,977.44",DECOY FARM,CARE ESTABLISHMENT,LD - East Locality,LD - East Cambs - Special Needs,Residential Care
Cambridgeshire County Council,04-Jan-19,51300622496,"-2,977.44",DECOY FARM,CARE ESTABLISHMENT,LD - East Locality,LD - East Cambs - Special Needs,Residential Care
Cambridgeshire County Council,04-Jan-19,51300622527,"-2,977.44",DECOY FARM,CARE ESTABLISHMENT,LD - East Locality,LD - East Cambs - Special Needs,Residential Care
Cambridgeshire County Council,04-Jan-19,51300622522,"-2,977.44",DECOY FARM,CARE ESTABLISHMENT,LD - East Locality,LD - East Cambs - Special Needs,Residential Care
Cambridgeshire County Council,04-Jan-19,51300622554,"-2,977.44",DECOY FARM,CARE ESTABLISHMENT,LD - East Locality,LD - East Cambs - Special Needs,Residential Care
Cambridgeshire County Council,04-Jan-19,51300629490,"-2,977.44",DECOY FARM,CARE ESTABLISHMENT,LD - East Locality,LD - East Cambs - Special Needs,Residential Care
Cambridgeshire County Council,04-Jan-19,51300629414,"-2,977.44",DECOY FARM,CARE ESTABLISHMENT,LD - East Locality,LD - East Cambs - Special Needs,Residential Care
Cambridgeshire County Council,04-Jan-19,51300622514,"-2,977.44",DECOY FARM,CARE ESTABLISHMENT,LD - East Locality,LD - East Cambs - Special Needs,Residential Care
Cambridgeshire County Council,04-Jan-19,51300622532,"-2,977.44",DECOY FARM,CARE ESTABLISHMENT,LD - East Locality,LD - East Cambs - Special Needs,Residential Care
Cambridgeshire County Council,04-Jan-19,51300629362,"-2,977.44",DECOY FARM,CARE ESTABLISHMENT,LD - East Locality,LD - East Cambs - Special Needs,Residential Care
Cambridgeshire County Council,04-Jan-19,51300629456,"-2,977.44",DECOY FARM,CARE ESTABLISHMENT,LD - East Locality,LD - East Cambs - Special Needs,Residential Care
Cambridgeshire County Council,04-Jan-19,51300629363,"-2,977.44",DECOY FARM,CARE ESTABLISHMENT,LD - East Locality,LD - East Cambs - Special Needs,Residential Care
Cambridgeshire County Council,04-Jan-19,51300622512,"-2,977.44",DECOY FARM,CARE ESTABLISHMENT,LD - East Locality,LD - East Cambs - Special Needs,Residential Care
Cambridgeshire County Council,04-Jan-19,51300622529,"-2,977.44",DECOY FARM,CARE ESTABLISHMENT,LD - East Locality,LD - East Cambs - Special Needs,Residential Care
Cambridgeshire County Council,04-Jan-19,51300622460,"-2,977.44",DECOY FARM,CARE ESTABLISHMENT,LD - East Locality,LD - East Cambs - Special Needs,Residential Care
Cambridgeshire County Council,17-Jan-19,51300666554,"-2,977.44",DECOY FARM,CARE ESTABLISHMENT,LD - East Locality,LD - East Cambs - Special Needs,Residential Care
Cambridgeshire County Council,17-Jan-19,51300657374,"-2,977.44",DECOY FARM,CARE ESTABLISHMENT,LD - East Locality,LD - East Cambs - Special Needs,Residential Care
Cambridgeshire County Council,17-Jan-19,51300666716,"-2,977.44",DECOY FARM,CARE ESTABLISHMENT,LD - East Locality,LD - East Cambs - Special Needs,Residential Care
Cambridgeshire County Council,17-Jan-19,51300657376,"-2,977.44",DECOY FARM,CARE ESTABLISHMENT,LD - East Locality,LD - East Cambs - Special Needs,Residential Care
Cambridgeshire County Council,17-Jan-19,51300657503,"-2,977.44",DECOY FARM,CARE ESTABLISHMENT,LD - East Locality,LD - East Cambs - Special Needs,Residential Care
Cambridgeshire County Council,17-Jan-19,51300657476,"-2,977.44",DECOY FARM,CARE ESTABLISHMENT,LD - East Locality,LD - East Cambs - Special Needs,Residential Care
Cambridgeshire County Council,17-Jan-19,51300657407,"-2,977.44",DECOY FARM,CARE ESTABLISHMENT,LD - East Locality,LD - East Cambs - Special Needs,Residential Care
Cambridgeshire County Council,17-Jan-19,51300657364,"-2,977.44",DECOY FARM,CARE ESTABLISHMENT,LD - East Locality,LD - East Cambs - Special Needs,Residential Care
Cambridgeshire County Council,17-Jan-19,51300666642,"-2,977.44",DECOY FARM,CARE ESTABLISHMENT,LD - East Locality,LD - East Cambs - Special Needs,Residential Care
Cambridgeshire County Council,17-Jan-19,51300657377,"-2,977.44",DECOY FARM,CARE ESTABLISHMENT,LD - East Locality,LD - East Cambs - Special Needs,Residential Care
Cambridgeshire County Council,17-Jan-19,51300657494,"-2,977.44",DECOY FARM,CARE ESTABLISHMENT,LD - East Locality,LD - East Cambs - Special Needs,Residential Care
Cambridgeshire County Council,17-Jan-19,51300666705,"-2,977.44",DECOY FARM,CARE ESTABLISHMENT,LD - East Locality,LD - East Cambs - Special Needs,Residential Care
Cambridgeshire County Council,17-Jan-19,51300657465,"-2,977.44",DECOY FARM,CARE ESTABLISHMENT,LD - East Locality,LD - East Cambs - Special Needs,Residential Care
Cambridgeshire County Council,17-Jan-19,51300666625,"-2,977.44",DECOY FARM,CARE ESTABLISHMENT,LD - East Locality,LD - East Cambs - Special Needs,Residential Care
Cambridgeshire County Council,17-Jan-19,51300666650,"-2,977.44",DECOY FARM,CARE ESTABLISHMENT,LD - East Locality,LD - East Cambs - Special Needs,Residential Care
Cambridgeshire County Council,17-Jan-19,51300666693,"-2,977.44",DECOY FARM,CARE ESTABLISHMENT,LD - East Locality,LD - East Cambs - Special Needs,Residential Care
Cambridgeshire County Council,17-Jan-19,51300666694,"-2,977.44",DECOY FARM,CARE ESTABLISHMENT,LD - East Locality,LD - East Cambs - Special Needs,Residential Care
Cambridgeshire County Council,17-Jan-19,51300666566,"-2,977.44",DECOY FARM,CARE ESTABLISHMENT,LD - East Locality,LD - East Cambs - Special Needs,Residential Care
Cambridgeshire County Council,17-Jan-19,51300666646,"-2,977.44",DECOY FARM,CARE ESTABLISHMENT,LD - East Locality,LD - East Cambs - Special Needs,Residential Care
Cambridgeshire County Council,17-Jan-19,51300666689,"-2,977.44",DECOY FARM,CARE ESTABLISHMENT,LD - East Locality,LD - East Cambs - Special Needs,Residential Care
Cambridgeshire County Council,17-Jan-19,51300657403,"-2,977.44",DECOY FARM,CARE ESTABLISHMENT,LD - East Locality,LD - East Cambs - Special Needs,Residential Care
Cambridgeshire County Council,17-Jan-19,51300657477,"-2,977.44",DECOY FARM,CARE ESTABLISHMENT,LD - East Locality,LD - East Cambs - Special Needs,Residential Care
Cambridgeshire County Council,17-Jan-19,51300657415,"-2,977.44",DECOY FARM,CARE ESTABLISHMENT,LD - East Locality,LD - East Cambs - Special Needs,Residential Care
Cambridgeshire County Council,17-Jan-19,51300666659,"-2,977.44",DECOY FARM,CARE ESTABLISHMENT,LD - East Locality,LD - East Cambs - Special Needs,Residential Care
Cambridgeshire County Council,17-Jan-19,51300666708,"-2,977.44",DECOY FARM,CARE ESTABLISHMENT,LD - East Locality,LD - East Cambs - Special Needs,Residential Care
Cambridgeshire County Council,17-Jan-19,51300666623,"-2,977.44",DECOY FARM,CARE ESTABLISHMENT,LD - East Locality,LD - East Cambs - Special Needs,Residential Care
Cambridgeshire County Council,17-Jan-19,51300657351,"-2,977.44",DECOY FARM,CARE ESTABLISHMENT,LD - East Locality,LD - East Cambs - Special Needs,Residential Care
Cambridgeshire County Council,17-Jan-19,51300666542,"-2,977.44",DECOY FARM,CARE ESTABLISHMENT,LD - East Locality,LD - East Cambs - Special Needs,Residential Care
Cambridgeshire County Council,17-Jan-19,51300657501,"-2,977.44",DECOY FARM,CARE ESTABLISHMENT,LD - East Locality,LD - East Cambs - Special Needs,Residential Care
Cambridgeshire County Council,17-Jan-19,51300657365,"-2,977.44",DECOY FARM,CARE ESTABLISHMENT,LD - East Locality,LD - East Cambs - Special Needs,Residential Care
Cambridgeshire County Council,17-Jan-19,51300666685,"-2,977.44",DECOY FARM,CARE ESTABLISHMENT,LD - East Locality,LD - East Cambs - Special Needs,Residential Care
Cambridgeshire County Council,17-Jan-19,51300666609,"-2,977.44",DECOY FARM,CARE ESTABLISHMENT,LD - East Locality,LD - East Cambs - Special Needs,Residential Care
Cambridgeshire County Council,17-Jan-19,51300666630,"-2,977.44",DECOY FARM,CARE ESTABLISHMENT,LD - East Locality,LD - East Cambs - Special Needs,Residential Care
Cambridgeshire County Council,17-Jan-19,51300666635,"-2,977.44",DECOY FARM,CARE ESTABLISHMENT,LD - East Locality,LD - East Cambs - Special Needs,Residential Care
Cambridgeshire County Council,17-Jan-19,51300666557,"-2,977.44",DECOY FARM,CARE ESTABLISHMENT,LD - East Locality,LD - East Cambs - Special Needs,Residential Care
Cambridgeshire County Council,17-Jan-19,51300657392,"-2,977.44",DECOY FARM,CARE ESTABLISHMENT,LD - East Locality,LD - East Cambs - Special Needs,Residential Care
Cambridgeshire County Council,17-Jan-19,51300657498,"-2,977.44",DECOY FARM,CARE ESTABLISHMENT,LD - East Locality,LD - East Cambs - Special Needs,Residential Care
Cambridgeshire County Council,17-Jan-19,51300666620,"-2,977.44",DECOY FARM,CARE ESTABLISHMENT,LD - East Locality,LD - East Cambs - Special Needs,Residential Care
Cambridgeshire County Council,17-Jan-19,51300666661,"-2,977.44",DECOY FARM,CARE ESTABLISHMENT,LD - East Locality,LD - East Cambs - Special Needs,Residential Care
Cambridgeshire County Council,17-Jan-19,51300657485,"-2,977.44",DECOY FARM,CARE ESTABLISHMENT,LD - East Locality,LD - East Cambs - Special Needs,Residential Care
Cambridgeshire County Council,17-Jan-19,51300657397,"-2,977.44",DECOY FARM,CARE ESTABLISHMENT,LD - East Locality,LD - East Cambs - Special Needs,Residential Care
Cambridgeshire County Council,17-Jan-19,51300666577,"-2,977.44",DECOY FARM,CARE ESTABLISHMENT,LD - East Locality,LD - East Cambs - Special Needs,Residential Care
Cambridgeshire County Council,17-Jan-19,51300657479,"-2,977.44",DECOY FARM,CARE ESTABLISHMENT,LD - East Locality,LD - East Cambs - Special Needs,Residential Care
Cambridgeshire County Council,17-Jan-19,51300666638,"-2,977.44",DECOY FARM,CARE ESTABLISHMENT,LD - East Locality,LD - East Cambs - Special Needs,Residential Care
Cambridgeshire County Council,17-Jan-19,51300657373,"-2,977.44",DECOY FARM,CARE ESTABLISHMENT,LD - East Locality,LD - East Cambs - Special Needs,Residential Care
Cambridgeshire County Council,17-Jan-19,51300657390,"-2,977.44",DECOY FARM,CARE ESTABLISHMENT,LD - East Locality,LD - East Cambs - Special Needs,Residential Care
Cambridgeshire County Council,17-Jan-19,51300666686,"-2,977.44",DECOY FARM,CARE ESTABLISHMENT,LD - East Locality,LD - East Cambs - Special Needs,Residential Care
Cambridgeshire County Council,17-Jan-19,51300657381,"-2,977.44",DECOY FARM,CARE ESTABLISHMENT,LD - East Locality,LD - East Cambs - Special Needs,Residential Care
Cambridgeshire County Council,17-Jan-19,51300657447,"-2,977.44",DECOY FARM,CARE ESTABLISHMENT,LD - East Locality,LD - East Cambs - Special Needs,Residential Care
Cambridgeshire County Council,17-Jan-19,51300657375,"-2,977.44",DECOY FARM,CARE ESTABLISHMENT,LD - East Locality,LD - East Cambs - Special Needs,Residential Care
Cambridgeshire County Council,17-Jan-19,51300666590,"-2,977.44",DECOY FARM,CARE ESTABLISHMENT,LD - East Locality,LD - East Cambs - Special Needs,Residential Care
Cambridgeshire County Council,17-Jan-19,51300666680,"-2,977.44",DECOY FARM,CARE ESTABLISHMENT,LD - East Locality,LD - East Cambs - Special Needs,Residential Care
Cambridgeshire County Council,17-Jan-19,51300657472,"-2,977.44",DECOY FARM,CARE ESTABLISHMENT,LD - East Locality,LD - East Cambs - Special Needs,Residential Care
Cambridgeshire County Council,17-Jan-19,51300657350,"-2,977.44",DECOY FARM,CARE ESTABLISHMENT,LD - East Locality,LD - East Cambs - Special Needs,Residential Care
Cambridgeshire County Council,17-Jan-19,51300657410,"-2,977.44",DECOY FARM,CARE ESTABLISHMENT,LD - East Locality,LD - East Cambs - Special Needs,Residential Care
Cambridgeshire County Council,17-Jan-19,51300657432,"-2,977.44",DECOY FARM,CARE ESTABLISHMENT,LD - East Locality,LD - East Cambs - Special Needs,Residential Care
Cambridgeshire County Council,17-Jan-19,51300657406,"-2,977.44",DECOY FARM,CARE ESTABLISHMENT,LD - East Locality,LD - East Cambs - Special Needs,Residential Care
Cambridgeshire County Council,17-Jan-19,51300666692,"-2,977.44",DECOY FARM,CARE ESTABLISHMENT,LD - East Locality,LD - East Cambs - Special Needs,Residential Care
Cambridgeshire County Council,17-Jan-19,51300666597,"-2,977.44",DECOY FARM,CARE ESTABLISHMENT,LD - East Locality,LD - East Cambs - Special Needs,Residential Care
Cambridgeshire County Council,17-Jan-19,51300657413,"-2,977.44",DECOY FARM,CARE ESTABLISHMENT,LD - East Locality,LD - East Cambs - Special Needs,Residential Care
Cambridgeshire County Council,17-Jan-19,51300666608,"-2,977.44",DECOY FARM,CARE ESTABLISHMENT,LD - East Locality,LD - East Cambs - Special Needs,Residential Care
Cambridgeshire County Council,17-Jan-19,51300657385,"-2,977.44",DECOY FARM,CARE ESTABLISHMENT,LD - East Locality,LD - East Cambs - Special Needs,Residential Care
Cambridgeshire County Council,17-Jan-19,51300657399,"-2,977.44",DECOY FARM,CARE ESTABLISHMENT,LD - East Locality,LD - East Cambs - Special Needs,Residential Care
Cambridgeshire County Council,17-Jan-19,51300657417,"-2,977.44",DECOY FARM,CARE ESTABLISHMENT,LD - East Locality,LD - East Cambs - Special Needs,Residential Care
Cambridgeshire County Council,17-Jan-19,51300657470,"-2,977.44",DECOY FARM,CARE ESTABLISHMENT,LD - East Locality,LD - East Cambs - Special Needs,Residential Care
Cambridgeshire County Council,17-Jan-19,51300657430,"-2,977.44",DECOY FARM,CARE ESTABLISHMENT,LD - East Locality,LD - East Cambs - Special Needs,Residential Care
Cambridgeshire County Council,17-Jan-19,51300666565,"-2,977.44",DECOY FARM,CARE ESTABLISHMENT,LD - East Locality,LD - East Cambs - Special Needs,Residential Care
Cambridgeshire County Council,17-Jan-19,51300666528,"-2,977.44",DECOY FARM,CARE ESTABLISHMENT,LD - East Locality,LD - East Cambs - Special Needs,Residential Care
Cambridgeshire County Council,17-Jan-19,51300657444,"-2,977.44",DECOY FARM,CARE ESTABLISHMENT,LD - East Locality,LD - East Cambs - Special Needs,Residential Care
Cambridgeshire County Council,17-Jan-19,51300657357,"-2,977.44",DECOY FARM,CARE ESTABLISHMENT,LD - East Locality,LD - East Cambs - Special Needs,Residential Care
Cambridgeshire County Council,17-Jan-19,51300657369,"-2,977.44",DECOY FARM,CARE ESTABLISHMENT,LD - East Locality,LD - East Cambs - Special Needs,Residential Care
Cambridgeshire County Council,17-Jan-19,51300657502,"-2,977.44",DECOY FARM,CARE ESTABLISHMENT,LD - East Locality,LD - East Cambs - Special Needs,Residential Care
Cambridgeshire County Council,17-Jan-19,51300666602,"-2,977.44",DECOY FARM,CARE ESTABLISHMENT,LD - East Locality,LD - East Cambs - Special Needs,Residential Care
Cambridgeshire County Council,17-Jan-19,51300657387,"-2,977.44",DECOY FARM,CARE ESTABLISHMENT,LD - East Locality,LD - East Cambs - Special Needs,Residential Care
Cambridgeshire County Council,17-Jan-19,51300666706,"-2,977.44",DECOY FARM,CARE ESTABLISHMENT,LD - East Locality,LD - East Cambs - Special Needs,Residential Care
Cambridgeshire County Council,17-Jan-19,51300666596,"-2,977.44",DECOY FARM,CARE ESTABLISHMENT,LD - East Locality,LD - East Cambs - Special Needs,Residential Care
Cambridgeshire County Council,17-Jan-19,51300666644,"-2,977.44",DECOY FARM,CARE ESTABLISHMENT,LD - East Locality,LD - East Cambs - Special Needs,Residential Care
Cambridgeshire County Council,17-Jan-19,51300666601,"-2,977.44",DECOY FARM,CARE ESTABLISHMENT,LD - East Locality,LD - East Cambs - Special Needs,Residential Care
Cambridgeshire County Council,17-Jan-19,51300657367,"-2,977.44",DECOY FARM,CARE ESTABLISHMENT,LD - East Locality,LD - East Cambs - Special Needs,Residential Care
Cambridgeshire County Council,17-Jan-19,51300657478,"-2,977.44",DECOY FARM,CARE ESTABLISHMENT,LD - East Locality,LD - East Cambs - Special Needs,Residential Care
Cambridgeshire County Council,17-Jan-19,51300657379,"-2,977.44",DECOY FARM,CARE ESTABLISHMENT,LD - East Locality,LD - East Cambs - Special Needs,Residential Care
Cambridgeshire County Council,17-Jan-19,51300657460,"-2,977.44",DECOY FARM,CARE ESTABLISHMENT,LD - East Locality,LD - East Cambs - Special Needs,Residential Care
Cambridgeshire County Council,17-Jan-19,51300657384,"-2,977.44",DECOY FARM,CARE ESTABLISHMENT,LD - East Locality,LD - East Cambs - Special Needs,Residential Care
Cambridgeshire County Council,17-Jan-19,51300657378,"-2,977.44",DECOY FARM,CARE ESTABLISHMENT,LD - East Locality,LD - East Cambs - Special Needs,Residential Care
Cambridgeshire County Council,17-Jan-19,51300657484,"-2,977.44",DECOY FARM,CARE ESTABLISHMENT,LD - East Locality,LD - East Cambs - Special Needs,Residential Care
Cambridgeshire County Council,17-Jan-19,51300666669,"-2,977.44",DECOY FARM,CARE ESTABLISHMENT,LD - East Locality,LD - East Cambs - Special Needs,Residential Care
Cambridgeshire County Council,17-Jan-19,51300666598,"-2,977.44",DECOY FARM,CARE ESTABLISHMENT,LD - East Locality,LD - East Cambs - Special Needs,Residential Care
Cambridgeshire County Council,17-Jan-19,51300666552,"-2,977.44",DECOY FARM,CARE ESTABLISHMENT,LD - East Locality,LD - East Cambs - Special Needs,Residential Care
Cambridgeshire County Council,17-Jan-19,51300666666,"-2,977.44",DECOY FARM,CARE ESTABLISHMENT,LD - East Locality,LD - East Cambs - Special Needs,Residential Care
Cambridgeshire County Council,17-Jan-19,51300666543,"-2,977.44",DECOY FARM,CARE ESTABLISHMENT,LD - East Locality,LD - East Cambs - Special Needs,Residential Care
Cambridgeshire County Council,17-Jan-19,51300657423,"-2,977.44",DECOY FARM,CARE ESTABLISHMENT,LD - East Locality,LD - East Cambs - Special Needs,Residential Care
Cambridgeshire County Council,17-Jan-19,51300657360,"-2,977.44",DECOY FARM,CARE ESTABLISHMENT,LD - East Locality,LD - East Cambs - Special Needs,Residential Care
Cambridgeshire County Council,17-Jan-19,51300666539,"-2,977.44",DECOY FARM,CARE ESTABLISHMENT,LD - East Locality,LD - East Cambs - Special Needs,Residential Care
Cambridgeshire County Council,17-Jan-19,51300657467,"-2,977.44",DECOY FARM,CARE ESTABLISHMENT,LD - East Locality,LD - East Cambs - Special Needs,Residential Care
Cambridgeshire County Council,17-Jan-19,51300666707,"-2,977.44",DECOY FARM,CARE ESTABLISHMENT,LD - East Locality,LD - East Cambs - Special Needs,Residential Care
Cambridgeshire County Council,17-Jan-19,51300666687,"-2,977.44",DECOY FARM,CARE ESTABLISHMENT,LD - East Locality,LD - East Cambs - Special Needs,Residential Care
Cambridgeshire County Council,17-Jan-19,51300666681,"-2,977.44",DECOY FARM,CARE ESTABLISHMENT,LD - East Locality,LD - East Cambs - Special Needs,Residential Care
Cambridgeshire County Council,17-Jan-19,51300666660,"-2,977.44",DECOY FARM,CARE ESTABLISHMENT,LD - East Locality,LD - East Cambs - Special Needs,Residential Care
Cambridgeshire County Council,17-Jan-19,51300666556,"-2,977.44",DECOY FARM,CARE ESTABLISHMENT,LD - East Locality,LD - East Cambs - Special Needs,Residential Care
Cambridgeshire County Council,17-Jan-19,51300666641,"-2,977.44",DECOY FARM,CARE ESTABLISHMENT,LD - East Locality,LD - East Cambs - Special Needs,Residential Care
Cambridgeshire County Council,17-Jan-19,51300657464,"-2,977.44",DECOY FARM,CARE ESTABLISHMENT,LD - East Locality,LD - East Cambs - Special Needs,Residential Care
Cambridgeshire County Council,17-Jan-19,51300666525,"-2,977.44",DECOY FARM,CARE ESTABLISHMENT,LD - East Locality,LD - East Cambs - Special Needs,Residential Care
Cambridgeshire County Council,17-Jan-19,51300666578,"-2,977.44",DECOY FARM,CARE ESTABLISHMENT,LD - East Locality,LD - East Cambs - Special Needs,Residential Care
Cambridgeshire County Council,17-Jan-19,51300666582,"-2,977.44",DECOY FARM,CARE ESTABLISHMENT,LD - East Locality,LD - East Cambs - Special Needs,Residential Care
Cambridgeshire County Council,17-Jan-19,51300666713,"-2,977.44",DECOY FARM,CARE ESTABLISHMENT,LD - East Locality,LD - East Cambs - Special Needs,Residential Care
Cambridgeshire County Council,17-Jan-19,51300657443,"-2,977.44",DECOY FARM,CARE ESTABLISHMENT,LD - East Locality,LD - East Cambs - Special Needs,Residential Care
Cambridgeshire County Council,17-Jan-19,51300657382,"-2,977.44",DECOY FARM,CARE ESTABLISHMENT,LD - East Locality,LD - East Cambs - Special Needs,Residential Care
Cambridgeshire County Council,17-Jan-19,51300657371,"-2,977.44",DECOY FARM,CARE ESTABLISHMENT,LD - East Locality,LD - East Cambs - Special Needs,Residential Care
Cambridgeshire County Council,17-Jan-19,51300657428,"-2,977.44",DECOY FARM,CARE ESTABLISHMENT,LD - East Locality,LD - East Cambs - Special Needs,Residential Care
Cambridgeshire County Council,17-Jan-19,51300657354,"-2,977.44",DECOY FARM,CARE ESTABLISHMENT,LD - East Locality,LD - East Cambs - Special Needs,Residential Care
Cambridgeshire County Council,17-Jan-19,51300666605,"-2,977.44",DECOY FARM,CARE ESTABLISHMENT,LD - East Locality,LD - East Cambs - Special Needs,Residential Care
Cambridgeshire County Council,17-Jan-19,51300666649,"-2,977.44",DECOY FARM,CARE ESTABLISHMENT,LD - East Locality,LD - East Cambs - Special Needs,Residential Care
Cambridgeshire County Council,17-Jan-19,51300666639,"-2,977.44",DECOY FARM,CARE ESTABLISHMENT,LD - East Locality,LD - East Cambs - Special Needs,Residential Care
Cambridgeshire County Council,17-Jan-19,51300666611,"-2,977.44",DECOY FARM,CARE ESTABLISHMENT,LD - East Locality,LD - East Cambs - Special Needs,Residential Care
Cambridgeshire County Council,17-Jan-19,51300666567,"-2,977.44",DECOY FARM,CARE ESTABLISHMENT,LD - East Locality,LD - East Cambs - Special Needs,Residential Care
Cambridgeshire County Council,17-Jan-19,51300666571,"-2,977.44",DECOY FARM,CARE ESTABLISHMENT,LD - East Locality,LD - East Cambs - Special Needs,Residential Care
Cambridgeshire County Council,17-Jan-19,51300666544,"-2,977.44",DECOY FARM,CARE ESTABLISHMENT,LD - East Locality,LD - East Cambs - Special Needs,Residential Care
Cambridgeshire County Council,17-Jan-19,51300666600,"-2,977.44",DECOY FARM,CARE ESTABLISHMENT,LD - East Locality,LD - East Cambs - Special Needs,Residential Care
Cambridgeshire County Council,17-Jan-19,51300657419,"-2,977.44",DECOY FARM,CARE ESTABLISHMENT,LD - East Locality,LD - East Cambs - Special Needs,Residential Care
Cambridgeshire County Council,17-Jan-19,51300657393,"-2,977.44",DECOY FARM,CARE ESTABLISHMENT,LD - East Locality,LD - East Cambs - Special Needs,Residential Care
Cambridgeshire County Council,17-Jan-19,51300666540,"-2,977.44",DECOY FARM,CARE ESTABLISHMENT,LD - East Locality,LD - East Cambs - Special Needs,Residential Care
Cambridgeshire County Council,17-Jan-19,51300666541,"-2,977.44",DECOY FARM,CARE ESTABLISHMENT,LD - East Locality,LD - East Cambs - Special Needs,Residential Care
Cambridgeshire County Council,17-Jan-19,51300666532,"-2,977.44",DECOY FARM,CARE ESTABLISHMENT,LD - East Locality,LD - East Cambs - Special Needs,Residential Care
Cambridgeshire County Council,17-Jan-19,51300666673,"-2,977.44",DECOY FARM,CARE ESTABLISHMENT,LD - East Locality,LD - East Cambs - Special Needs,Residential Care
Cambridgeshire County Council,17-Jan-19,51300657455,"-2,977.44",DECOY FARM,CARE ESTABLISHMENT,LD - East Locality,LD - East Cambs - Special Needs,Residential Care
Cambridgeshire County Council,17-Jan-19,51300657480,"-2,977.44",DECOY FARM,CARE ESTABLISHMENT,LD - East Locality,LD - East Cambs - Special Needs,Residential Care
Cambridgeshire County Council,17-Jan-19,51300666633,"-2,977.44",DECOY FARM,CARE ESTABLISHMENT,LD - East Locality,LD - East Cambs - Special Needs,Residential Care
Cambridgeshire County Council,17-Jan-19,51300657414,"-2,977.44",DECOY FARM,CARE ESTABLISHMENT,LD - East Locality,LD - East Cambs - Special Needs,Residential Care
Cambridgeshire County Council,17-Jan-19,51300657362,"-2,977.44",DECOY FARM,CARE ESTABLISHMENT,LD - East Locality,LD - East Cambs - Special Needs,Residential Care
Cambridgeshire County Council,17-Jan-19,51300657348,"-2,977.44",DECOY FARM,CARE ESTABLISHMENT,LD - East Locality,LD - East Cambs - Special Needs,Residential Care
Cambridgeshire County Council,17-Jan-19,51300666634,"-2,977.44",DECOY FARM,CARE ESTABLISHMENT,LD - East Locality,LD - East Cambs - Special Needs,Residential Care
Cambridgeshire County Council,17-Jan-19,51300657441,"-2,977.44",DECOY FARM,CARE ESTABLISHMENT,LD - East Locality,LD - East Cambs - Special Needs,Residential Care
Cambridgeshire County Council,17-Jan-19,51300666657,"-2,977.44",DECOY FARM,CARE ESTABLISHMENT,LD - East Locality,LD - East Cambs - Special Needs,Residential Care
Cambridgeshire County Council,17-Jan-19,51300666674,"-2,977.44",DECOY FARM,CARE ESTABLISHMENT,LD - East Locality,LD - East Cambs - Special Needs,Residential Care
Cambridgeshire County Council,17-Jan-19,51300657353,"-2,977.44",DECOY FARM,CARE ESTABLISHMENT,LD - East Locality,LD - East Cambs - Special Needs,Residential Care
Cambridgeshire County Council,17-Jan-19,51300657490,"-2,977.44",DECOY FARM,CARE ESTABLISHMENT,LD - East Locality,LD - East Cambs - Special Needs,Residential Care
Cambridgeshire County Council,17-Jan-19,51300657391,"-2,977.44",DECOY FARM,CARE ESTABLISHMENT,LD - East Locality,LD - East Cambs - Special Needs,Residential Care
Cambridgeshire County Council,17-Jan-19,51300657499,"-2,977.44",DECOY FARM,CARE ESTABLISHMENT,LD - East Locality,LD - East Cambs - Special Needs,Residential Care
Cambridgeshire County Council,17-Jan-19,51300666607,"-2,977.44",DECOY FARM,CARE ESTABLISHMENT,LD - East Locality,LD - East Cambs - Special Needs,Residential Care
Cambridgeshire County Council,17-Jan-19,51300666658,"-2,977.44",DECOY FARM,CARE ESTABLISHMENT,LD - East Locality,LD - East Cambs - Special Needs,Residential Care
Cambridgeshire County Council,17-Jan-19,51300666612,"-2,977.44",DECOY FARM,CARE ESTABLISHMENT,LD - East Locality,LD - East Cambs - Special Needs,Residential Care
Cambridgeshire County Council,17-Jan-19,51300666583,"-2,977.44",DECOY FARM,CARE ESTABLISHMENT,LD - East Locality,LD - East Cambs - Special Needs,Residential Care
Cambridgeshire County Council,17-Jan-19,51300657368,"-2,977.44",DECOY FARM,CARE ESTABLISHMENT,LD - East Locality,LD - East Cambs - Special Needs,Residential Care
Cambridgeshire County Council,17-Jan-19,51300657356,"-2,977.44",DECOY FARM,CARE ESTABLISHMENT,LD - East Locality,LD - East Cambs - Special Needs,Residential Care
Cambridgeshire County Council,17-Jan-19,51300657359,"-2,977.44",DECOY FARM,CARE ESTABLISHMENT,LD - East Locality,LD - East Cambs - Special Needs,Residential Care
Cambridgeshire County Council,17-Jan-19,51300657405,"-2,977.44",DECOY FARM,CARE ESTABLISHMENT,LD - East Locality,LD - East Cambs - Special Needs,Residential Care
Cambridgeshire County Council,31-Jan-19,51300677353,"-2,977.44",DECOY FARM,CARE ESTABLISHMENT,LD - East Locality,LD - East Cambs - Special Needs,Residential Care
Cambridgeshire County Council,31-Jan-19,51300684576,"-2,977.44",DECOY FARM,CARE ESTABLISHMENT,LD - East Locality,LD - East Cambs - Special Needs,Residential Care
Cambridgeshire County Council,31-Jan-19,51300684541,"-2,977.44",DECOY FARM,CARE ESTABLISHMENT,LD - East Locality,LD - East Cambs - Special Needs,Residential Care
Cambridgeshire County Council,31-Jan-19,51300684526,"-2,977.44",DECOY FARM,CARE ESTABLISHMENT,LD - East Locality,LD - East Cambs - Special Needs,Residential Care
Cambridgeshire County Council,31-Jan-19,51300684652,"-2,977.44",DECOY FARM,CARE ESTABLISHMENT,LD - East Locality,LD - East Cambs - Special Needs,Residential Care
Cambridgeshire County Council,31-Jan-19,51300684577,"-2,977.44",DECOY FARM,CARE ESTABLISHMENT,LD - East Locality,LD - East Cambs - Special Needs,Residential Care
Cambridgeshire County Council,31-Jan-19,51300684538,"-2,977.44",DECOY FARM,CARE ESTABLISHMENT,LD - East Locality,LD - East Cambs - Special Needs,Residential Care
Cambridgeshire County Council,31-Jan-19,51300684613,"-2,977.44",DECOY FARM,CARE ESTABLISHMENT,LD - East Locality,LD - East Cambs - Special Needs,Residential Care
Cambridgeshire County Council,31-Jan-19,51300684604,"-2,977.44",DECOY FARM,CARE ESTABLISHMENT,LD - East Locality,LD - East Cambs - Special Needs,Residential Care
Cambridgeshire County Council,31-Jan-19,51300684643,"-2,977.44",DECOY FARM,CARE ESTABLISHMENT,LD - East Locality,LD - East Cambs - Special Needs,Residential Care
Cambridgeshire County Council,31-Jan-19,51300677387,"-2,977.44",DECOY FARM,CARE ESTABLISHMENT,LD - East Locality,LD - East Cambs - Special Needs,Residential Care
Cambridgeshire County Council,31-Jan-19,51300677411,"-2,977.44",DECOY FARM,CARE ESTABLISHMENT,LD - East Locality,LD - East Cambs - Special Needs,Residential Care
Cambridgeshire County Council,31-Jan-19,51300677356,"-2,977.44",DECOY FARM,CARE ESTABLISHMENT,LD - East Locality,LD - East Cambs - Special Needs,Residential Care
Cambridgeshire County Council,31-Jan-19,51300677392,"-2,977.44",DECOY FARM,CARE ESTABLISHMENT,LD - East Locality,LD - East Cambs - Special Needs,Residential Care
Cambridgeshire County Council,31-Jan-19,51300677450,"-2,977.44",DECOY FARM,CARE ESTABLISHMENT,LD - East Locality,LD - East Cambs - Special Needs,Residential Care
Cambridgeshire County Council,31-Jan-19,51300677417,"-2,977.44",DECOY FARM,CARE ESTABLISHMENT,LD - East Locality,LD - East Cambs - Special Needs,Residential Care
Cambridgeshire County Council,31-Jan-19,51300677370,"-2,977.44",DECOY FARM,CARE ESTABLISHMENT,LD - East Locality,LD - East Cambs - Special Needs,Residential Care
Cambridgeshire County Council,31-Jan-19,51300684574,"-2,977.44",DECOY FARM,CARE ESTABLISHMENT,LD - East Locality,LD - East Cambs - Special Needs,Residential Care
Cambridgeshire County Council,31-Jan-19,51300684596,"-2,977.44",DECOY FARM,CARE ESTABLISHMENT,LD - East Locality,LD - East Cambs - Special Needs,Residential Care
Cambridgeshire County Council,31-Jan-19,51300677396,"-2,977.44",DECOY FARM,CARE ESTABLISHMENT,LD - East Locality,LD - East Cambs - Special Needs,Residential Care
Cambridgeshire County Council,31-Jan-19,51300677414,"-2,977.44",DECOY FARM,CARE ESTABLISHMENT,LD - East Locality,LD - East Cambs - Special Needs,Residential Care
Cambridgeshire County Council,31-Jan-19,51300677343,"-2,977.44",DECOY FARM,CARE ESTABLISHMENT,LD - East Locality,LD - East Cambs - Special Needs,Residential Care
Cambridgeshire County Council,31-Jan-19,51300677454,"-2,977.44",DECOY FARM,CARE ESTABLISHMENT,LD - East Locality,LD - East Cambs - Special Needs,Residential Care
Cambridgeshire County Council,31-Jan-19,51300684546,"-2,977.44",DECOY FARM,CARE ESTABLISHMENT,LD - East Locality,LD - East Cambs - Special Needs,Residential Care
Cambridgeshire County Council,31-Jan-19,51300684547,"-2,977.44",DECOY FARM,CARE ESTABLISHMENT,LD - East Locality,LD - East Cambs - Special Needs,Residential Care
Cambridgeshire County Council,31-Jan-19,51300684622,"-2,977.44",DECOY FARM,CARE ESTABLISHMENT,LD - East Locality,LD - East Cambs - Special Needs,Residential Care
Cambridgeshire County Council,31-Jan-19,51300684597,"-2,977.44",DECOY FARM,CARE ESTABLISHMENT,LD - East Locality,LD - East Cambs - Special Needs,Residential Care
Cambridgeshire County Council,31-Jan-19,51300677412,"-2,977.44",DECOY FARM,CARE ESTABLISHMENT,LD - East Locality,LD - East Cambs - Special Needs,Residential Care
Cambridgeshire County Council,31-Jan-19,51300684545,"-2,977.44",DECOY FARM,CARE ESTABLISHMENT,LD - East Locality,LD - East Cambs - Special Needs,Residential Care
Cambridgeshire County Council,31-Jan-19,51300684592,"-2,977.44",DECOY FARM,CARE ESTABLISHMENT,LD - East Locality,LD - East Cambs - Special Needs,Residential Care
Cambridgeshire County Council,31-Jan-19,51300684610,"-2,977.44",DECOY FARM,CARE ESTABLISHMENT,LD - East Locality,LD - East Cambs - Special Needs,Residential Care
Cambridgeshire County Council,31-Jan-19,51300684561,"-2,977.44",DECOY FARM,CARE ESTABLISHMENT,LD - East Locality,LD - East Cambs - Special Needs,Residential Care
Cambridgeshire County Council,31-Jan-19,51300684549,"-2,977.44",DECOY FARM,CARE ESTABLISHMENT,LD - East Locality,LD - East Cambs - Special Needs,Residential Care
Cambridgeshire County Council,31-Jan-19,51300684620,"-2,977.44",DECOY FARM,CARE ESTABLISHMENT,LD - East Locality,LD - East Cambs - Special Needs,Residential Care
Cambridgeshire County Council,31-Jan-19,51300684519,"-2,977.44",DECOY FARM,CARE ESTABLISHMENT,LD - East Locality,LD - East Cambs - Special Needs,Residential Care
Cambridgeshire County Council,31-Jan-19,51300684639,"-2,977.44",DECOY FARM,CARE ESTABLISHMENT,LD - East Locality,LD - East Cambs - Special Needs,Residential Care
Cambridgeshire County Council,31-Jan-19,51300684623,"-2,977.44",DECOY FARM,CARE ESTABLISHMENT,LD - East Locality,LD - East Cambs - Special Needs,Residential Care
Cambridgeshire County Council,31-Jan-19,51300677334,"-2,977.44",DECOY FARM,CARE ESTABLISHMENT,LD - East Locality,LD - East Cambs - Special Needs,Residential Care
Cambridgeshire County Council,31-Jan-19,51300677410,"-2,977.44",DECOY FARM,CARE ESTABLISHMENT,LD - East Locality,LD - East Cambs - Special Needs,Residential Care
Cambridgeshire County Council,31-Jan-19,51300684657,"-2,977.44",DECOY FARM,CARE ESTABLISHMENT,LD - East Locality,LD - East Cambs - Special Needs,Residential Care
Cambridgeshire County Council,31-Jan-19,51300684627,"-2,977.44",DECOY FARM,CARE ESTABLISHMENT,LD - East Locality,LD - East Cambs - Special Needs,Residential Care
Cambridgeshire County Council,31-Jan-19,51300684644,"-2,977.44",DECOY FARM,CARE ESTABLISHMENT,LD - East Locality,LD - East Cambs - Special Needs,Residential Care
Cambridgeshire County Council,31-Jan-19,51300684521,"-2,977.44",DECOY FARM,CARE ESTABLISHMENT,LD - East Locality,LD - East Cambs - Special Needs,Residential Care
Cambridgeshire County Council,31-Jan-19,51300677338,"-2,977.44",DECOY FARM,CARE ESTABLISHMENT,LD - East Locality,LD - East Cambs - Special Needs,Residential Care
Cambridgeshire County Council,31-Jan-19,51300677375,"-2,977.44",DECOY FARM,CARE ESTABLISHMENT,LD - East Locality,LD - East Cambs - Special Needs,Residential Care
Cambridgeshire County Council,31-Jan-19,51300677351,"-2,977.44",DECOY FARM,CARE ESTABLISHMENT,LD - East Locality,LD - East Cambs - Special Needs,Residential Care
Cambridgeshire County Council,31-Jan-19,51300677429,"-2,977.44",DECOY FARM,CARE ESTABLISHMENT,LD - East Locality,LD - East Cambs - Special Needs,Residential Care
Cambridgeshire County Council,31-Jan-19,51300677388,"-2,977.44",DECOY FARM,CARE ESTABLISHMENT,LD - East Locality,LD - East Cambs - Special Needs,Residential Care
Cambridgeshire County Council,31-Jan-19,51300684553,"-2,977.44",DECOY FARM,CARE ESTABLISHMENT,LD - East Locality,LD - East Cambs - Special Needs,Residential Care
Cambridgeshire County Council,31-Jan-19,51300684562,"-2,977.44",DECOY FARM,CARE ESTABLISHMENT,LD - East Locality,LD - East Cambs - Special Needs,Residential Care
Cambridgeshire County Council,31-Jan-19,51300684520,"-2,977.44",DECOY FARM,CARE ESTABLISHMENT,LD - East Locality,LD - East Cambs - Special Needs,Residential Care
Cambridgeshire County Council,31-Jan-19,51300677355,"-2,977.44",DECOY FARM,CARE ESTABLISHMENT,LD - East Locality,LD - East Cambs - Special Needs,Residential Care
Cambridgeshire County Council,31-Jan-19,51300677380,"-2,977.44",DECOY FARM,CARE ESTABLISHMENT,LD - East Locality,LD - East Cambs - Special Needs,Residential Care
Cambridgeshire County Council,31-Jan-19,51300684567,"-2,977.44",DECOY FARM,CARE ESTABLISHMENT,LD - East Locality,LD - East Cambs - Special Needs,Residential Care
Cambridgeshire County Council,31-Jan-19,51300677462,"-2,977.44",DECOY FARM,CARE ESTABLISHMENT,LD - East Locality,LD - East Cambs - Special Needs,Residential Care
Cambridgeshire County Council,31-Jan-19,51300677369,"-2,977.44",DECOY FARM,CARE ESTABLISHMENT,LD - East Locality,LD - East Cambs - Special Needs,Residential Care
Cambridgeshire County Council,31-Jan-19,51300684606,"-2,977.44",DECOY FARM,CARE ESTABLISHMENT,LD - East Locality,LD - East Cambs - Special Needs,Residential Care
Cambridgeshire County Council,31-Jan-19,51300684635,"-2,977.44",DECOY FARM,CARE ESTABLISHMENT,LD - East Locality,LD - East Cambs - Special Needs,Residential Care
Cambridgeshire County Council,31-Jan-19,51300684617,"-2,977.44",DECOY FARM,CARE ESTABLISHMENT,LD - East Locality,LD - East Cambs - Special Needs,Residential Care
Cambridgeshire County Council,31-Jan-19,51300677376,"-2,977.44",DECOY FARM,CARE ESTABLISHMENT,LD - East Locality,LD - East Cambs - Special Needs,Residential Care
Cambridgeshire County Council,31-Jan-19,51300684642,"-2,977.44",DECOY FARM,CARE ESTABLISHMENT,LD - East Locality,LD - East Cambs - Special Needs,Residential Care
Cambridgeshire County Council,31-Jan-19,51300684585,"-2,977.44",DECOY FARM,CARE ESTABLISHMENT,LD - East Locality,LD - East Cambs - Special Needs,Residential Care
Cambridgeshire County Council,31-Jan-19,51300677409,"-2,977.44",DECOY FARM,CARE ESTABLISHMENT,LD - East Locality,LD - East Cambs - Special Needs,Residential Care
Cambridgeshire County Council,31-Jan-19,51300684660,"-2,977.44",DECOY FARM,CARE ESTABLISHMENT,LD - East Locality,LD - East Cambs - Special Needs,Residential Care
Cambridgeshire County Council,31-Jan-19,51300677449,"-2,977.44",DECOY FARM,CARE ESTABLISHMENT,LD - East Locality,LD - East Cambs - Special Needs,Residential Care
Cambridgeshire County Council,31-Jan-19,51300684565,"-2,977.44",DECOY FARM,CARE ESTABLISHMENT,LD - East Locality,LD - East Cambs - Special Needs,Residential Care
Cambridgeshire County Council,31-Jan-19,51300677442,"-2,977.44",DECOY FARM,CARE ESTABLISHMENT,LD - East Locality,LD - East Cambs - Special Needs,Residential Care
Cambridgeshire County Council,31-Jan-19,51300677313,"-2,977.44",DECOY FARM,CARE ESTABLISHMENT,LD - East Locality,LD - East Cambs - Special Needs,Residential Care
Cambridgeshire County Council,31-Jan-19,51300684559,"-2,977.44",DECOY FARM,CARE ESTABLISHMENT,LD - East Locality,LD - East Cambs - Special Needs,Residential Care
Cambridgeshire County Council,31-Jan-19,51300684621,"-2,977.44",DECOY FARM,CARE ESTABLISHMENT,LD - East Locality,LD - East Cambs - Special Needs,Residential Care
Cambridgeshire County Council,31-Jan-19,51300677405,"-2,977.44",DECOY FARM,CARE ESTABLISHMENT,LD - East Locality,LD - East Cambs - Special Needs,Residential Care
Cambridgeshire County Council,31-Jan-19,51300677340,"-2,977.44",DECOY FARM,CARE ESTABLISHMENT,LD - East Locality,LD - East Cambs - Special Needs,Residential Care
Cambridgeshire County Council,31-Jan-19,51300677455,"-2,977.44",DECOY FARM,CARE ESTABLISHMENT,LD - East Locality,LD - East Cambs - Special Needs,Residential Care
Cambridgeshire County Council,31-Jan-19,51300677332,"-2,977.44",DECOY FARM,CARE ESTABLISHMENT,LD - East Locality,LD - East Cambs - Special Needs,Residential Care
Cambridgeshire County Council,31-Jan-19,51300677446,"-2,977.44",DECOY FARM,CARE ESTABLISHMENT,LD - East Locality,LD - East Cambs - Special Needs,Residential Care
Cambridgeshire County Council,31-Jan-19,51300684537,"-2,977.44",DECOY FARM,CARE ESTABLISHMENT,LD - East Locality,LD - East Cambs - Special Needs,Residential Care
Cambridgeshire County Council,31-Jan-19,51300677461,"-2,977.44",DECOY FARM,CARE ESTABLISHMENT,LD - East Locality,LD - East Cambs - Special Needs,Residential Care
Cambridgeshire County Council,31-Jan-19,51300677316,"-2,977.44",DECOY FARM,CARE ESTABLISHMENT,LD - East Locality,LD - East Cambs - Special Needs,Residential Care
Cambridgeshire County Council,31-Jan-19,51300677435,"-2,977.44",DECOY FARM,CARE ESTABLISHMENT,LD - East Locality,LD - East Cambs - Special Needs,Residential Care
Cambridgeshire County Council,31-Jan-19,51300677458,"-2,977.44",DECOY FARM,CARE ESTABLISHMENT,LD - East Locality,LD - East Cambs - Special Needs,Residential Care
Cambridgeshire County Council,31-Jan-19,51300677326,"-2,977.44",DECOY FARM,CARE ESTABLISHMENT,LD - East Locality,LD - East Cambs - Special Needs,Residential Care
Cambridgeshire County Council,31-Jan-19,51300677320,"-2,977.44",DECOY FARM,CARE ESTABLISHMENT,LD - East Locality,LD - East Cambs - Special Needs,Residential Care
Cambridgeshire County Council,31-Jan-19,51300677397,"-2,977.44",DECOY FARM,CARE ESTABLISHMENT,LD - East Locality,LD - East Cambs - Special Needs,Residential Care
Cambridgeshire County Council,31-Jan-19,51300677437,"-2,977.44",DECOY FARM,CARE ESTABLISHMENT,LD - East Locality,LD - East Cambs - Special Needs,Residential Care
Cambridgeshire County Council,31-Jan-19,51300677344,"-2,977.44",DECOY FARM,CARE ESTABLISHMENT,LD - East Locality,LD - East Cambs - Special Needs,Residential Care
Cambridgeshire County Council,31-Jan-19,51300684602,"-2,977.44",DECOY FARM,CARE ESTABLISHMENT,LD - East Locality,LD - East Cambs - Special Needs,Residential Care
Cambridgeshire County Council,31-Jan-19,51300677331,"-2,977.44",DECOY FARM,CARE ESTABLISHMENT,LD - East Locality,LD - East Cambs - Special Needs,Residential Care
Cambridgeshire County Council,31-Jan-19,51300677315,"-2,977.44",DECOY FARM,CARE ESTABLISHMENT,LD - East Locality,LD - East Cambs - Special Needs,Residential Care
Cambridgeshire County Council,31-Jan-19,51300684555,"-2,977.44",DECOY FARM,CARE ESTABLISHMENT,LD - East Locality,LD - East Cambs - Special Needs,Residential Care
Cambridgeshire County Council,31-Jan-19,51300684525,"-2,977.44",DECOY FARM,CARE ESTABLISHMENT,LD - East Locality,LD - East Cambs - Special Needs,Residential Care
Cambridgeshire County Council,31-Jan-19,51300684552,"-2,977.44",DECOY FARM,CARE ESTABLISHMENT,LD - East Locality,LD - East Cambs - Special Needs,Residential Care
Cambridgeshire County Council,31-Jan-19,51300684568,"-2,977.44",DECOY FARM,CARE ESTABLISHMENT,LD - East Locality,LD - East Cambs - Special Needs,Residential Care
Cambridgeshire County Council,31-Jan-19,51300684670,"-2,977.44",DECOY FARM,CARE ESTABLISHMENT,LD - East Locality,LD - East Cambs - Special Needs,Residential Care
Cambridgeshire County Council,31-Jan-19,51300677427,"-2,977.44",DECOY FARM,CARE ESTABLISHMENT,LD - East Locality,LD - East Cambs - Special Needs,Residential Care
Cambridgeshire County Council,31-Jan-19,51300684516,"-2,977.44",DECOY FARM,CARE ESTABLISHMENT,LD - East Locality,LD - East Cambs - Special Needs,Residential Care
Cambridgeshire County Council,31-Jan-19,51300677337,"-2,977.44",DECOY FARM,CARE ESTABLISHMENT,LD - East Locality,LD - East Cambs - Special Needs,Residential Care
Cambridgeshire County Council,31-Jan-19,51300684656,"-2,977.44",DECOY FARM,CARE ESTABLISHMENT,LD - East Locality,LD - East Cambs - Special Needs,Residential Care
Cambridgeshire County Council,31-Jan-19,51300684618,"-2,977.44",DECOY FARM,CARE ESTABLISHMENT,LD - East Locality,LD - East Cambs - Special Needs,Residential Care
Cambridgeshire County Council,31-Jan-19,51300677402,"-2,977.44",DECOY FARM,CARE ESTABLISHMENT,LD - East Locality,LD - East Cambs - Special Needs,Residential Care
Cambridgeshire County Council,31-Jan-19,51300677451,"-2,977.44",DECOY FARM,CARE ESTABLISHMENT,LD - East Locality,LD - East Cambs - Special Needs,Residential Care
Cambridgeshire County Council,31-Jan-19,51300677384,"-2,977.44",DECOY FARM,CARE ESTABLISHMENT,LD - East Locality,LD - East Cambs - Special Needs,Residential Care
Cambridgeshire County Council,31-Jan-19,51300677321,"-2,977.44",DECOY FARM,CARE ESTABLISHMENT,LD - East Locality,LD - East Cambs - Special Needs,Residential Care
Cambridgeshire County Council,31-Jan-19,51300677341,"-2,977.44",DECOY FARM,CARE ESTABLISHMENT,LD - East Locality,LD - East Cambs - Special Needs,Residential Care
Cambridgeshire County Council,31-Jan-19,51300677378,"-2,977.44",DECOY FARM,CARE ESTABLISHMENT,LD - East Locality,LD - East Cambs - Special Needs,Residential Care
Cambridgeshire County Council,31-Jan-19,51300677358,"-2,977.44",DECOY FARM,CARE ESTABLISHMENT,LD - East Locality,LD - East Cambs - Special Needs,Residential Care
Cambridgeshire County Council,31-Jan-19,51300677345,"-2,977.44",DECOY FARM,CARE ESTABLISHMENT,LD - East Locality,LD - East Cambs - Special Needs,Residential Care
Cambridgeshire County Council,31-Jan-19,51300677432,"-2,977.44",DECOY FARM,CARE ESTABLISHMENT,LD - East Locality,LD - East Cambs - Special Needs,Residential Care
Cambridgeshire County Council,31-Jan-19,51300684580,"-2,977.44",DECOY FARM,CARE ESTABLISHMENT,LD - East Locality,LD - East Cambs - Special Needs,Residential Care
Cambridgeshire County Council,31-Jan-19,51300684611,"-2,977.44",DECOY FARM,CARE ESTABLISHMENT,LD - East Locality,LD - East Cambs - Special Needs,Residential Care
Cambridgeshire County Council,31-Jan-19,51300684595,"-2,977.44",DECOY FARM,CARE ESTABLISHMENT,LD - East Locality,LD - East Cambs - Special Needs,Residential Care
Cambridgeshire County Council,31-Jan-19,51300677456,"-2,977.44",DECOY FARM,CARE ESTABLISHMENT,LD - East Locality,LD - East Cambs - Special Needs,Residential Care
Cambridgeshire County Council,31-Jan-19,51300684629,"-2,977.44",DECOY FARM,CARE ESTABLISHMENT,LD - East Locality,LD - East Cambs - Special Needs,Residential Care
Cambridgeshire County Council,31-Jan-19,51300684633,"-2,977.44",DECOY FARM,CARE ESTABLISHMENT,LD - East Locality,LD - East Cambs - Special Needs,Residential Care
Cambridgeshire County Council,31-Jan-19,51300684579,"-2,977.44",DECOY FARM,CARE ESTABLISHMENT,LD - East Locality,LD - East Cambs - Special Needs,Residential Care
Cambridgeshire County Council,31-Jan-19,51300677323,"-2,977.44",DECOY FARM,CARE ESTABLISHMENT,LD - East Locality,LD - East Cambs - Special Needs,Residential Care
Cambridgeshire County Council,31-Jan-19,51300677399,"-2,977.44",DECOY FARM,CARE ESTABLISHMENT,LD - East Locality,LD - East Cambs - Special Needs,Residential Care
Cambridgeshire County Council,31-Jan-19,51300684593,"-2,977.44",DECOY FARM,CARE ESTABLISHMENT,LD - East Locality,LD - East Cambs - Special Needs,Residential Care
Cambridgeshire County Council,31-Jan-19,51300684524,"-2,977.44",DECOY FARM,CARE ESTABLISHMENT,LD - East Locality,LD - East Cambs - Special Needs,Residential Care
Cambridgeshire County Council,31-Jan-19,51300684522,"-2,977.44",DECOY FARM,CARE ESTABLISHMENT,LD - East Locality,LD - East Cambs - Special Needs,Residential Care
Cambridgeshire County Council,31-Jan-19,51300677404,"-2,977.44",DECOY FARM,CARE ESTABLISHMENT,LD - East Locality,LD - East Cambs - Special Needs,Residential Care
Cambridgeshire County Council,31-Jan-19,51300677421,"-2,977.44",DECOY FARM,CARE ESTABLISHMENT,LD - East Locality,LD - East Cambs - Special Needs,Residential Care
Cambridgeshire County Council,31-Jan-19,51300677324,"-2,977.44",DECOY FARM,CARE ESTABLISHMENT,LD - East Locality,LD - East Cambs - Special Needs,Residential Care
Cambridgeshire County Council,31-Jan-19,51300684588,"-2,977.44",DECOY FARM,CARE ESTABLISHMENT,LD - East Locality,LD - East Cambs - Special Needs,Residential Care
Cambridgeshire County Council,31-Jan-19,51300684539,"-2,977.44",DECOY FARM,CARE ESTABLISHMENT,LD - East Locality,LD - East Cambs - Special Needs,Residential Care
Cambridgeshire County Council,31-Jan-19,51300684614,"-2,977.44",DECOY FARM,CARE ESTABLISHMENT,LD - East Locality,LD - East Cambs - Special Needs,Residential Care
Cambridgeshire County Council,31-Jan-19,51300684637,"-2,977.44",DECOY FARM,CARE ESTABLISHMENT,LD - East Locality,LD - East Cambs - Special Needs,Residential Care
Cambridgeshire County Council,31-Jan-19,51300677373,"-2,977.44",DECOY FARM,CARE ESTABLISHMENT,LD - East Locality,LD - East Cambs - Special Needs,Residential Care
Cambridgeshire County Council,31-Jan-19,51300677408,"-2,977.44",DECOY FARM,CARE ESTABLISHMENT,LD - East Locality,LD - East Cambs - Special Needs,Residential Care
Cambridgeshire County Council,31-Jan-19,51300677415,"-2,977.44",DECOY FARM,CARE ESTABLISHMENT,LD - East Locality,LD - East Cambs - Special Needs,Residential Care
Cambridgeshire County Council,31-Jan-19,51300684653,"-2,977.44",DECOY FARM,CARE ESTABLISHMENT,LD - East Locality,LD - East Cambs - Special Needs,Residential Care
Cambridgeshire County Council,31-Jan-19,51300684624,"-2,977.44",DECOY FARM,CARE ESTABLISHMENT,LD - East Locality,LD - East Cambs - Special Needs,Residential Care
Cambridgeshire County Council,31-Jan-19,51300677327,"-2,977.44",DECOY FARM,CARE ESTABLISHMENT,LD - East Locality,LD - East Cambs - Special Needs,Residential Care
Cambridgeshire County Council,31-Jan-19,51300677372,"-2,977.44",DECOY FARM,CARE ESTABLISHMENT,LD - East Locality,LD - East Cambs - Special Needs,Residential Care
Cambridgeshire County Council,31-Jan-19,51300684651,"-2,977.44",DECOY FARM,CARE ESTABLISHMENT,LD - East Locality,LD - East Cambs - Special Needs,Residential Care
Cambridgeshire County Council,31-Jan-19,51300684543,"-2,977.44",DECOY FARM,CARE ESTABLISHMENT,LD - East Locality,LD - East Cambs - Special Needs,Residential Care
Cambridgeshire County Council,31-Jan-19,51300684586,"-2,977.44",DECOY FARM,CARE ESTABLISHMENT,LD - East Locality,LD - East Cambs - Special Needs,Residential Care
Cambridgeshire County Council,31-Jan-19,51300684529,"-2,977.44",DECOY FARM,CARE ESTABLISHMENT,LD - East Locality,LD - East Cambs - Special Needs,Residential Care
Cambridgeshire County Council,31-Jan-19,51300677445,"-2,977.44",DECOY FARM,CARE ESTABLISHMENT,LD - East Locality,LD - East Cambs - Special Needs,Residential Care
Cambridgeshire County Council,31-Jan-19,51300684569,"-2,977.44",DECOY FARM,CARE ESTABLISHMENT,LD - East Locality,LD - East Cambs - Special Needs,Residential Care
Cambridgeshire County Council,31-Jan-19,51300677371,"-2,977.44",DECOY FARM,CARE ESTABLISHMENT,LD - East Locality,LD - East Cambs - Special Needs,Residential Care
Cambridgeshire County Council,31-Jan-19,51300677360,"-2,977.44",DECOY FARM,CARE ESTABLISHMENT,LD - East Locality,LD - East Cambs - Special Needs,Residential Care
Cambridgeshire County Council,31-Jan-19,51300684667,"-2,977.44",DECOY FARM,CARE ESTABLISHMENT,LD - East Locality,LD - East Cambs - Special Needs,Residential Care
Cambridgeshire County Council,31-Jan-19,51300677406,"-2,977.44",DECOY FARM,CARE ESTABLISHMENT,LD - East Locality,LD - East Cambs - Special Needs,Residential Care
Cambridgeshire County Council,31-Jan-19,51300677366,"-2,977.44",DECOY FARM,CARE ESTABLISHMENT,LD - East Locality,LD - East Cambs - Special Needs,Residential Care
Cambridgeshire County Council,31-Jan-19,51300677362,"-2,977.44",DECOY FARM,CARE ESTABLISHMENT,LD - East Locality,LD - East Cambs - Special Needs,Residential Care
Cambridgeshire County Council,31-Jan-19,51300684544,"-2,977.44",DECOY FARM,CARE ESTABLISHMENT,LD - East Locality,LD - East Cambs - Special Needs,Residential Care
Cambridgeshire County Council,04-Jan-19,51300629750,"-2,957.18",MIDFIELD LODGE CARE CENTRE,CARE ESTABLISHMENT,OP - City & South Blocks,City and South - Long term blocks,Nursing Care
Cambridgeshire County Council,09-Jan-19,51300570121,"-2,956.44",QUALITY FOSTER CARE LTD,CARE ESTABLISHMENT,LAC Placements,Placements - Social Care,Agency Placements - Out of  County
Cambridgeshire County Council,10-Jan-19,51300657047,"-2,723.95",CARETECH COMMUNITY SERVICES,CARE ESTABLISHMENT,LD - Hunts Locality,LD - Huntigndonshire  - Special Needs,Residential Care
Cambridgeshire County Council,10-Jan-19,51300657049,"-2,723.95",CARETECH COMMUNITY SERVICES,CARE ESTABLISHMENT,LD - Hunts Locality,LD - Huntigndonshire  - Special Needs,Residential Care
Cambridgeshire County Council,10-Jan-19,51300657043,"-2,723.95",CARETECH COMMUNITY SERVICES,CARE ESTABLISHMENT,LD - Hunts Locality,LD - Huntigndonshire  - Special Needs,Residential Care
Cambridgeshire County Council,10-Jan-19,51300657039,"-2,723.95",CARETECH COMMUNITY SERVICES,CARE ESTABLISHMENT,LD - Hunts Locality,LD - Huntigndonshire  - Special Needs,Residential Care
Cambridgeshire County Council,10-Jan-19,51300657046,"-2,723.95",CARETECH COMMUNITY SERVICES,CARE ESTABLISHMENT,LD - Hunts Locality,LD - Huntigndonshire  - Special Needs,Residential Care
Cambridgeshire County Council,08-Jan-19,51300655148,"-2,642.75",COMPASS FOSTERING CENTRAL LIMITED,CARE ESTABLISHMENT,Unaccompanied Asylum Seeking Children,Unaccompanied Asylum Seeking Children <18,Asylum Seekers
Cambridgeshire County Council,28-Jan-19,51300674027,"-2,640.00",BEDAZZLE EXPRESSIVE ARTS,EDUCATION,SEND High Needs Top Up,SEND Specialist Services-High needs top-up-Post 16,Educational Materials
Cambridgeshire County Council,30-Jan-19,51300682362,"-2,623.11",THE ELMS NURSING HOME,CARE ESTABLISHMENT,OP - Fenland Blocks,Fenland - Long term blocks,Nursing Care
Cambridgeshire County Council,31-Jan-19,51300690939,"-2,607.66",SENSE (MIDLANDS),CARE ESTABLISHMENT,LD - Hunts Locality,LD - Huntigndonshire  - Care,Residential Care
Cambridgeshire County Council,31-Jan-19,51300690936,"-2,607.66",SENSE (MIDLANDS),CARE ESTABLISHMENT,LD - Hunts Locality,LD - Huntigndonshire  - Care,Residential Care
Cambridgeshire County Council,31-Jan-19,51300690900,"-2,607.66",SENSE (MIDLANDS),CARE ESTABLISHMENT,LD - Hunts Locality,LD - Huntigndonshire  - Care,Residential Care
Cambridgeshire County Council,31-Jan-19,51300690876,"-2,607.66",SENSE (MIDLANDS),CARE ESTABLISHMENT,LD - Hunts Locality,LD - Huntigndonshire  - Care,Residential Care
Cambridgeshire County Council,31-Jan-19,51300690912,"-2,607.66",SENSE (MIDLANDS),CARE ESTABLISHMENT,LD - Hunts Locality,LD - Huntigndonshire  - Care,Residential Care
Cambridgeshire County Council,31-Jan-19,51300690891,"-2,607.66",SENSE (MIDLANDS),CARE ESTABLISHMENT,LD - Hunts Locality,LD - Huntigndonshire  - Care,Residential Care
Cambridgeshire County Council,31-Jan-19,51300690868,"-2,607.66",SENSE (MIDLANDS),CARE ESTABLISHMENT,LD - Hunts Locality,LD - Huntigndonshire  - Care,Residential Care
Cambridgeshire County Council,31-Jan-19,51300690873,"-2,607.66",SENSE (MIDLANDS),CARE ESTABLISHMENT,LD - Hunts Locality,LD - Huntigndonshire  - Care,Residential Care
Cambridgeshire County Council,31-Jan-19,51300690881,"-2,607.66",SENSE (MIDLANDS),CARE ESTABLISHMENT,LD - Hunts Locality,LD - Huntigndonshire  - Care,Residential Care
Cambridgeshire County Council,31-Jan-19,51300690929,"-2,607.66",SENSE (MIDLANDS),CARE ESTABLISHMENT,LD - Hunts Locality,LD - Huntigndonshire  - Care,Residential Care
Cambridgeshire County Council,31-Jan-19,51300690922,"-2,607.66",SENSE (MIDLANDS),CARE ESTABLISHMENT,LD - Hunts Locality,LD - Huntigndonshire  - Care,Residential Care
Cambridgeshire County Council,31-Jan-19,51300690937,"-2,607.66",SENSE (MIDLANDS),CARE ESTABLISHMENT,LD - Hunts Locality,LD - Huntigndonshire  - Care,Residential Care
Cambridgeshire County Council,31-Jan-19,51300690940,"-2,607.66",SENSE (MIDLANDS),CARE ESTABLISHMENT,LD - Hunts Locality,LD - Huntigndonshire  - Care,Residential Care
Cambridgeshire County Council,31-Jan-19,51300690867,"-2,607.66",SENSE (MIDLANDS),CARE ESTABLISHMENT,LD - Hunts Locality,LD - Huntigndonshire  - Care,Residential Care
Cambridgeshire County Council,31-Jan-19,51300690887,"-2,607.66",SENSE (MIDLANDS),CARE ESTABLISHMENT,LD - Hunts Locality,LD - Huntigndonshire  - Care,Residential Care
Cambridgeshire County Council,31-Jan-19,51300690911,"-2,607.66",SENSE (MIDLANDS),CARE ESTABLISHMENT,LD - Hunts Locality,LD - Huntigndonshire  - Care,Residential Care
Cambridgeshire County Council,31-Jan-19,51300690897,"-2,607.66",SENSE (MIDLANDS),CARE ESTABLISHMENT,LD - Hunts Locality,LD - Huntigndonshire  - Care,Residential Care
Cambridgeshire County Council,31-Jan-19,51300690880,"-2,607.66",SENSE (MIDLANDS),CARE ESTABLISHMENT,LD - Hunts Locality,LD - Huntigndonshire  - Care,Residential Care
Cambridgeshire County Council,31-Jan-19,51300690892,"-2,607.66",SENSE (MIDLANDS),CARE ESTABLISHMENT,LD - Hunts Locality,LD - Huntigndonshire  - Care,Residential Care
Cambridgeshire County Council,31-Jan-19,51300690872,"-2,607.66",SENSE (MIDLANDS),CARE ESTABLISHMENT,LD - Hunts Locality,LD - Huntigndonshire  - Care,Residential Care
Cambridgeshire County Council,31-Jan-19,51300690935,"-2,607.66",SENSE (MIDLANDS),CARE ESTABLISHMENT,LD - Hunts Locality,LD - Huntigndonshire  - Care,Residential Care
Cambridgeshire County Council,31-Jan-19,51300690893,"-2,607.66",SENSE (MIDLANDS),CARE ESTABLISHMENT,LD - Hunts Locality,LD - Huntigndonshire  - Care,Residential Care
Cambridgeshire County Council,31-Jan-19,51300690894,"-2,607.66",SENSE (MIDLANDS),CARE ESTABLISHMENT,LD - Hunts Locality,LD - Huntigndonshire  - Care,Residential Care
Cambridgeshire County Council,31-Jan-19,51300690908,"-2,607.66",SENSE (MIDLANDS),CARE ESTABLISHMENT,LD - Hunts Locality,LD - Huntigndonshire  - Care,Residential Care
Cambridgeshire County Council,04-Jan-19,51300629385,"-2,552.09",DECOY FARM,CARE ESTABLISHMENT,LD - East Locality,LD - East Cambs - Special Needs,Residential Care
Cambridgeshire County Council,04-Jan-19,51300622548,"-2,552.09",DECOY FARM,CARE ESTABLISHMENT,LD - East Locality,LD - East Cambs - Special Needs,Residential Care
Cambridgeshire County Council,17-Jan-19,51300666587,"-2,552.09",DECOY FARM,CARE ESTABLISHMENT,LD - East Locality,LD - East Cambs - Special Needs,Residential Care
Cambridgeshire County Council,17-Jan-19,51300657463,"-2,552.09",DECOY FARM,CARE ESTABLISHMENT,LD - East Locality,LD - East Cambs - Special Needs,Residential Care
Cambridgeshire County Council,31-Jan-19,51300677367,"-2,552.09",DECOY FARM,CARE ESTABLISHMENT,LD - East Locality,LD - East Cambs - Special Needs,Residential Care
Cambridgeshire County Council,31-Jan-19,51300684589,"-2,552.09",DECOY FARM,CARE ESTABLISHMENT,LD - East Locality,LD - East Cambs - Special Needs,Residential Care
Cambridgeshire County Council,10-Jan-19,51300663912,"-2,542.49",VOYAGE,CARE ESTABLISHMENT,LD - East Locality,LD - East Cambs - Special Needs,Residential Care
Cambridgeshire County Council,10-Jan-19,51300663934,"-2,542.49",VOYAGE,CARE ESTABLISHMENT,LD - East Locality,LD - East Cambs - Special Needs,Residential Care
Cambridgeshire County Council,10-Jan-19,51300663937,"-2,542.49",VOYAGE,CARE ESTABLISHMENT,LD - East Locality,LD - East Cambs - Special Needs,Residential Care
Cambridgeshire County Council,10-Jan-19,51300664008,"-2,542.49",VOYAGE,CARE ESTABLISHMENT,LD - East Locality,LD - East Cambs - Special Needs,Residential Care
Cambridgeshire County Council,10-Jan-19,51300664004,"-2,542.49",VOYAGE,CARE ESTABLISHMENT,LD - East Locality,LD - East Cambs - Special Needs,Residential Care
Cambridgeshire County Council,10-Jan-19,51300663991,"-2,542.49",VOYAGE,CARE ESTABLISHMENT,LD - East Locality,LD - East Cambs - Special Needs,Residential Care
Cambridgeshire County Council,10-Jan-19,51300663926,"-2,542.49",VOYAGE,CARE ESTABLISHMENT,LD - East Locality,LD - East Cambs - Special Needs,Residential Care
Cambridgeshire County Council,10-Jan-19,51300663956,"-2,542.49",VOYAGE,CARE ESTABLISHMENT,LD - East Locality,LD - East Cambs - Special Needs,Residential Care
Cambridgeshire County Council,10-Jan-19,51300663943,"-2,542.49",VOYAGE,CARE ESTABLISHMENT,LD - East Locality,LD - East Cambs - Special Needs,Residential Care
Cambridgeshire County Council,10-Jan-19,51300663942,"-2,542.49",VOYAGE,CARE ESTABLISHMENT,LD - East Locality,LD - East Cambs - Special Needs,Residential Care
Cambridgeshire County Council,10-Jan-19,51300664002,"-2,542.49",VOYAGE,CARE ESTABLISHMENT,LD - East Locality,LD - East Cambs - Special Needs,Residential Care
Cambridgeshire County Council,10-Jan-19,51300664010,"-2,542.49",VOYAGE,CARE ESTABLISHMENT,LD - East Locality,LD - East Cambs - Special Needs,Residential Care
Cambridgeshire County Council,10-Jan-19,51300663953,"-2,542.49",VOYAGE,CARE ESTABLISHMENT,LD - East Locality,LD - East Cambs - Special Needs,Residential Care
Cambridgeshire County Council,10-Jan-19,51300663964,"-2,542.49",VOYAGE,CARE ESTABLISHMENT,LD - East Locality,LD - East Cambs - Special Needs,Residential Care
Cambridgeshire County Council,10-Jan-19,51300663983,"-2,542.49",VOYAGE,CARE ESTABLISHMENT,LD - East Locality,LD - East Cambs - Special Needs,Residential Care
Cambridgeshire County Council,10-Jan-19,51300663896,"-2,542.49",VOYAGE,CARE ESTABLISHMENT,LD - East Locality,LD - East Cambs - Special Needs,Residential Care
Cambridgeshire County Council,10-Jan-19,51300663921,"-2,542.49",VOYAGE,CARE ESTABLISHMENT,LD - East Locality,LD - East Cambs - Special Needs,Residential Care
Cambridgeshire County Council,10-Jan-19,51300663910,"-2,542.49",VOYAGE,CARE ESTABLISHMENT,LD - East Locality,LD - East Cambs - Special Needs,Residential Care
Cambridgeshire County Council,10-Jan-19,51300663909,"-2,542.49",VOYAGE,CARE ESTABLISHMENT,LD - East Locality,LD - East Cambs - Special Needs,Residential Care
Cambridgeshire County Council,10-Jan-19,51300663908,"-2,542.49",VOYAGE,CARE ESTABLISHMENT,LD - East Locality,LD - East Cambs - Special Needs,Residential Care
Cambridgeshire County Council,10-Jan-19,51300663931,"-2,542.49",VOYAGE,CARE ESTABLISHMENT,LD - East Locality,LD - East Cambs - Special Needs,Residential Care
Cambridgeshire County Council,10-Jan-19,51300663955,"-2,542.49",VOYAGE,CARE ESTABLISHMENT,LD - East Locality,LD - East Cambs - Special Needs,Residential Care
Cambridgeshire County Council,10-Jan-19,51300663940,"-2,542.49",VOYAGE,CARE ESTABLISHMENT,LD - East Locality,LD - East Cambs - Special Needs,Residential Care
Cambridgeshire County Council,10-Jan-19,51300663973,"-2,542.49",VOYAGE,CARE ESTABLISHMENT,LD - East Locality,LD - East Cambs - Special Needs,Residential Care
Cambridgeshire County Council,10-Jan-19,51300663949,"-2,542.49",VOYAGE,CARE ESTABLISHMENT,LD - East Locality,LD - East Cambs - Special Needs,Residential Care
Cambridgeshire County Council,10-Jan-19,51300663960,"-2,542.49",VOYAGE,CARE ESTABLISHMENT,LD - East Locality,LD - East Cambs - Special Needs,Residential Care
Cambridgeshire County Council,10-Jan-19,51300663985,"-2,542.49",VOYAGE,CARE ESTABLISHMENT,LD - East Locality,LD - East Cambs - Special Needs,Residential Care
Cambridgeshire County Council,10-Jan-19,51300664006,"-2,542.49",VOYAGE,CARE ESTABLISHMENT,LD - East Locality,LD - East Cambs - Special Needs,Residential Care
Cambridgeshire County Council,10-Jan-19,51300663976,"-2,542.49",VOYAGE,CARE ESTABLISHMENT,LD - East Locality,LD - East Cambs - Special Needs,Residential Care
Cambridgeshire County Council,10-Jan-19,51300663905,"-2,542.49",VOYAGE,CARE ESTABLISHMENT,LD - East Locality,LD - East Cambs - Special Needs,Residential Care
Cambridgeshire County Council,10-Jan-19,51300663902,"-2,542.49",VOYAGE,CARE ESTABLISHMENT,LD - East Locality,LD - East Cambs - Special Needs,Residential Care
Cambridgeshire County Council,10-Jan-19,51300664013,"-2,542.49",VOYAGE,CARE ESTABLISHMENT,LD - East Locality,LD - East Cambs - Special Needs,Residential Care
Cambridgeshire County Council,10-Jan-19,51300664014,"-2,542.49",VOYAGE,CARE ESTABLISHMENT,LD - East Locality,LD - East Cambs - Special Needs,Residential Care
Cambridgeshire County Council,10-Jan-19,51300663997,"-2,542.49",VOYAGE,CARE ESTABLISHMENT,LD - East Locality,LD - East Cambs - Special Needs,Residential Care
Cambridgeshire County Council,10-Jan-19,51300663982,"-2,542.49",VOYAGE,CARE ESTABLISHMENT,LD - East Locality,LD - East Cambs - Special Needs,Residential Care
Cambridgeshire County Council,10-Jan-19,51300663904,"-2,542.49",VOYAGE,CARE ESTABLISHMENT,LD - East Locality,LD - East Cambs - Special Needs,Residential Care
Cambridgeshire County Council,10-Jan-19,51300663977,"-2,542.49",VOYAGE,CARE ESTABLISHMENT,LD - East Locality,LD - East Cambs - Special Needs,Residential Care
Cambridgeshire County Council,10-Jan-19,51300663957,"-2,542.49",VOYAGE,CARE ESTABLISHMENT,LD - East Locality,LD - East Cambs - Special Needs,Residential Care
Cambridgeshire County Council,10-Jan-19,51300663916,"-2,542.49",VOYAGE,CARE ESTABLISHMENT,LD - East Locality,LD - East Cambs - Special Needs,Residential Care
Cambridgeshire County Council,10-Jan-19,51300663981,"-2,542.49",VOYAGE,CARE ESTABLISHMENT,LD - East Locality,LD - East Cambs - Special Needs,Residential Care
Cambridgeshire County Council,04-Jan-19,51300603208,"-2,483.84",FITZROY SUPPORT RE 28 RIVERBANK,CARE ESTABLISHMENT,LD - Fenland Locality,LD - Fenland  - Special Needs,Supported Living
Cambridgeshire County Council,04-Jan-19,51300603224,"-2,483.84",FITZROY SUPPORT RE 28 RIVERBANK,CARE ESTABLISHMENT,LD - Fenland Locality,LD - Fenland  - Special Needs,Supported Living
Cambridgeshire County Council,04-Jan-19,51300603200,"-2,483.84",FITZROY SUPPORT RE 28 RIVERBANK,CARE ESTABLISHMENT,LD - Fenland Locality,LD - Fenland  - Special Needs,Supported Living
Cambridgeshire County Council,04-Jan-19,51300603233,"-2,483.84",FITZROY SUPPORT RE 28 RIVERBANK,CARE ESTABLISHMENT,LD - Fenland Locality,LD - Fenland  - Special Needs,Supported Living
Cambridgeshire County Council,04-Jan-19,51300603219,"-2,483.84",FITZROY SUPPORT RE 28 RIVERBANK,CARE ESTABLISHMENT,LD - Fenland Locality,LD - Fenland  - Special Needs,Supported Living
Cambridgeshire County Council,04-Jan-19,51300603202,"-2,483.84",FITZROY SUPPORT RE 28 RIVERBANK,CARE ESTABLISHMENT,LD - Fenland Locality,LD - Fenland  - Special Needs,Supported Living
Cambridgeshire County Council,04-Jan-19,51300603203,"-2,483.84",FITZROY SUPPORT RE 28 RIVERBANK,CARE ESTABLISHMENT,LD - Fenland Locality,LD - Fenland  - Special Needs,Supported Living
Cambridgeshire County Council,04-Jan-19,51300603223,"-2,483.84",FITZROY SUPPORT RE 28 RIVERBANK,CARE ESTABLISHMENT,LD - Fenland Locality,LD - Fenland  - Special Needs,Supported Living
Cambridgeshire County Council,31-Jan-19,51300668651,"-2,474.16",AFFINITY TRUST,CARE ESTABLISHMENT,LD - Fenland Locality,LD - Fenland  - Special Needs,Domiciliary Care
Cambridgeshire County Council,31-Jan-19,51300668653,"-2,474.16",AFFINITY TRUST,CARE ESTABLISHMENT,LD - Fenland Locality,LD - Fenland  - Special Needs,Domiciliary Care
Cambridgeshire County Council,31-Jan-19,51300668652,"-2,474.16",AFFINITY TRUST,CARE ESTABLISHMENT,LD - Fenland Locality,LD - Fenland  - Special Needs,Domiciliary Care
Cambridgeshire County Council,31-Jan-19,51300668658,"-2,474.16",AFFINITY TRUST,CARE ESTABLISHMENT,LD - Fenland Locality,LD - Fenland  - Special Needs,Domiciliary Care
Cambridgeshire County Council,31-Jan-19,51300668650,"-2,474.16",AFFINITY TRUST,CARE ESTABLISHMENT,LD - Fenland Locality,LD - Fenland  - Special Needs,Domiciliary Care
Cambridgeshire County Council,30-Jan-19,51300682362,"-2,442.36",THE ELMS NURSING HOME,CARE ESTABLISHMENT,OP - Fenland Blocks,Fenland - Long term blocks,Nursing Care
Cambridgeshire County Council,30-Jan-19,51300682362,"-2,442.36",THE ELMS NURSING HOME,CARE ESTABLISHMENT,OP - Fenland Blocks,Fenland - Long term blocks,Nursing Care
Cambridgeshire County Council,30-Jan-19,51300682362,"-2,442.36",THE ELMS NURSING HOME,CARE ESTABLISHMENT,OP - Fenland Blocks,Fenland - Long term blocks,Nursing Care
Cambridgeshire County Council,30-Jan-19,51300682362,"-2,442.36",THE ELMS NURSING HOME,CARE ESTABLISHMENT,OP - Fenland Blocks,Fenland - Long term blocks,Nursing Care
Cambridgeshire County Council,30-Jan-19,51300682362,"-2,442.36",THE ELMS NURSING HOME,CARE ESTABLISHMENT,OP - Fenland Blocks,Fenland - Long term blocks,Nursing Care
Cambridgeshire County Council,07-Jan-19,51300654309,"-2,337.29",DIMENSIONS (UK) LTD,CARE ESTABLISHMENT,LD - South Locality,LD - South Cambs - Special Needs,Supported Living
Cambridgeshire County Council,07-Jan-19,51300654403,"-2,337.29",DIMENSIONS (UK) LTD,CARE ESTABLISHMENT,LD - South Locality,LD - South Cambs - Special Needs,Supported Living
Cambridgeshire County Council,07-Jan-19,51300654397,"-2,337.29",DIMENSIONS (UK) LTD,CARE ESTABLISHMENT,LD - South Locality,LD - South Cambs - Special Needs,Supported Living
Cambridgeshire County Council,07-Jan-19,51300654315,"-2,337.29",DIMENSIONS (UK) LTD,CARE ESTABLISHMENT,LD - South Locality,LD - South Cambs - Special Needs,Supported Living
Cambridgeshire County Council,07-Jan-19,51300654375,"-2,337.29",DIMENSIONS (UK) LTD,CARE ESTABLISHMENT,LD - South Locality,LD - South Cambs - Special Needs,Supported Living
Cambridgeshire County Council,07-Jan-19,51300654301,"-2,337.29",DIMENSIONS (UK) LTD,CARE ESTABLISHMENT,LD - South Locality,LD - South Cambs - Special Needs,Supported Living
Cambridgeshire County Council,07-Jan-19,51300654321,"-2,337.29",DIMENSIONS (UK) LTD,CARE ESTABLISHMENT,LD - South Locality,LD - South Cambs - Special Needs,Supported Living
Cambridgeshire County Council,07-Jan-19,51300654328,"-2,337.29",DIMENSIONS (UK) LTD,CARE ESTABLISHMENT,LD - South Locality,LD - South Cambs - Special Needs,Supported Living
Cambridgeshire County Council,07-Jan-19,51300654369,"-2,337.29",DIMENSIONS (UK) LTD,CARE ESTABLISHMENT,LD - South Locality,LD - South Cambs - Special Needs,Supported Living
Cambridgeshire County Council,07-Jan-19,51300654515,"-2,337.29",DIMENSIONS (UK) LTD,CARE ESTABLISHMENT,LD - South Locality,LD - South Cambs - Special Needs,Supported Living
Cambridgeshire County Council,07-Jan-19,51300654522,"-2,337.29",DIMENSIONS (UK) LTD,CARE ESTABLISHMENT,LD - South Locality,LD - South Cambs - Special Needs,Supported Living
Cambridgeshire County Council,07-Jan-19,51300654334,"-2,337.29",DIMENSIONS (UK) LTD,CARE ESTABLISHMENT,LD - South Locality,LD - South Cambs - Special Needs,Supported Living
Cambridgeshire County Council,07-Jan-19,51300654326,"-2,337.29",DIMENSIONS (UK) LTD,CARE ESTABLISHMENT,LD - South Locality,LD - South Cambs - Special Needs,Supported Living
Cambridgeshire County Council,07-Jan-19,51300654402,"-2,337.29",DIMENSIONS (UK) LTD,CARE ESTABLISHMENT,LD - South Locality,LD - South Cambs - Special Needs,Supported Living
Cambridgeshire County Council,07-Jan-19,51300654507,"-2,337.29",DIMENSIONS (UK) LTD,CARE ESTABLISHMENT,LD - South Locality,LD - South Cambs - Special Needs,Supported Living
Cambridgeshire County Council,07-Jan-19,51300654307,"-2,337.29",DIMENSIONS (UK) LTD,CARE ESTABLISHMENT,LD - South Locality,LD - South Cambs - Special Needs,Supported Living
Cambridgeshire County Council,07-Jan-19,51300654299,"-2,337.29",DIMENSIONS (UK) LTD,CARE ESTABLISHMENT,LD - City Locality,LD - City - Special Needs,Supported Living
Cambridgeshire County Council,07-Jan-19,51300654398,"-2,337.29",DIMENSIONS (UK) LTD,CARE ESTABLISHMENT,LD - City Locality,LD - City - Special Needs,Supported Living
Cambridgeshire County Council,07-Jan-19,51300654521,"-2,337.29",DIMENSIONS (UK) LTD,CARE ESTABLISHMENT,LD - City Locality,LD - City - Special Needs,Supported Living
Cambridgeshire County Council,07-Jan-19,51300654372,"-2,337.29",DIMENSIONS (UK) LTD,CARE ESTABLISHMENT,LD - City Locality,LD - City - Special Needs,Supported Living
Cambridgeshire County Council,07-Jan-19,51300654374,"-2,337.29",DIMENSIONS (UK) LTD,CARE ESTABLISHMENT,LD - City Locality,LD - City - Special Needs,Supported Living
Cambridgeshire County Council,07-Jan-19,51300654382,"-2,337.29",DIMENSIONS (UK) LTD,CARE ESTABLISHMENT,LD - City Locality,LD - City - Special Needs,Supported Living
Cambridgeshire County Council,07-Jan-19,51300654392,"-2,337.29",DIMENSIONS (UK) LTD,CARE ESTABLISHMENT,LD - City Locality,LD - City - Special Needs,Supported Living
Cambridgeshire County Council,07-Jan-19,51300654406,"-2,337.29",DIMENSIONS (UK) LTD,CARE ESTABLISHMENT,LD - City Locality,LD - City - Special Needs,Supported Living
Cambridgeshire County Council,07-Jan-19,51300654518,"-2,337.29",DIMENSIONS (UK) LTD,CARE ESTABLISHMENT,LD - City Locality,LD - City - Special Needs,Supported Living
Cambridgeshire County Council,07-Jan-19,51300654313,"-2,337.29",DIMENSIONS (UK) LTD,CARE ESTABLISHMENT,LD - City Locality,LD - City - Special Needs,Supported Living
Cambridgeshire County Council,07-Jan-19,51300654327,"-2,337.29",DIMENSIONS (UK) LTD,CARE ESTABLISHMENT,LD - City Locality,LD - City - Special Needs,Supported Living
Cambridgeshire County Council,07-Jan-19,51300654363,"-2,337.29",DIMENSIONS (UK) LTD,CARE ESTABLISHMENT,LD - City Locality,LD - City - Special Needs,Supported Living
Cambridgeshire County Council,07-Jan-19,51300654368,"-2,337.29",DIMENSIONS (UK) LTD,CARE ESTABLISHMENT,LD - City Locality,LD - City - Special Needs,Supported Living
Cambridgeshire County Council,07-Jan-19,51300654377,"-2,337.29",DIMENSIONS (UK) LTD,CARE ESTABLISHMENT,LD - City Locality,LD - City - Special Needs,Supported Living
Cambridgeshire County Council,07-Jan-19,51300654391,"-2,337.29",DIMENSIONS (UK) LTD,CARE ESTABLISHMENT,LD - City Locality,LD - City - Special Needs,Supported Living
Cambridgeshire County Council,07-Jan-19,51300654389,"-2,337.29",DIMENSIONS (UK) LTD,CARE ESTABLISHMENT,LD - City Locality,LD - City - Special Needs,Supported Living
Cambridgeshire County Council,07-Jan-19,51300654523,"-2,337.29",DIMENSIONS (UK) LTD,CARE ESTABLISHMENT,LD - City Locality,LD - City - Special Needs,Supported Living
Cambridgeshire County Council,07-Jan-19,51300654320,"-2,337.29",DIMENSIONS (UK) LTD,CARE ESTABLISHMENT,LD - City Locality,LD - City - Special Needs,Supported Living
Cambridgeshire County Council,07-Jan-19,51300654303,"-2,337.29",DIMENSIONS (UK) LTD,CARE ESTABLISHMENT,LD - City Locality,LD - City - Special Needs,Supported Living
Cambridgeshire County Council,07-Jan-19,51300654324,"-2,337.29",DIMENSIONS (UK) LTD,CARE ESTABLISHMENT,LD - City Locality,LD - City - Special Needs,Supported Living
Cambridgeshire County Council,07-Jan-19,51300654330,"-2,337.29",DIMENSIONS (UK) LTD,CARE ESTABLISHMENT,LD - City Locality,LD - City - Special Needs,Supported Living
Cambridgeshire County Council,07-Jan-19,51300654510,"-2,337.29",DIMENSIONS (UK) LTD,CARE ESTABLISHMENT,LD - City Locality,LD - City - Special Needs,Supported Living
Cambridgeshire County Council,07-Jan-19,51300654304,"-2,337.29",DIMENSIONS (UK) LTD,CARE ESTABLISHMENT,LD - South Locality,LD - South Cambs - Special Needs,Supported Living
Cambridgeshire County Council,07-Jan-19,51300654526,"-2,337.29",DIMENSIONS (UK) LTD,CARE ESTABLISHMENT,LD - South Locality,LD - South Cambs - Special Needs,Supported Living
Cambridgeshire County Council,25-Jan-19,51300662200,"-2,337.29",DIMENSIONS (UK) LTD,CARE ESTABLISHMENT,LD - South Locality,LD - South Cambs - Special Needs,Supported Living
Cambridgeshire County Council,25-Jan-19,51300662205,"-2,337.29",DIMENSIONS (UK) LTD,CARE ESTABLISHMENT,LD - South Locality,LD - South Cambs - Special Needs,Supported Living
Cambridgeshire County Council,25-Jan-19,51300680016,"-2,337.29",DIMENSIONS (UK) LTD,CARE ESTABLISHMENT,LD - South Locality,LD - South Cambs - Special Needs,Supported Living
Cambridgeshire County Council,25-Jan-19,51300680021,"-2,337.29",DIMENSIONS (UK) LTD,CARE ESTABLISHMENT,LD - South Locality,LD - South Cambs - Special Needs,Supported Living
Cambridgeshire County Council,25-Jan-19,51300680022,"-2,337.29",DIMENSIONS (UK) LTD,CARE ESTABLISHMENT,LD - South Locality,LD - South Cambs - Special Needs,Supported Living
Cambridgeshire County Council,25-Jan-19,51300662194,"-2,337.29",DIMENSIONS (UK) LTD,CARE ESTABLISHMENT,LD - South Locality,LD - South Cambs - Special Needs,Supported Living
Cambridgeshire County Council,25-Jan-19,51300662204,"-2,337.29",DIMENSIONS (UK) LTD,CARE ESTABLISHMENT,LD - South Locality,LD - South Cambs - Special Needs,Supported Living
Cambridgeshire County Council,25-Jan-19,51300670973,"-2,337.29",DIMENSIONS (UK) LTD,CARE ESTABLISHMENT,LD - South Locality,LD - South Cambs - Special Needs,Supported Living
Cambridgeshire County Council,25-Jan-19,51300670976,"-2,337.29",DIMENSIONS (UK) LTD,CARE ESTABLISHMENT,LD - South Locality,LD - South Cambs - Special Needs,Supported Living
Cambridgeshire County Council,25-Jan-19,51300670977,"-2,337.29",DIMENSIONS (UK) LTD,CARE ESTABLISHMENT,LD - South Locality,LD - South Cambs - Special Needs,Supported Living
Cambridgeshire County Council,25-Jan-19,51300670978,"-2,337.29",DIMENSIONS (UK) LTD,CARE ESTABLISHMENT,LD - South Locality,LD - South Cambs - Special Needs,Supported Living
Cambridgeshire County Council,25-Jan-19,51300662198,"-2,337.29",DIMENSIONS (UK) LTD,CARE ESTABLISHMENT,LD - South Locality,LD - South Cambs - Special Needs,Supported Living
Cambridgeshire County Council,25-Jan-19,51300662207,"-2,337.29",DIMENSIONS (UK) LTD,CARE ESTABLISHMENT,LD - South Locality,LD - South Cambs - Special Needs,Supported Living
Cambridgeshire County Council,25-Jan-19,51300670979,"-2,337.29",DIMENSIONS (UK) LTD,CARE ESTABLISHMENT,LD - South Locality,LD - South Cambs - Special Needs,Supported Living
Cambridgeshire County Council,25-Jan-19,51300680014,"-2,337.29",DIMENSIONS (UK) LTD,CARE ESTABLISHMENT,LD - South Locality,LD - South Cambs - Special Needs,Supported Living
Cambridgeshire County Council,25-Jan-19,51300670981,"-2,337.29",DIMENSIONS (UK) LTD,CARE ESTABLISHMENT,LD - South Locality,LD - South Cambs - Special Needs,Supported Living
Cambridgeshire County Council,25-Jan-19,51300670980,"-2,337.29",DIMENSIONS (UK) LTD,CARE ESTABLISHMENT,LD - City Locality,LD - City - Special Needs,Supported Living
Cambridgeshire County Council,25-Jan-19,51300670971,"-2,337.29",DIMENSIONS (UK) LTD,CARE ESTABLISHMENT,LD - City Locality,LD - City - Special Needs,Supported Living
Cambridgeshire County Council,25-Jan-19,51300680019,"-2,337.29",DIMENSIONS (UK) LTD,CARE ESTABLISHMENT,LD - City Locality,LD - City - Special Needs,Supported Living
Cambridgeshire County Council,25-Jan-19,51300662191,"-2,337.29",DIMENSIONS (UK) LTD,CARE ESTABLISHMENT,LD - City Locality,LD - City - Special Needs,Supported Living
Cambridgeshire County Council,25-Jan-19,51300680015,"-2,337.29",DIMENSIONS (UK) LTD,CARE ESTABLISHMENT,LD - City Locality,LD - City - Special Needs,Supported Living
Cambridgeshire County Council,25-Jan-19,51300662202,"-2,337.29",DIMENSIONS (UK) LTD,CARE ESTABLISHMENT,LD - City Locality,LD - City - Special Needs,Supported Living
Cambridgeshire County Council,25-Jan-19,51300680028,"-2,337.29",DIMENSIONS (UK) LTD,CARE ESTABLISHMENT,LD - City Locality,LD - City - Special Needs,Supported Living
Cambridgeshire County Council,25-Jan-19,51300680030,"-2,337.29",DIMENSIONS (UK) LTD,CARE ESTABLISHMENT,LD - City Locality,LD - City - Special Needs,Supported Living
Cambridgeshire County Council,31-Jan-19,51300705966,"-2,337.29",DIMENSIONS (UK) LTD,CARE ESTABLISHMENT,LD - South Locality,LD - South Cambs - Special Needs,Supported Living
Cambridgeshire County Council,31-Jan-19,51300705983,"-2,337.29",DIMENSIONS (UK) LTD,CARE ESTABLISHMENT,LD - South Locality,LD - South Cambs - Special Needs,Supported Living
Cambridgeshire County Council,31-Jan-19,51300705995,"-2,337.29",DIMENSIONS (UK) LTD,CARE ESTABLISHMENT,LD - South Locality,LD - South Cambs - Special Needs,Supported Living
Cambridgeshire County Council,31-Jan-19,51300705986,"-2,337.29",DIMENSIONS (UK) LTD,CARE ESTABLISHMENT,LD - City Locality,LD - City - Special Needs,Supported Living
Cambridgeshire County Council,31-Jan-19,51300705994,"-2,337.29",DIMENSIONS (UK) LTD,CARE ESTABLISHMENT,LD - South Locality,LD - South Cambs - Special Needs,Supported Living
Cambridgeshire County Council,31-Jan-19,51300705979,"-2,337.29",DIMENSIONS (UK) LTD,CARE ESTABLISHMENT,LD - South Locality,LD - South Cambs - Special Needs,Supported Living
Cambridgeshire County Council,31-Jan-19,51300705988,"-2,337.29",DIMENSIONS (UK) LTD,CARE ESTABLISHMENT,LD - City Locality,LD - City - Special Needs,Supported Living
Cambridgeshire County Council,31-Jan-19,51300705990,"-2,337.29",DIMENSIONS (UK) LTD,CARE ESTABLISHMENT,LD - City Locality,LD - City - Special Needs,Supported Living
Cambridgeshire County Council,24-Jan-19,51300000950,"-2,278.08",MIDAS CARE LTD,CARE ESTABLISHMENT,Control Accounts,Control Accounts - Payables,Migration Only - Marked as Do Not Use
Cambridgeshire County Council,31-Jan-19,51300690907,"-2,235.14",SENSE (MIDLANDS),CARE ESTABLISHMENT,LD - Hunts Locality,LD - Huntigndonshire  - Care,Residential Care
Cambridgeshire County Council,30-Jan-19,51300508489,"-2,220.00",ABBEY HEALTHCARE (HUNTINGDON) LTD,CARE ESTABLISHMENT,OP - Hunts Blocks,Hunts - Short term blocks,Rehabilitation And Respite Care
Cambridgeshire County Council,04-Jan-19,51300601600,"-2,202.02",AUGUSTA CARE LTD,CARE ESTABLISHMENT,LD - Fenland Locality,LD - Fenland  - Special Needs,Domiciliary Care
Cambridgeshire County Council,04-Jan-19,51300601594,"-2,202.02",AUGUSTA CARE LTD,CARE ESTABLISHMENT,LD - Fenland Locality,LD - Fenland  - Special Needs,Domiciliary Care
Cambridgeshire County Council,04-Jan-19,51300601607,"-2,202.02",AUGUSTA CARE LTD,CARE ESTABLISHMENT,LD - Fenland Locality,LD - Fenland  - Special Needs,Domiciliary Care
Cambridgeshire County Council,04-Jan-19,51300601599,"-2,202.02",AUGUSTA CARE LTD,CARE ESTABLISHMENT,LD - Fenland Locality,LD - Fenland  - Special Needs,Domiciliary Care
Cambridgeshire County Council,04-Jan-19,51300601596,"-2,202.02",AUGUSTA CARE LTD,CARE ESTABLISHMENT,LD - Fenland Locality,LD - Fenland  - Special Needs,Domiciliary Care
Cambridgeshire County Council,04-Jan-19,51300601606,"-2,202.02",AUGUSTA CARE LTD,CARE ESTABLISHMENT,LD - Fenland Locality,LD - Fenland  - Special Needs,Domiciliary Care
Cambridgeshire County Council,04-Jan-19,51300601601,"-2,202.02",AUGUSTA CARE LTD,CARE ESTABLISHMENT,LD - Fenland Locality,LD - Fenland  - Special Needs,Domiciliary Care
Cambridgeshire County Council,04-Jan-19,51300601605,"-2,202.02",AUGUSTA CARE LTD,CARE ESTABLISHMENT,LD - Fenland Locality,LD - Fenland  - Special Needs,Domiciliary Care
Cambridgeshire County Council,04-Jan-19,51300629784,"-2,196.44",HC-ONE,CARE ESTABLISHMENT,OP - Fenland Blocks,Fenland - Long term blocks,Nursing Care
Cambridgeshire County Council,04-Jan-19,51300603822,"-2,155.38",AUGUSTA CARE LTD,CARE ESTABLISHMENT,LD - Fenland Locality,LD - Fenland  - Special Needs,Domiciliary Care
Cambridgeshire County Council,04-Jan-19,51300603820,"-2,155.38",AUGUSTA CARE LTD,CARE ESTABLISHMENT,LD - Fenland Locality,LD - Fenland  - Special Needs,Domiciliary Care
Cambridgeshire County Council,04-Jan-19,51300603810,"-2,155.38",AUGUSTA CARE LTD,CARE ESTABLISHMENT,LD - Fenland Locality,LD - Fenland  - Special Needs,Domiciliary Care
Cambridgeshire County Council,04-Jan-19,51300603812,"-2,155.38",AUGUSTA CARE LTD,CARE ESTABLISHMENT,LD - Fenland Locality,LD - Fenland  - Special Needs,Domiciliary Care
Cambridgeshire County Council,04-Jan-19,51300603815,"-2,155.38",AUGUSTA CARE LTD,CARE ESTABLISHMENT,LD - Fenland Locality,LD - Fenland  - Special Needs,Domiciliary Care
Cambridgeshire County Council,04-Jan-19,51300603816,"-2,155.38",AUGUSTA CARE LTD,CARE ESTABLISHMENT,LD - Fenland Locality,LD - Fenland  - Special Needs,Domiciliary Care
Cambridgeshire County Council,04-Jan-19,51300603818,"-2,155.38",AUGUSTA CARE LTD,CARE ESTABLISHMENT,LD - Fenland Locality,LD - Fenland  - Special Needs,Domiciliary Care
Cambridgeshire County Council,04-Jan-19,51300603809,"-2,155.38",AUGUSTA CARE LTD,CARE ESTABLISHMENT,LD - Fenland Locality,LD - Fenland  - Special Needs,Domiciliary Care
Cambridgeshire County Council,31-Jan-19,51300708761,"-1,998.50",VOYAGE,CARE ESTABLISHMENT,LD - City Locality,LD - City - Special Needs,Residential Care
Cambridgeshire County Council,31-Jan-19,51300708748,"-1,998.50",VOYAGE,CARE ESTABLISHMENT,LD - City Locality,LD - City - Special Needs,Residential Care
Cambridgeshire County Council,31-Jan-19,51300708745,"-1,998.50",VOYAGE,CARE ESTABLISHMENT,LD - City Locality,LD - City - Special Needs,Residential Care
Cambridgeshire County Council,31-Jan-19,51300708760,"-1,998.50",VOYAGE,CARE ESTABLISHMENT,LD - City Locality,LD - City - Special Needs,Residential Care
Cambridgeshire County Council,10-Jan-19,51300601433,"-1,864.15",LANSDOWNE CARE SERVICES,CARE ESTABLISHMENT,LD - Hunts Locality,LD - Huntigndonshire  - Special Needs,Residential Care
Cambridgeshire County Council,10-Jan-19,51300601372,"-1,864.15",LANSDOWNE CARE SERVICES,CARE ESTABLISHMENT,LD - Hunts Locality,LD - Huntigndonshire  - Special Needs,Residential Care
Cambridgeshire County Council,10-Jan-19,51300601366,"-1,864.15",LANSDOWNE CARE SERVICES,CARE ESTABLISHMENT,LD - Hunts Locality,LD - Huntigndonshire  - Special Needs,Residential Care
Cambridgeshire County Council,10-Jan-19,51300601459,"-1,864.15",LANSDOWNE CARE SERVICES,CARE ESTABLISHMENT,LD - Hunts Locality,LD - Huntigndonshire  - Special Needs,Residential Care
Cambridgeshire County Council,10-Jan-19,51300601415,"-1,864.15",LANSDOWNE CARE SERVICES,CARE ESTABLISHMENT,LD - Hunts Locality,LD - Huntigndonshire  - Special Needs,Residential Care
Cambridgeshire County Council,10-Jan-19,51300601425,"-1,864.15",LANSDOWNE CARE SERVICES,CARE ESTABLISHMENT,LD - Hunts Locality,LD - Huntigndonshire  - Special Needs,Residential Care
Cambridgeshire County Council,10-Jan-19,51300601368,"-1,864.15",LANSDOWNE CARE SERVICES,CARE ESTABLISHMENT,LD - Hunts Locality,LD - Huntigndonshire  - Special Needs,Residential Care
Cambridgeshire County Council,10-Jan-19,51300601501,"-1,864.15",LANSDOWNE CARE SERVICES,CARE ESTABLISHMENT,LD - Hunts Locality,LD - Huntigndonshire  - Special Needs,Residential Care
Cambridgeshire County Council,10-Jan-19,51300601364,"-1,864.15",LANSDOWNE CARE SERVICES,CARE ESTABLISHMENT,LD - Hunts Locality,LD - Huntigndonshire  - Special Needs,Residential Care
Cambridgeshire County Council,10-Jan-19,51300601400,"-1,864.15",LANSDOWNE CARE SERVICES,CARE ESTABLISHMENT,LD - Hunts Locality,LD - Huntigndonshire  - Special Needs,Residential Care
Cambridgeshire County Council,10-Jan-19,51300601418,"-1,864.15",LANSDOWNE CARE SERVICES,CARE ESTABLISHMENT,LD - Hunts Locality,LD - Huntigndonshire  - Special Needs,Residential Care
Cambridgeshire County Council,10-Jan-19,51300601490,"-1,864.15",LANSDOWNE CARE SERVICES,CARE ESTABLISHMENT,LD - Hunts Locality,LD - Huntigndonshire  - Special Needs,Residential Care
Cambridgeshire County Council,10-Jan-19,51300601392,"-1,864.15",LANSDOWNE CARE SERVICES,CARE ESTABLISHMENT,LD - Hunts Locality,LD - Huntigndonshire  - Special Needs,Residential Care
Cambridgeshire County Council,10-Jan-19,51300601422,"-1,864.15",LANSDOWNE CARE SERVICES,CARE ESTABLISHMENT,LD - Hunts Locality,LD - Huntigndonshire  - Special Needs,Residential Care
Cambridgeshire County Council,10-Jan-19,51300601426,"-1,864.15",LANSDOWNE CARE SERVICES,CARE ESTABLISHMENT,LD - Hunts Locality,LD - Huntigndonshire  - Special Needs,Residential Care
Cambridgeshire County Council,10-Jan-19,51300601362,"-1,864.15",LANSDOWNE CARE SERVICES,CARE ESTABLISHMENT,LD - Hunts Locality,LD - Huntigndonshire  - Special Needs,Residential Care
Cambridgeshire County Council,10-Jan-19,51300601487,"-1,864.15",LANSDOWNE CARE SERVICES,CARE ESTABLISHMENT,LD - Hunts Locality,LD - Huntigndonshire  - Special Needs,Residential Care
Cambridgeshire County Council,10-Jan-19,51300601417,"-1,864.15",LANSDOWNE CARE SERVICES,CARE ESTABLISHMENT,LD - Hunts Locality,LD - Huntigndonshire  - Special Needs,Residential Care
Cambridgeshire County Council,10-Jan-19,51300601434,"-1,864.15",LANSDOWNE CARE SERVICES,CARE ESTABLISHMENT,LD - Hunts Locality,LD - Huntigndonshire  - Special Needs,Residential Care
Cambridgeshire County Council,10-Jan-19,51300601497,"-1,864.15",LANSDOWNE CARE SERVICES,CARE ESTABLISHMENT,LD - Hunts Locality,LD - Huntigndonshire  - Special Needs,Residential Care
Cambridgeshire County Council,10-Jan-19,51300601440,"-1,864.15",LANSDOWNE CARE SERVICES,CARE ESTABLISHMENT,LD - Hunts Locality,LD - Huntigndonshire  - Special Needs,Residential Care
Cambridgeshire County Council,10-Jan-19,51300601375,"-1,864.15",LANSDOWNE CARE SERVICES,CARE ESTABLISHMENT,LD - Hunts Locality,LD - Huntigndonshire  - Special Needs,Residential Care
Cambridgeshire County Council,10-Jan-19,51300601409,"-1,864.15",LANSDOWNE CARE SERVICES,CARE ESTABLISHMENT,LD - Hunts Locality,LD - Huntigndonshire  - Special Needs,Residential Care
Cambridgeshire County Council,10-Jan-19,51300601450,"-1,864.15",LANSDOWNE CARE SERVICES,CARE ESTABLISHMENT,LD - Hunts Locality,LD - Huntigndonshire  - Special Needs,Residential Care
Cambridgeshire County Council,10-Jan-19,51300601383,"-1,864.15",LANSDOWNE CARE SERVICES,CARE ESTABLISHMENT,LD - Hunts Locality,LD - Huntigndonshire  - Special Needs,Residential Care
Cambridgeshire County Council,10-Jan-19,51300601491,"-1,864.15",LANSDOWNE CARE SERVICES,CARE ESTABLISHMENT,LD - Hunts Locality,LD - Huntigndonshire  - Special Needs,Residential Care
Cambridgeshire County Council,10-Jan-19,51300601398,"-1,864.15",LANSDOWNE CARE SERVICES,CARE ESTABLISHMENT,LD - Hunts Locality,LD - Huntigndonshire  - Special Needs,Residential Care
Cambridgeshire County Council,10-Jan-19,51300601427,"-1,864.15",LANSDOWNE CARE SERVICES,CARE ESTABLISHMENT,LD - Hunts Locality,LD - Huntigndonshire  - Special Needs,Residential Care
Cambridgeshire County Council,10-Jan-19,51300601457,"-1,864.15",LANSDOWNE CARE SERVICES,CARE ESTABLISHMENT,LD - Hunts Locality,LD - Huntigndonshire  - Special Needs,Residential Care
Cambridgeshire County Council,10-Jan-19,51300601435,"-1,864.15",LANSDOWNE CARE SERVICES,CARE ESTABLISHMENT,LD - Hunts Locality,LD - Huntigndonshire  - Special Needs,Residential Care
Cambridgeshire County Council,10-Jan-19,51300601471,"-1,864.15",LANSDOWNE CARE SERVICES,CARE ESTABLISHMENT,LD - Hunts Locality,LD - Huntigndonshire  - Special Needs,Residential Care
Cambridgeshire County Council,10-Jan-19,51300601442,"-1,864.15",LANSDOWNE CARE SERVICES,CARE ESTABLISHMENT,LD - Hunts Locality,LD - Huntigndonshire  - Special Needs,Residential Care
Cambridgeshire County Council,10-Jan-19,51300601399,"-1,864.15",LANSDOWNE CARE SERVICES,CARE ESTABLISHMENT,LD - Hunts Locality,LD - Huntigndonshire  - Special Needs,Residential Care
Cambridgeshire County Council,10-Jan-19,51300601379,"-1,864.15",LANSDOWNE CARE SERVICES,CARE ESTABLISHMENT,LD - Hunts Locality,LD - Huntigndonshire  - Special Needs,Residential Care
Cambridgeshire County Council,10-Jan-19,51300601429,"-1,864.15",LANSDOWNE CARE SERVICES,CARE ESTABLISHMENT,LD - Hunts Locality,LD - Huntigndonshire  - Special Needs,Residential Care
Cambridgeshire County Council,10-Jan-19,51300601485,"-1,864.15",LANSDOWNE CARE SERVICES,CARE ESTABLISHMENT,LD - Hunts Locality,LD - Huntigndonshire  - Special Needs,Residential Care
Cambridgeshire County Council,10-Jan-19,51300601437,"-1,864.15",LANSDOWNE CARE SERVICES,CARE ESTABLISHMENT,LD - Hunts Locality,LD - Huntigndonshire  - Special Needs,Residential Care
Cambridgeshire County Council,10-Jan-19,51300601506,"-1,864.15",LANSDOWNE CARE SERVICES,CARE ESTABLISHMENT,LD - Hunts Locality,LD - Huntigndonshire  - Special Needs,Residential Care
Cambridgeshire County Council,04-Jan-19,51300603212,"-1,774.17",FITZROY SUPPORT RE 28 RIVERBANK,CARE ESTABLISHMENT,LD - Fenland Locality,LD - Fenland  - Special Needs,Supported Living
Cambridgeshire County Council,10-Jan-19,51300660300,"-1,717.14",VOYAGE,CARE ESTABLISHMENT,LD - East Locality,LD - East Cambs - Special Needs,Residential Care
Cambridgeshire County Council,10-Jan-19,51300660220,"-1,717.14",VOYAGE,CARE ESTABLISHMENT,LD - East Locality,LD - East Cambs - Special Needs,Residential Care
Cambridgeshire County Council,10-Jan-19,51300660270,"-1,717.14",VOYAGE,CARE ESTABLISHMENT,LD - East Locality,LD - East Cambs - Special Needs,Residential Care
Cambridgeshire County Council,10-Jan-19,51300660309,"-1,717.14",VOYAGE,CARE ESTABLISHMENT,LD - East Locality,LD - East Cambs - Special Needs,Residential Care
Cambridgeshire County Council,10-Jan-19,51300660331,"-1,717.14",VOYAGE,CARE ESTABLISHMENT,LD - East Locality,LD - East Cambs - Special Needs,Residential Care
Cambridgeshire County Council,10-Jan-19,51300660271,"-1,717.14",VOYAGE,CARE ESTABLISHMENT,LD - East Locality,LD - East Cambs - Special Needs,Residential Care
Cambridgeshire County Council,10-Jan-19,51300660224,"-1,717.14",VOYAGE,CARE ESTABLISHMENT,LD - East Locality,LD - East Cambs - Special Needs,Residential Care
Cambridgeshire County Council,10-Jan-19,51300660250,"-1,717.14",VOYAGE,CARE ESTABLISHMENT,LD - East Locality,LD - East Cambs - Special Needs,Residential Care
Cambridgeshire County Council,10-Jan-19,51300660294,"-1,717.14",VOYAGE,CARE ESTABLISHMENT,LD - East Locality,LD - East Cambs - Special Needs,Residential Care
Cambridgeshire County Council,10-Jan-19,51300660322,"-1,717.14",VOYAGE,CARE ESTABLISHMENT,LD - East Locality,LD - East Cambs - Special Needs,Residential Care
Cambridgeshire County Council,10-Jan-19,51300660221,"-1,717.14",VOYAGE,CARE ESTABLISHMENT,LD - East Locality,LD - East Cambs - Special Needs,Residential Care
Cambridgeshire County Council,10-Jan-19,51300660302,"-1,717.14",VOYAGE,CARE ESTABLISHMENT,LD - East Locality,LD - East Cambs - Special Needs,Residential Care
Cambridgeshire County Council,10-Jan-19,51300660316,"-1,717.14",VOYAGE,CARE ESTABLISHMENT,LD - East Locality,LD - East Cambs - Special Needs,Residential Care
Cambridgeshire County Council,10-Jan-19,51300660266,"-1,717.14",VOYAGE,CARE ESTABLISHMENT,LD - East Locality,LD - East Cambs - Special Needs,Residential Care
Cambridgeshire County Council,10-Jan-19,51300660248,"-1,717.14",VOYAGE,CARE ESTABLISHMENT,LD - East Locality,LD - East Cambs - Special Needs,Residential Care
Cambridgeshire County Council,10-Jan-19,51300660313,"-1,717.14",VOYAGE,CARE ESTABLISHMENT,LD - East Locality,LD - East Cambs - Special Needs,Residential Care
Cambridgeshire County Council,10-Jan-19,51300660228,"-1,717.14",VOYAGE,CARE ESTABLISHMENT,LD - East Locality,LD - East Cambs - Special Needs,Residential Care
Cambridgeshire County Council,10-Jan-19,51300660306,"-1,717.14",VOYAGE,CARE ESTABLISHMENT,LD - East Locality,LD - East Cambs - Special Needs,Residential Care
Cambridgeshire County Council,10-Jan-19,51300660219,"-1,717.14",VOYAGE,CARE ESTABLISHMENT,LD - East Locality,LD - East Cambs - Special Needs,Residential Care
Cambridgeshire County Council,10-Jan-19,51300660253,"-1,717.14",VOYAGE,CARE ESTABLISHMENT,LD - East Locality,LD - East Cambs - Special Needs,Residential Care
Cambridgeshire County Council,10-Jan-19,51300660278,"-1,717.14",VOYAGE,CARE ESTABLISHMENT,LD - East Locality,LD - East Cambs - Special Needs,Residential Care
Cambridgeshire County Council,10-Jan-19,51300660298,"-1,717.14",VOYAGE,CARE ESTABLISHMENT,LD - East Locality,LD - East Cambs - Special Needs,Residential Care
Cambridgeshire County Council,10-Jan-19,51300660285,"-1,717.14",VOYAGE,CARE ESTABLISHMENT,LD - East Locality,LD - East Cambs - Special Needs,Residential Care
Cambridgeshire County Council,10-Jan-19,51300660328,"-1,717.14",VOYAGE,CARE ESTABLISHMENT,LD - East Locality,LD - East Cambs - Special Needs,Residential Care
Cambridgeshire County Council,10-Jan-19,51300660240,"-1,717.14",VOYAGE,CARE ESTABLISHMENT,LD - East Locality,LD - East Cambs - Special Needs,Residential Care
Cambridgeshire County Council,10-Jan-19,51300660291,"-1,717.14",VOYAGE,CARE ESTABLISHMENT,LD - East Locality,LD - East Cambs - Special Needs,Residential Care
Cambridgeshire County Council,10-Jan-19,51300660222,"-1,717.14",VOYAGE,CARE ESTABLISHMENT,LD - East Locality,LD - East Cambs - Special Needs,Residential Care
Cambridgeshire County Council,10-Jan-19,51300660227,"-1,717.14",VOYAGE,CARE ESTABLISHMENT,LD - East Locality,LD - East Cambs - Special Needs,Residential Care
Cambridgeshire County Council,10-Jan-19,51300660283,"-1,717.14",VOYAGE,CARE ESTABLISHMENT,LD - East Locality,LD - East Cambs - Special Needs,Residential Care
Cambridgeshire County Council,10-Jan-19,51300660318,"-1,717.14",VOYAGE,CARE ESTABLISHMENT,LD - East Locality,LD - East Cambs - Special Needs,Residential Care
Cambridgeshire County Council,10-Jan-19,51300660280,"-1,717.14",VOYAGE,CARE ESTABLISHMENT,LD - East Locality,LD - East Cambs - Special Needs,Residential Care
Cambridgeshire County Council,10-Jan-19,51300660324,"-1,717.14",VOYAGE,CARE ESTABLISHMENT,LD - East Locality,LD - East Cambs - Special Needs,Residential Care
Cambridgeshire County Council,10-Jan-19,51300660230,"-1,717.14",VOYAGE,CARE ESTABLISHMENT,LD - East Locality,LD - East Cambs - Special Needs,Residential Care
Cambridgeshire County Council,10-Jan-19,51300660308,"-1,717.14",VOYAGE,CARE ESTABLISHMENT,LD - East Locality,LD - East Cambs - Special Needs,Residential Care
Cambridgeshire County Council,10-Jan-19,51300660311,"-1,717.14",VOYAGE,CARE ESTABLISHMENT,LD - East Locality,LD - East Cambs - Special Needs,Residential Care
Cambridgeshire County Council,10-Jan-19,51300660273,"-1,717.14",VOYAGE,CARE ESTABLISHMENT,LD - East Locality,LD - East Cambs - Special Needs,Residential Care
Cambridgeshire County Council,10-Jan-19,51300660238,"-1,717.14",VOYAGE,CARE ESTABLISHMENT,LD - East Locality,LD - East Cambs - Special Needs,Residential Care
Cambridgeshire County Council,10-Jan-19,51300660246,"-1,717.14",VOYAGE,CARE ESTABLISHMENT,LD - East Locality,LD - East Cambs - Special Needs,Residential Care
Cambridgeshire County Council,10-Jan-19,51300660262,"-1,717.14",VOYAGE,CARE ESTABLISHMENT,LD - East Locality,LD - East Cambs - Special Needs,Residential Care
Cambridgeshire County Council,10-Jan-19,51300660290,"-1,717.14",VOYAGE,CARE ESTABLISHMENT,LD - East Locality,LD - East Cambs - Special Needs,Residential Care
Cambridgeshire County Council,31-Jan-19,51300708753,"-1,713.00",VOYAGE,CARE ESTABLISHMENT,LD - City Locality,LD - City - Special Needs,Residential Care
Cambridgeshire County Council,04-Jan-19,51300624340,"-1,711.36",AFFINITY TRUST,CARE ESTABLISHMENT,LD - Fenland Locality,LD - Fenland  - Special Needs,Supported Living
Cambridgeshire County Council,04-Jan-19,51300642443,"-1,711.36",AFFINITY TRUST,CARE ESTABLISHMENT,LD - Fenland Locality,LD - Fenland  - Special Needs,Supported Living
Cambridgeshire County Council,04-Jan-19,51300642432,"-1,711.36",AFFINITY TRUST,CARE ESTABLISHMENT,LD - Fenland Locality,LD - Fenland  - Special Needs,Supported Living
Cambridgeshire County Council,04-Jan-19,51300618108,"-1,711.36",AFFINITY TRUST,CARE ESTABLISHMENT,LD - Fenland Locality,LD - Fenland  - Special Needs,Supported Living
Cambridgeshire County Council,04-Jan-19,51300618093,"-1,711.36",AFFINITY TRUST,CARE ESTABLISHMENT,LD - Fenland Locality,LD - Fenland  - Special Needs,Supported Living
Cambridgeshire County Council,04-Jan-19,51300642442,"-1,711.36",AFFINITY TRUST,CARE ESTABLISHMENT,LD - Fenland Locality,LD - Fenland  - Special Needs,Supported Living
Cambridgeshire County Council,04-Jan-19,51300624331,"-1,711.36",AFFINITY TRUST,CARE ESTABLISHMENT,LD - Fenland Locality,LD - Fenland  - Special Needs,Supported Living
Cambridgeshire County Council,04-Jan-19,51300642456,"-1,711.36",AFFINITY TRUST,CARE ESTABLISHMENT,LD - Fenland Locality,LD - Fenland  - Special Needs,Supported Living
Cambridgeshire County Council,04-Jan-19,51300642451,"-1,711.36",AFFINITY TRUST,CARE ESTABLISHMENT,LD - Fenland Locality,LD - Fenland  - Special Needs,Supported Living
Cambridgeshire County Council,04-Jan-19,51300624333,"-1,711.36",AFFINITY TRUST,CARE ESTABLISHMENT,LD - Fenland Locality,LD - Fenland  - Special Needs,Supported Living
Cambridgeshire County Council,04-Jan-19,51300624336,"-1,711.36",AFFINITY TRUST,CARE ESTABLISHMENT,LD - Fenland Locality,LD - Fenland  - Special Needs,Supported Living
Cambridgeshire County Council,04-Jan-19,51300642441,"-1,711.36",AFFINITY TRUST,CARE ESTABLISHMENT,LD - Fenland Locality,LD - Fenland  - Special Needs,Supported Living
Cambridgeshire County Council,04-Jan-19,51300618092,"-1,711.36",AFFINITY TRUST,CARE ESTABLISHMENT,LD - Fenland Locality,LD - Fenland  - Special Needs,Supported Living
Cambridgeshire County Council,04-Jan-19,51300624332,"-1,711.36",AFFINITY TRUST,CARE ESTABLISHMENT,LD - Fenland Locality,LD - Fenland  - Special Needs,Supported Living
Cambridgeshire County Council,04-Jan-19,51300618116,"-1,711.36",AFFINITY TRUST,CARE ESTABLISHMENT,LD - Fenland Locality,LD - Fenland  - Special Needs,Supported Living
Cambridgeshire County Council,04-Jan-19,51300642424,"-1,711.36",AFFINITY TRUST,CARE ESTABLISHMENT,LD - Fenland Locality,LD - Fenland  - Special Needs,Supported Living
Cambridgeshire County Council,04-Jan-19,51300642426,"-1,711.36",AFFINITY TRUST,CARE ESTABLISHMENT,LD - Fenland Locality,LD - Fenland  - Special Needs,Supported Living
Cambridgeshire County Council,04-Jan-19,51300624322,"-1,711.36",AFFINITY TRUST,CARE ESTABLISHMENT,LD - Fenland Locality,LD - Fenland  - Special Needs,Supported Living
Cambridgeshire County Council,04-Jan-19,51300624343,"-1,711.36",AFFINITY TRUST,CARE ESTABLISHMENT,LD - Fenland Locality,LD - Fenland  - Special Needs,Supported Living
Cambridgeshire County Council,04-Jan-19,51300642430,"-1,711.36",AFFINITY TRUST,CARE ESTABLISHMENT,LD - Fenland Locality,LD - Fenland  - Special Needs,Supported Living
Cambridgeshire County Council,04-Jan-19,51300642448,"-1,711.36",AFFINITY TRUST,CARE ESTABLISHMENT,LD - Fenland Locality,LD - Fenland  - Special Needs,Supported Living
Cambridgeshire County Council,04-Jan-19,51300618088,"-1,711.36",AFFINITY TRUST,CARE ESTABLISHMENT,LD - Fenland Locality,LD - Fenland  - Special Needs,Supported Living
Cambridgeshire County Council,04-Jan-19,51300642460,"-1,711.36",AFFINITY TRUST,CARE ESTABLISHMENT,LD - Fenland Locality,LD - Fenland  - Special Needs,Supported Living
Cambridgeshire County Council,04-Jan-19,51300624328,"-1,711.36",AFFINITY TRUST,CARE ESTABLISHMENT,LD - Fenland Locality,LD - Fenland  - Care,Supported Living
Cambridgeshire County Council,04-Jan-19,51300618111,"-1,711.36",AFFINITY TRUST,CARE ESTABLISHMENT,LD - Fenland Locality,LD - Fenland  - Care,Supported Living
Cambridgeshire County Council,04-Jan-19,51300618112,"-1,711.36",AFFINITY TRUST,CARE ESTABLISHMENT,LD - Fenland Locality,LD - Fenland  - Care,Supported Living
Cambridgeshire County Council,04-Jan-19,51300642457,"-1,711.36",AFFINITY TRUST,CARE ESTABLISHMENT,LD - Fenland Locality,LD - Fenland  - Care,Supported Living
Cambridgeshire County Council,04-Jan-19,51300618089,"-1,711.36",AFFINITY TRUST,CARE ESTABLISHMENT,LD - Fenland Locality,LD - Fenland  - Care,Supported Living
Cambridgeshire County Council,04-Jan-19,51300642425,"-1,711.36",AFFINITY TRUST,CARE ESTABLISHMENT,LD - Fenland Locality,LD - Fenland  - Care,Supported Living
Cambridgeshire County Council,04-Jan-19,51300624337,"-1,711.36",AFFINITY TRUST,CARE ESTABLISHMENT,LD - Fenland Locality,LD - Fenland  - Care,Supported Living
Cambridgeshire County Council,04-Jan-19,51300624342,"-1,711.36",AFFINITY TRUST,CARE ESTABLISHMENT,LD - Fenland Locality,LD - Fenland  - Care,Supported Living
Cambridgeshire County Council,04-Jan-19,51300618104,"-1,711.36",AFFINITY TRUST,CARE ESTABLISHMENT,LD - Fenland Locality,LD - Fenland  - Care,Supported Living
Cambridgeshire County Council,04-Jan-19,51300618106,"-1,711.36",AFFINITY TRUST,CARE ESTABLISHMENT,LD - Fenland Locality,LD - Fenland  - Care,Supported Living
Cambridgeshire County Council,04-Jan-19,51300618090,"-1,711.36",AFFINITY TRUST,CARE ESTABLISHMENT,LD - Fenland Locality,LD - Fenland  - Care,Supported Living
Cambridgeshire County Council,04-Jan-19,51300624338,"-1,711.36",AFFINITY TRUST,CARE ESTABLISHMENT,LD - Fenland Locality,LD - Fenland  - Care,Supported Living
Cambridgeshire County Council,04-Jan-19,51300624316,"-1,711.36",AFFINITY TRUST,CARE ESTABLISHMENT,LD - Fenland Locality,LD - Fenland  - Care,Supported Living
Cambridgeshire County Council,04-Jan-19,51300624347,"-1,711.36",AFFINITY TRUST,CARE ESTABLISHMENT,LD - Fenland Locality,LD - Fenland  - Care,Supported Living
Cambridgeshire County Council,04-Jan-19,51300642452,"-1,711.36",AFFINITY TRUST,CARE ESTABLISHMENT,LD - Fenland Locality,LD - Fenland  - Care,Supported Living
Cambridgeshire County Council,04-Jan-19,51300618102,"-1,711.36",AFFINITY TRUST,CARE ESTABLISHMENT,LD - Fenland Locality,LD - Fenland  - Care,Supported Living
Cambridgeshire County Council,04-Jan-19,51300618097,"-1,711.36",AFFINITY TRUST,CARE ESTABLISHMENT,LD - Fenland Locality,LD - Fenland  - Care,Supported Living
Cambridgeshire County Council,04-Jan-19,51300624330,"-1,711.36",AFFINITY TRUST,CARE ESTABLISHMENT,LD - Fenland Locality,LD - Fenland  - Care,Supported Living
Cambridgeshire County Council,04-Jan-19,51300624323,"-1,711.36",AFFINITY TRUST,CARE ESTABLISHMENT,LD - Fenland Locality,LD - Fenland  - Care,Supported Living
Cambridgeshire County Council,04-Jan-19,51300624320,"-1,711.36",AFFINITY TRUST,CARE ESTABLISHMENT,LD - Fenland Locality,LD - Fenland  - Care,Supported Living
Cambridgeshire County Council,04-Jan-19,51300618117,"-1,711.36",AFFINITY TRUST,CARE ESTABLISHMENT,LD - Fenland Locality,LD - Fenland  - Care,Supported Living
Cambridgeshire County Council,04-Jan-19,51300642438,"-1,711.36",AFFINITY TRUST,CARE ESTABLISHMENT,LD - Fenland Locality,LD - Fenland  - Care,Supported Living
Cambridgeshire County Council,04-Jan-19,51300642454,"-1,711.36",AFFINITY TRUST,CARE ESTABLISHMENT,LD - Fenland Locality,LD - Fenland  - Care,Supported Living
Cambridgeshire County Council,04-Jan-19,51300618107,"-1,711.36",AFFINITY TRUST,CARE ESTABLISHMENT,LD - Fenland Locality,LD - Fenland  - Care,Supported Living
Cambridgeshire County Council,04-Jan-19,51300618110,"-1,711.36",AFFINITY TRUST,CARE ESTABLISHMENT,LD - Fenland Locality,LD - Fenland  - Care,Supported Living
Cambridgeshire County Council,31-Jan-19,51300661283,"-1,711.36",AFFINITY TRUST,CARE ESTABLISHMENT,LD - Fenland Locality,LD - Fenland  - Special Needs,Supported Living
Cambridgeshire County Council,31-Jan-19,51300661273,"-1,711.36",AFFINITY TRUST,CARE ESTABLISHMENT,LD - Fenland Locality,LD - Fenland  - Special Needs,Supported Living
Cambridgeshire County Council,31-Jan-19,51300679340,"-1,711.36",AFFINITY TRUST,CARE ESTABLISHMENT,LD - Fenland Locality,LD - Fenland  - Special Needs,Supported Living
Cambridgeshire County Council,31-Jan-19,51300670186,"-1,711.36",AFFINITY TRUST,CARE ESTABLISHMENT,LD - Fenland Locality,LD - Fenland  - Special Needs,Supported Living
Cambridgeshire County Council,31-Jan-19,51300661295,"-1,711.36",AFFINITY TRUST,CARE ESTABLISHMENT,LD - Fenland Locality,LD - Fenland  - Special Needs,Supported Living
Cambridgeshire County Council,31-Jan-19,51300679328,"-1,711.36",AFFINITY TRUST,CARE ESTABLISHMENT,LD - Fenland Locality,LD - Fenland  - Special Needs,Supported Living
Cambridgeshire County Council,31-Jan-19,51300670196,"-1,711.36",AFFINITY TRUST,CARE ESTABLISHMENT,LD - Fenland Locality,LD - Fenland  - Special Needs,Supported Living
Cambridgeshire County Council,31-Jan-19,51300704280,"-1,711.36",AFFINITY TRUST,CARE ESTABLISHMENT,LD - Fenland Locality,LD - Fenland  - Special Needs,Supported Living
Cambridgeshire County Council,31-Jan-19,51300704293,"-1,711.36",AFFINITY TRUST,CARE ESTABLISHMENT,LD - Fenland Locality,LD - Fenland  - Special Needs,Supported Living
Cambridgeshire County Council,31-Jan-19,51300704263,"-1,711.36",AFFINITY TRUST,CARE ESTABLISHMENT,LD - Fenland Locality,LD - Fenland  - Special Needs,Supported Living
Cambridgeshire County Council,31-Jan-19,51300670207,"-1,711.36",AFFINITY TRUST,CARE ESTABLISHMENT,LD - Fenland Locality,LD - Fenland  - Special Needs,Supported Living
Cambridgeshire County Council,31-Jan-19,51300679341,"-1,711.36",AFFINITY TRUST,CARE ESTABLISHMENT,LD - Fenland Locality,LD - Fenland  - Special Needs,Supported Living
Cambridgeshire County Council,31-Jan-19,51300704273,"-1,711.36",AFFINITY TRUST,CARE ESTABLISHMENT,LD - Fenland Locality,LD - Fenland  - Special Needs,Supported Living
Cambridgeshire County Council,31-Jan-19,51300661286,"-1,711.36",AFFINITY TRUST,CARE ESTABLISHMENT,LD - Fenland Locality,LD - Fenland  - Special Needs,Supported Living
Cambridgeshire County Council,31-Jan-19,51300679342,"-1,711.36",AFFINITY TRUST,CARE ESTABLISHMENT,LD - Fenland Locality,LD - Fenland  - Special Needs,Supported Living
Cambridgeshire County Council,31-Jan-19,51300704288,"-1,711.36",AFFINITY TRUST,CARE ESTABLISHMENT,LD - Fenland Locality,LD - Fenland  - Special Needs,Supported Living
Cambridgeshire County Council,31-Jan-19,51300679333,"-1,711.36",AFFINITY TRUST,CARE ESTABLISHMENT,LD - Fenland Locality,LD - Fenland  - Special Needs,Supported Living
Cambridgeshire County Council,31-Jan-19,51300670180,"-1,711.36",AFFINITY TRUST,CARE ESTABLISHMENT,LD - Fenland Locality,LD - Fenland  - Special Needs,Supported Living
Cambridgeshire County Council,31-Jan-19,51300661287,"-1,711.36",AFFINITY TRUST,CARE ESTABLISHMENT,LD - Fenland Locality,LD - Fenland  - Special Needs,Supported Living
Cambridgeshire County Council,31-Jan-19,51300670190,"-1,711.36",AFFINITY TRUST,CARE ESTABLISHMENT,LD - Fenland Locality,LD - Fenland  - Special Needs,Supported Living
Cambridgeshire County Council,31-Jan-19,51300679350,"-1,711.36",AFFINITY TRUST,CARE ESTABLISHMENT,LD - Fenland Locality,LD - Fenland  - Special Needs,Supported Living
Cambridgeshire County Council,31-Jan-19,51300679343,"-1,711.36",AFFINITY TRUST,CARE ESTABLISHMENT,LD - Fenland Locality,LD - Fenland  - Special Needs,Supported Living
Cambridgeshire County Council,31-Jan-19,51300661279,"-1,711.36",AFFINITY TRUST,CARE ESTABLISHMENT,LD - Fenland Locality,LD - Fenland  - Special Needs,Supported Living
Cambridgeshire County Council,31-Jan-19,51300661280,"-1,711.36",AFFINITY TRUST,CARE ESTABLISHMENT,LD - Fenland Locality,LD - Fenland  - Special Needs,Supported Living
Cambridgeshire County Council,31-Jan-19,51300670206,"-1,711.36",AFFINITY TRUST,CARE ESTABLISHMENT,LD - Fenland Locality,LD - Fenland  - Special Needs,Supported Living
Cambridgeshire County Council,31-Jan-19,51300661294,"-1,711.36",AFFINITY TRUST,CARE ESTABLISHMENT,LD - Fenland Locality,LD - Fenland  - Special Needs,Supported Living
Cambridgeshire County Council,31-Jan-19,51300679352,"-1,711.36",AFFINITY TRUST,CARE ESTABLISHMENT,LD - Fenland Locality,LD - Fenland  - Special Needs,Supported Living
Cambridgeshire County Council,31-Jan-19,51300670208,"-1,711.36",AFFINITY TRUST,CARE ESTABLISHMENT,LD - Fenland Locality,LD - Fenland  - Special Needs,Supported Living
Cambridgeshire County Council,31-Jan-19,51300704279,"-1,711.36",AFFINITY TRUST,CARE ESTABLISHMENT,LD - Fenland Locality,LD - Fenland  - Special Needs,Supported Living
Cambridgeshire County Council,31-Jan-19,51300661268,"-1,711.36",AFFINITY TRUST,CARE ESTABLISHMENT,LD - Fenland Locality,LD - Fenland  - Special Needs,Supported Living
Cambridgeshire County Council,31-Jan-19,51300679349,"-1,711.36",AFFINITY TRUST,CARE ESTABLISHMENT,LD - Fenland Locality,LD - Fenland  - Special Needs,Supported Living
Cambridgeshire County Council,31-Jan-19,51300704276,"-1,711.36",AFFINITY TRUST,CARE ESTABLISHMENT,LD - Fenland Locality,LD - Fenland  - Special Needs,Supported Living
Cambridgeshire County Council,31-Jan-19,51300670204,"-1,711.36",AFFINITY TRUST,CARE ESTABLISHMENT,LD - Fenland Locality,LD - Fenland  - Care,Supported Living
Cambridgeshire County Council,31-Jan-19,51300704274,"-1,711.36",AFFINITY TRUST,CARE ESTABLISHMENT,LD - Fenland Locality,LD - Fenland  - Care,Supported Living
Cambridgeshire County Council,31-Jan-19,51300679325,"-1,711.36",AFFINITY TRUST,CARE ESTABLISHMENT,LD - Fenland Locality,LD - Fenland  - Care,Supported Living
Cambridgeshire County Council,31-Jan-19,51300704265,"-1,711.36",AFFINITY TRUST,CARE ESTABLISHMENT,LD - Fenland Locality,LD - Fenland  - Care,Supported Living
Cambridgeshire County Council,31-Jan-19,51300704267,"-1,711.36",AFFINITY TRUST,CARE ESTABLISHMENT,LD - Fenland Locality,LD - Fenland  - Care,Supported Living
Cambridgeshire County Council,31-Jan-19,51300704258,"-1,711.36",AFFINITY TRUST,CARE ESTABLISHMENT,LD - Fenland Locality,LD - Fenland  - Care,Supported Living
Cambridgeshire County Council,31-Jan-19,51300704264,"-1,711.36",AFFINITY TRUST,CARE ESTABLISHMENT,LD - Fenland Locality,LD - Fenland  - Care,Supported Living
Cambridgeshire County Council,31-Jan-19,51300670182,"-1,711.36",AFFINITY TRUST,CARE ESTABLISHMENT,LD - Fenland Locality,LD - Fenland  - Care,Supported Living
Cambridgeshire County Council,31-Jan-19,51300704253,"-1,711.36",AFFINITY TRUST,CARE ESTABLISHMENT,LD - Fenland Locality,LD - Fenland  - Care,Supported Living
Cambridgeshire County Council,31-Jan-19,51300670191,"-1,711.36",AFFINITY TRUST,CARE ESTABLISHMENT,LD - Fenland Locality,LD - Fenland  - Care,Supported Living
Cambridgeshire County Council,31-Jan-19,51300661276,"-1,711.36",AFFINITY TRUST,CARE ESTABLISHMENT,LD - Fenland Locality,LD - Fenland  - Care,Supported Living
Cambridgeshire County Council,31-Jan-19,51300670200,"-1,711.36",AFFINITY TRUST,CARE ESTABLISHMENT,LD - Fenland Locality,LD - Fenland  - Care,Supported Living
Cambridgeshire County Council,31-Jan-19,51300670212,"-1,711.36",AFFINITY TRUST,CARE ESTABLISHMENT,LD - Fenland Locality,LD - Fenland  - Care,Supported Living
Cambridgeshire County Council,31-Jan-19,51300679337,"-1,711.36",AFFINITY TRUST,CARE ESTABLISHMENT,LD - Fenland Locality,LD - Fenland  - Care,Supported Living
Cambridgeshire County Council,31-Jan-19,51300670184,"-1,711.36",AFFINITY TRUST,CARE ESTABLISHMENT,LD - Fenland Locality,LD - Fenland  - Care,Supported Living
Cambridgeshire County Council,31-Jan-19,51300661288,"-1,711.36",AFFINITY TRUST,CARE ESTABLISHMENT,LD - Fenland Locality,LD - Fenland  - Care,Supported Living
Cambridgeshire County Council,31-Jan-19,51300661277,"-1,711.36",AFFINITY TRUST,CARE ESTABLISHMENT,LD - Fenland Locality,LD - Fenland  - Care,Supported Living
Cambridgeshire County Council,31-Jan-19,51300661267,"-1,711.36",AFFINITY TRUST,CARE ESTABLISHMENT,LD - Fenland Locality,LD - Fenland  - Care,Supported Living
Cambridgeshire County Council,31-Jan-19,51300679348,"-1,711.36",AFFINITY TRUST,CARE ESTABLISHMENT,LD - Fenland Locality,LD - Fenland  - Care,Supported Living
Cambridgeshire County Council,31-Jan-19,51300679344,"-1,711.36",AFFINITY TRUST,CARE ESTABLISHMENT,LD - Fenland Locality,LD - Fenland  - Care,Supported Living
Cambridgeshire County Council,31-Jan-19,51300661290,"-1,711.36",AFFINITY TRUST,CARE ESTABLISHMENT,LD - Fenland Locality,LD - Fenland  - Care,Supported Living
Cambridgeshire County Council,31-Jan-19,51300670210,"-1,711.36",AFFINITY TRUST,CARE ESTABLISHMENT,LD - Fenland Locality,LD - Fenland  - Care,Supported Living
Cambridgeshire County Council,31-Jan-19,51300679335,"-1,711.36",AFFINITY TRUST,CARE ESTABLISHMENT,LD - Fenland Locality,LD - Fenland  - Care,Supported Living
Cambridgeshire County Council,31-Jan-19,51300670189,"-1,711.36",AFFINITY TRUST,CARE ESTABLISHMENT,LD - Fenland Locality,LD - Fenland  - Care,Supported Living
Cambridgeshire County Council,31-Jan-19,51300704281,"-1,711.36",AFFINITY TRUST,CARE ESTABLISHMENT,LD - Fenland Locality,LD - Fenland  - Care,Supported Living
Cambridgeshire County Council,31-Jan-19,51300704266,"-1,711.36",AFFINITY TRUST,CARE ESTABLISHMENT,LD - Fenland Locality,LD - Fenland  - Care,Supported Living
Cambridgeshire County Council,31-Jan-19,51300670187,"-1,711.36",AFFINITY TRUST,CARE ESTABLISHMENT,LD - Fenland Locality,LD - Fenland  - Care,Supported Living
Cambridgeshire County Council,31-Jan-19,51300679330,"-1,711.36",AFFINITY TRUST,CARE ESTABLISHMENT,LD - Fenland Locality,LD - Fenland  - Care,Supported Living
Cambridgeshire County Council,31-Jan-19,51300661296,"-1,711.36",AFFINITY TRUST,CARE ESTABLISHMENT,LD - Fenland Locality,LD - Fenland  - Care,Supported Living
Cambridgeshire County Council,31-Jan-19,51300704275,"-1,711.36",AFFINITY TRUST,CARE ESTABLISHMENT,LD - Fenland Locality,LD - Fenland  - Care,Supported Living
Cambridgeshire County Council,31-Jan-19,51300661269,"-1,711.36",AFFINITY TRUST,CARE ESTABLISHMENT,LD - Fenland Locality,LD - Fenland  - Care,Supported Living
Cambridgeshire County Council,31-Jan-19,51300679327,"-1,711.36",AFFINITY TRUST,CARE ESTABLISHMENT,LD - Fenland Locality,LD - Fenland  - Care,Supported Living
Cambridgeshire County Council,25-Jan-19,51300665151,"-1,703.55",FOSTER CARE ASSOCIATES LTD (FCA),CARE ESTABLISHMENT,LAC Placements,Placements - independent fostering,Agency Placements - Out of  County
Cambridgeshire County Council,25-Jan-19,51300665149,"-1,669.48",FOSTER CARE ASSOCIATES LTD (FCA),CARE ESTABLISHMENT,LAC Placements,Placements - independent fostering,Agency Placements - Out of  County
Cambridgeshire County Council,04-Jan-19,51300623527,"-1,668.30",73 HIGH ROAD,CARE ESTABLISHMENT,LD - Hunts Locality,LD - Huntigndonshire  - Special Needs,Supported Living
Cambridgeshire County Council,04-Jan-19,51300623513,"-1,668.30",73 HIGH ROAD,CARE ESTABLISHMENT,LD - Hunts Locality,LD - Huntigndonshire  - Special Needs,Supported Living
Cambridgeshire County Council,04-Jan-19,51300623531,"-1,668.30",73 HIGH ROAD,CARE ESTABLISHMENT,LD - Hunts Locality,LD - Huntigndonshire  - Special Needs,Supported Living
Cambridgeshire County Council,04-Jan-19,51300623499,"-1,668.30",73 HIGH ROAD,CARE ESTABLISHMENT,LD - Hunts Locality,LD - Huntigndonshire  - Special Needs,Supported Living
Cambridgeshire County Council,04-Jan-19,51300623563,"-1,668.30",73 HIGH ROAD,CARE ESTABLISHMENT,LD - Hunts Locality,LD - Huntigndonshire  - Special Needs,Supported Living
Cambridgeshire County Council,04-Jan-19,51300623488,"-1,668.30",73 HIGH ROAD,CARE ESTABLISHMENT,LD - Hunts Locality,LD - Huntigndonshire  - Special Needs,Supported Living
Cambridgeshire County Council,04-Jan-19,51300623558,"-1,668.30",73 HIGH ROAD,CARE ESTABLISHMENT,LD - Hunts Locality,LD - Huntigndonshire  - Special Needs,Supported Living
Cambridgeshire County Council,04-Jan-19,51300623500,"-1,668.30",73 HIGH ROAD,CARE ESTABLISHMENT,LD - Hunts Locality,LD - Huntigndonshire  - Special Needs,Supported Living
Cambridgeshire County Council,04-Jan-19,51300623507,"-1,668.30",73 HIGH ROAD,CARE ESTABLISHMENT,LD - Hunts Locality,LD - Huntigndonshire  - Special Needs,Supported Living
Cambridgeshire County Council,04-Jan-19,51300623496,"-1,668.30",73 HIGH ROAD,CARE ESTABLISHMENT,LD - Hunts Locality,LD - Huntigndonshire  - Special Needs,Supported Living
Cambridgeshire County Council,04-Jan-19,51300623512,"-1,668.30",73 HIGH ROAD,CARE ESTABLISHMENT,LD - Hunts Locality,LD - Huntigndonshire  - Special Needs,Supported Living
Cambridgeshire County Council,04-Jan-19,51300623559,"-1,668.30",73 HIGH ROAD,CARE ESTABLISHMENT,LD - Hunts Locality,LD - Huntigndonshire  - Special Needs,Supported Living
Cambridgeshire County Council,04-Jan-19,51300623517,"-1,668.30",73 HIGH ROAD,CARE ESTABLISHMENT,LD - Hunts Locality,LD - Huntigndonshire  - Special Needs,Supported Living
Cambridgeshire County Council,04-Jan-19,51300623537,"-1,668.30",73 HIGH ROAD,CARE ESTABLISHMENT,LD - Hunts Locality,LD - Huntigndonshire  - Special Needs,Supported Living
Cambridgeshire County Council,04-Jan-19,51300623501,"-1,668.30",73 HIGH ROAD,CARE ESTABLISHMENT,LD - Hunts Locality,LD - Huntigndonshire  - Special Needs,Supported Living
Cambridgeshire County Council,09-Jan-19,51300612184,"-1,659.98",ORANGE GROVE FOSTER CARE,CARE ESTABLISHMENT,LAC Placements,Placements - independent fostering,Agency Placements - Out of  County
Cambridgeshire County Council,04-Jan-19,51300629721,"-1,640.96",ST GEORGES NURSING HOME,CARE ESTABLISHMENT,OP - City & South Blocks,City and South - Long term blocks,Nursing Care
Cambridgeshire County Council,10-Jan-19,51300657938,"-1,630.85",VOYAGE,CARE ESTABLISHMENT,LD - East Locality,LD - East Cambs - Special Needs,Residential Care
Cambridgeshire County Council,10-Jan-19,51300657952,"-1,630.85",VOYAGE,CARE ESTABLISHMENT,LD - East Locality,LD - East Cambs - Special Needs,Residential Care
Cambridgeshire County Council,10-Jan-19,51300657862,"-1,630.85",VOYAGE,CARE ESTABLISHMENT,LD - East Locality,LD - East Cambs - Care,Residential Care
Cambridgeshire County Council,10-Jan-19,51300657864,"-1,630.85",VOYAGE,CARE ESTABLISHMENT,LD - East Locality,LD - East Cambs - Care,Residential Care
Cambridgeshire County Council,10-Jan-19,51300657883,"-1,630.85",VOYAGE,CARE ESTABLISHMENT,LD - East Locality,LD - East Cambs - Care,Residential Care
Cambridgeshire County Council,10-Jan-19,51300657884,"-1,630.85",VOYAGE,CARE ESTABLISHMENT,LD - East Locality,LD - East Cambs - Care,Residential Care
Cambridgeshire County Council,10-Jan-19,51300657958,"-1,630.85",VOYAGE,CARE ESTABLISHMENT,LD - East Locality,LD - East Cambs - Care,Residential Care
Cambridgeshire County Council,10-Jan-19,51300657861,"-1,630.85",VOYAGE,CARE ESTABLISHMENT,LD - East Locality,LD - East Cambs - Care,Residential Care
Cambridgeshire County Council,10-Jan-19,51300657906,"-1,630.85",VOYAGE,CARE ESTABLISHMENT,LD - East Locality,LD - East Cambs - Care,Residential Care
Cambridgeshire County Council,10-Jan-19,51300657876,"-1,630.85",VOYAGE,CARE ESTABLISHMENT,LD - East Locality,LD - East Cambs - Care,Residential Care
Cambridgeshire County Council,10-Jan-19,51300657939,"-1,630.85",VOYAGE,CARE ESTABLISHMENT,LD - East Locality,LD - East Cambs - Special Needs,Residential Care
Cambridgeshire County Council,10-Jan-19,51300657968,"-1,630.85",VOYAGE,CARE ESTABLISHMENT,LD - East Locality,LD - East Cambs - Special Needs,Residential Care
Cambridgeshire County Council,10-Jan-19,51300657955,"-1,630.85",VOYAGE,CARE ESTABLISHMENT,LD - East Locality,LD - East Cambs - Special Needs,Residential Care
Cambridgeshire County Council,10-Jan-19,51300657891,"-1,630.85",VOYAGE,CARE ESTABLISHMENT,LD - East Locality,LD - East Cambs - Special Needs,Residential Care
Cambridgeshire County Council,10-Jan-19,51300657930,"-1,630.85",VOYAGE,CARE ESTABLISHMENT,LD - East Locality,LD - East Cambs - Special Needs,Residential Care
Cambridgeshire County Council,10-Jan-19,51300657878,"-1,630.85",VOYAGE,CARE ESTABLISHMENT,LD - East Locality,LD - East Cambs - Special Needs,Residential Care
Cambridgeshire County Council,10-Jan-19,51300657965,"-1,630.85",VOYAGE,CARE ESTABLISHMENT,LD - East Locality,LD - East Cambs - Special Needs,Residential Care
Cambridgeshire County Council,10-Jan-19,51300657887,"-1,630.85",VOYAGE,CARE ESTABLISHMENT,LD - East Locality,LD - East Cambs - Special Needs,Residential Care
Cambridgeshire County Council,10-Jan-19,51300657856,"-1,630.85",VOYAGE,CARE ESTABLISHMENT,LD - East Locality,LD - East Cambs - Special Needs,Residential Care
Cambridgeshire County Council,10-Jan-19,51300657868,"-1,630.85",VOYAGE,CARE ESTABLISHMENT,LD - East Locality,LD - East Cambs - Special Needs,Residential Care
Cambridgeshire County Council,10-Jan-19,51300657942,"-1,630.85",VOYAGE,CARE ESTABLISHMENT,LD - East Locality,LD - East Cambs - Special Needs,Residential Care
Cambridgeshire County Council,10-Jan-19,51300657945,"-1,630.85",VOYAGE,CARE ESTABLISHMENT,LD - East Locality,LD - East Cambs - Care,Residential Care
Cambridgeshire County Council,10-Jan-19,51300657944,"-1,630.85",VOYAGE,CARE ESTABLISHMENT,LD - East Locality,LD - East Cambs - Care,Residential Care
Cambridgeshire County Council,10-Jan-19,51300657964,"-1,630.85",VOYAGE,CARE ESTABLISHMENT,LD - East Locality,LD - East Cambs - Care,Residential Care
Cambridgeshire County Council,10-Jan-19,51300657916,"-1,630.85",VOYAGE,CARE ESTABLISHMENT,LD - East Locality,LD - East Cambs - Care,Residential Care
Cambridgeshire County Council,10-Jan-19,51300657901,"-1,630.85",VOYAGE,CARE ESTABLISHMENT,LD - East Locality,LD - East Cambs - Care,Residential Care
Cambridgeshire County Council,10-Jan-19,51300657871,"-1,630.85",VOYAGE,CARE ESTABLISHMENT,LD - East Locality,LD - East Cambs - Care,Residential Care
Cambridgeshire County Council,10-Jan-19,51300657859,"-1,630.85",VOYAGE,CARE ESTABLISHMENT,LD - East Locality,LD - East Cambs - Care,Residential Care
Cambridgeshire County Council,10-Jan-19,51300657904,"-1,630.85",VOYAGE,CARE ESTABLISHMENT,LD - East Locality,LD - East Cambs - Care,Residential Care
Cambridgeshire County Council,10-Jan-19,51300657858,"-1,630.85",VOYAGE,CARE ESTABLISHMENT,LD - East Locality,LD - East Cambs - Care,Residential Care
Cambridgeshire County Council,10-Jan-19,51300657857,"-1,630.85",VOYAGE,CARE ESTABLISHMENT,LD - East Locality,LD - East Cambs - Care,Residential Care
Cambridgeshire County Council,10-Jan-19,51300657915,"-1,630.85",VOYAGE,CARE ESTABLISHMENT,LD - East Locality,LD - East Cambs - Care,Residential Care
Cambridgeshire County Council,10-Jan-19,51300657962,"-1,630.85",VOYAGE,CARE ESTABLISHMENT,LD - East Locality,LD - East Cambs - Care,Residential Care
Cambridgeshire County Council,10-Jan-19,51300657889,"-1,630.85",VOYAGE,CARE ESTABLISHMENT,LD - East Locality,LD - East Cambs - Care,Residential Care
Cambridgeshire County Council,10-Jan-19,51300657908,"-1,630.85",VOYAGE,CARE ESTABLISHMENT,LD - East Locality,LD - East Cambs - Care,Residential Care
Cambridgeshire County Council,10-Jan-19,51300657879,"-1,630.85",VOYAGE,CARE ESTABLISHMENT,LD - East Locality,LD - East Cambs - Care,Residential Care
Cambridgeshire County Council,10-Jan-19,51300657928,"-1,630.85",VOYAGE,CARE ESTABLISHMENT,LD - East Locality,LD - East Cambs - Special Needs,Residential Care
Cambridgeshire County Council,10-Jan-19,51300657917,"-1,630.85",VOYAGE,CARE ESTABLISHMENT,LD - East Locality,LD - East Cambs - Special Needs,Residential Care
Cambridgeshire County Council,10-Jan-19,51300657890,"-1,630.85",VOYAGE,CARE ESTABLISHMENT,LD - East Locality,LD - East Cambs - Special Needs,Residential Care
Cambridgeshire County Council,10-Jan-19,51300657882,"-1,630.85",VOYAGE,CARE ESTABLISHMENT,LD - East Locality,LD - East Cambs - Care,Residential Care
Cambridgeshire County Council,30-Jan-19,51300682364,"-1,620.28",THE CAMBRIDGE NURSING CENTRE,CARE ESTABLISHMENT,OP - City & South Blocks,City and South - Long term blocks,Nursing Care
Cambridgeshire County Council,30-Jan-19,51300682364,"-1,620.28",THE CAMBRIDGE NURSING CENTRE,CARE ESTABLISHMENT,OP - City & South Blocks,City and South - Long term blocks,Nursing Care
Cambridgeshire County Council,30-Jan-19,51300682364,"-1,620.28",THE CAMBRIDGE NURSING CENTRE,CARE ESTABLISHMENT,OP - City & South Blocks,City and South - Long term blocks,Nursing Care
Cambridgeshire County Council,30-Jan-19,51300682364,"-1,620.28",THE CAMBRIDGE NURSING CENTRE,CARE ESTABLISHMENT,OP - City & South Blocks,City and South - Long term blocks,Nursing Care
Cambridgeshire County Council,30-Jan-19,51300682364,"-1,620.28",THE CAMBRIDGE NURSING CENTRE,CARE ESTABLISHMENT,OP - City & South Blocks,City and South - Long term blocks,Nursing Care
Cambridgeshire County Council,30-Jan-19,51300682364,"-1,620.28",THE CAMBRIDGE NURSING CENTRE,CARE ESTABLISHMENT,OP - City & South Blocks,City and South - Long term blocks,Nursing Care
Cambridgeshire County Council,04-Jan-19,51300629562,"-1,620.27",THE CAMBRIDGE NURSING CENTRE,CARE ESTABLISHMENT,OP - City & South Blocks,City and South - Long term blocks,Nursing Care
Cambridgeshire County Council,10-Jan-19,51300657524,"-1,620.27",THE CAMBRIDGE NURSING CENTRE,CARE ESTABLISHMENT,OP - City & South Blocks,City and South - Long term blocks,Nursing Care
Cambridgeshire County Council,10-Jan-19,51300657514,"-1,620.27",THE CAMBRIDGE NURSING CENTRE,CARE ESTABLISHMENT,OP - City & South Blocks,City and South - Long term blocks,Nursing Care
Cambridgeshire County Council,10-Jan-19,51300657517,"-1,620.27",THE CAMBRIDGE NURSING CENTRE,CARE ESTABLISHMENT,OP - City & South Blocks,City and South - Long term blocks,Nursing Care
Cambridgeshire County Council,10-Jan-19,51300657504,"-1,620.27",THE CAMBRIDGE NURSING CENTRE,CARE ESTABLISHMENT,OP - City & South Blocks,City and South - Long term blocks,Nursing Care
Cambridgeshire County Council,10-Jan-19,51300657508,"-1,620.27",THE CAMBRIDGE NURSING CENTRE,CARE ESTABLISHMENT,OP - City & South Blocks,City and South - Long term blocks,Nursing Care
Cambridgeshire County Council,10-Jan-19,51300657520,"-1,620.27",THE CAMBRIDGE NURSING CENTRE,CARE ESTABLISHMENT,OP - City & South Blocks,City and South - Long term blocks,Nursing Care
Cambridgeshire County Council,10-Jan-19,51300659016,"-1,601.77",VOYAGE,CARE ESTABLISHMENT,LD - East Locality,LD - East Cambs - Special Needs,Residential Care
Cambridgeshire County Council,10-Jan-19,51300658983,"-1,601.77",VOYAGE,CARE ESTABLISHMENT,LD - East Locality,LD - East Cambs - Special Needs,Residential Care
Cambridgeshire County Council,10-Jan-19,51300658969,"-1,601.77",VOYAGE,CARE ESTABLISHMENT,LD - East Locality,LD - East Cambs - Care,Residential Care
Cambridgeshire County Council,10-Jan-19,51300658910,"-1,601.77",VOYAGE,CARE ESTABLISHMENT,LD - East Locality,LD - East Cambs - Care,Residential Care
Cambridgeshire County Council,10-Jan-19,51300658944,"-1,601.77",VOYAGE,CARE ESTABLISHMENT,LD - East Locality,LD - East Cambs - Care,Residential Care
Cambridgeshire County Council,10-Jan-19,51300658998,"-1,601.77",VOYAGE,CARE ESTABLISHMENT,LD - East Locality,LD - East Cambs - Care,Residential Care
Cambridgeshire County Council,10-Jan-19,51300658955,"-1,601.77",VOYAGE,CARE ESTABLISHMENT,LD - East Locality,LD - East Cambs - Care,Residential Care
Cambridgeshire County Council,10-Jan-19,51300658906,"-1,601.77",VOYAGE,CARE ESTABLISHMENT,LD - East Locality,LD - East Cambs - Care,Residential Care
Cambridgeshire County Council,10-Jan-19,51300659011,"-1,601.77",VOYAGE,CARE ESTABLISHMENT,LD - East Locality,LD - East Cambs - Care,Residential Care
Cambridgeshire County Council,10-Jan-19,51300658932,"-1,601.77",VOYAGE,CARE ESTABLISHMENT,LD - East Locality,LD - East Cambs - Care,Residential Care
Cambridgeshire County Council,10-Jan-19,51300658986,"-1,601.77",VOYAGE,CARE ESTABLISHMENT,LD - East Locality,LD - East Cambs - Care,Residential Care
Cambridgeshire County Council,10-Jan-19,51300658950,"-1,601.77",VOYAGE,CARE ESTABLISHMENT,LD - East Locality,LD - East Cambs - Care,Residential Care
Cambridgeshire County Council,10-Jan-19,51300658913,"-1,601.77",VOYAGE,CARE ESTABLISHMENT,LD - East Locality,LD - East Cambs - Care,Residential Care
Cambridgeshire County Council,10-Jan-19,51300658940,"-1,601.77",VOYAGE,CARE ESTABLISHMENT,LD - East Locality,LD - East Cambs - Care,Residential Care
Cambridgeshire County Council,10-Jan-19,51300658938,"-1,601.77",VOYAGE,CARE ESTABLISHMENT,LD - East Locality,LD - East Cambs - Care,Residential Care
Cambridgeshire County Council,10-Jan-19,51300658947,"-1,601.77",VOYAGE,CARE ESTABLISHMENT,LD - East Locality,LD - East Cambs - Care,Residential Care
Cambridgeshire County Council,10-Jan-19,51300658959,"-1,601.77",VOYAGE,CARE ESTABLISHMENT,LD - East Locality,LD - East Cambs - Special Needs,Residential Care
Cambridgeshire County Council,10-Jan-19,51300658995,"-1,601.77",VOYAGE,CARE ESTABLISHMENT,LD - East Locality,LD - East Cambs - Special Needs,Residential Care
Cambridgeshire County Council,10-Jan-19,51300658953,"-1,601.77",VOYAGE,CARE ESTABLISHMENT,LD - East Locality,LD - East Cambs - Special Needs,Residential Care
Cambridgeshire County Council,10-Jan-19,51300658942,"-1,601.77",VOYAGE,CARE ESTABLISHMENT,LD - East Locality,LD - East Cambs - Special Needs,Residential Care
Cambridgeshire County Council,10-Jan-19,51300659001,"-1,601.77",VOYAGE,CARE ESTABLISHMENT,LD - East Locality,LD - East Cambs - Special Needs,Residential Care
Cambridgeshire County Council,10-Jan-19,51300658961,"-1,601.77",VOYAGE,CARE ESTABLISHMENT,LD - East Locality,LD - East Cambs - Special Needs,Residential Care
Cambridgeshire County Council,10-Jan-19,51300658956,"-1,601.77",VOYAGE,CARE ESTABLISHMENT,LD - East Locality,LD - East Cambs - Special Needs,Residential Care
Cambridgeshire County Council,10-Jan-19,51300658989,"-1,601.77",VOYAGE,CARE ESTABLISHMENT,LD - East Locality,LD - East Cambs - Special Needs,Residential Care
Cambridgeshire County Council,10-Jan-19,51300658994,"-1,601.77",VOYAGE,CARE ESTABLISHMENT,LD - East Locality,LD - East Cambs - Special Needs,Residential Care
Cambridgeshire County Council,10-Jan-19,51300658979,"-1,601.77",VOYAGE,CARE ESTABLISHMENT,LD - East Locality,LD - East Cambs - Special Needs,Residential Care
Cambridgeshire County Council,10-Jan-19,51300658929,"-1,601.77",VOYAGE,CARE ESTABLISHMENT,LD - East Locality,LD - East Cambs - Special Needs,Residential Care
Cambridgeshire County Council,10-Jan-19,51300658916,"-1,601.77",VOYAGE,CARE ESTABLISHMENT,LD - East Locality,LD - East Cambs - Special Needs,Residential Care
Cambridgeshire County Council,10-Jan-19,51300658957,"-1,601.77",VOYAGE,CARE ESTABLISHMENT,LD - East Locality,LD - East Cambs - Special Needs,Residential Care
Cambridgeshire County Council,10-Jan-19,51300659008,"-1,601.77",VOYAGE,CARE ESTABLISHMENT,LD - East Locality,LD - East Cambs - Special Needs,Residential Care
Cambridgeshire County Council,10-Jan-19,51300658919,"-1,601.77",VOYAGE,CARE ESTABLISHMENT,LD - East Locality,LD - East Cambs - Special Needs,Residential Care
Cambridgeshire County Council,10-Jan-19,51300658954,"-1,601.77",VOYAGE,CARE ESTABLISHMENT,LD - East Locality,LD - East Cambs - Special Needs,Residential Care
Cambridgeshire County Council,10-Jan-19,51300658974,"-1,601.77",VOYAGE,CARE ESTABLISHMENT,LD - East Locality,LD - East Cambs - Care,Residential Care
Cambridgeshire County Council,10-Jan-19,51300659003,"-1,601.77",VOYAGE,CARE ESTABLISHMENT,LD - East Locality,LD - East Cambs - Care,Residential Care
Cambridgeshire County Council,10-Jan-19,51300658982,"-1,601.77",VOYAGE,CARE ESTABLISHMENT,LD - East Locality,LD - East Cambs - Care,Residential Care
Cambridgeshire County Council,10-Jan-19,51300658963,"-1,601.77",VOYAGE,CARE ESTABLISHMENT,LD - East Locality,LD - East Cambs - Care,Residential Care
Cambridgeshire County Council,10-Jan-19,51300658990,"-1,601.77",VOYAGE,CARE ESTABLISHMENT,LD - East Locality,LD - East Cambs - Care,Residential Care
Cambridgeshire County Council,10-Jan-19,51300659019,"-1,601.77",VOYAGE,CARE ESTABLISHMENT,LD - East Locality,LD - East Cambs - Care,Residential Care
Cambridgeshire County Council,10-Jan-19,51300658934,"-1,601.77",VOYAGE,CARE ESTABLISHMENT,LD - East Locality,LD - East Cambs - Special Needs,Residential Care
Cambridgeshire County Council,10-Jan-19,51300658996,"-1,601.77",VOYAGE,CARE ESTABLISHMENT,LD - East Locality,LD - East Cambs - Special Needs,Residential Care
Cambridgeshire County Council,10-Jan-19,51300601367,"-1,597.84",LANSDOWNE CARE SERVICES,CARE ESTABLISHMENT,LD - Hunts Locality,LD - Huntigndonshire  - Special Needs,Residential Care
Cambridgeshire County Council,04-Jan-19,51300629845,"-1,434.04",HC-ONE,CARE ESTABLISHMENT,OP - Hunts Blocks,Hunts - Long term blocks,Nursing Care
Cambridgeshire County Council,28-Jan-19,51300146535,"-1,425.29",LONDON HIRE LTD,TRADE SUPPLIER,Adults - Central Transport,Adults Disabilities and OP Transport,Leased Vehicle Costs
Cambridgeshire County Council,04-Jan-19,51300623772,"-1,403.11",WOODLANDS CARE CENTRE,CARE ESTABLISHMENT,OPMH - City & South,Older People Mental Health City & South,Nursing Care
Cambridgeshire County Council,04-Jan-19,51300623770,"-1,403.11",WOODLANDS CARE CENTRE,CARE ESTABLISHMENT,OPMH - City & South,Older People Mental Health City & South,Nursing Care
Cambridgeshire County Council,31-Jan-19,51300678790,"-1,403.11",WOODLANDS CARE CENTRE,CARE ESTABLISHMENT,OPMH - City & South,Older People Mental Health City & South,Nursing Care
Cambridgeshire County Council,31-Jan-19,51300678783,"-1,403.11",WOODLANDS CARE CENTRE,CARE ESTABLISHMENT,OPMH - City & South,Older People Mental Health City & South,Nursing Care
Cambridgeshire County Council,31-Jan-19,51300678781,"-1,403.11",WOODLANDS CARE CENTRE,CARE ESTABLISHMENT,OPMH - City & South,Older People Mental Health City & South,Nursing Care
Cambridgeshire County Council,04-Jan-19,51300622861,"-1,401.91",WOODLANDS CARE CENTRE,CARE ESTABLISHMENT,OPMH - City & South,Older People Mental Health City & South,Nursing Care
Cambridgeshire County Council,04-Jan-19,51300622862,"-1,401.91",WOODLANDS CARE CENTRE,CARE ESTABLISHMENT,OPMH - City & South,Older People Mental Health City & South,Nursing Care
Cambridgeshire County Council,04-Jan-19,51300653575,"-1,400.00",WOODLANDS CARE CENTRE,CARE ESTABLISHMENT,OPMH - City & South,Older People Mental Health City & South,Nursing Care
Cambridgeshire County Council,04-Jan-19,51300653576,"-1,400.00",WOODLANDS CARE CENTRE,CARE ESTABLISHMENT,OPMH - City & South,Older People Mental Health City & South,Nursing Care
Cambridgeshire County Council,04-Jan-19,51300653583,"-1,400.00",WOODLANDS CARE CENTRE,CARE ESTABLISHMENT,OPMH - City & South,Older People Mental Health City & South,Nursing Care
Cambridgeshire County Council,04-Jan-19,51300626725,"-1,400.00",WOODLANDS CARE CENTRE,CARE ESTABLISHMENT,OPMH - City & South,Older People Mental Health City & South,Nursing Care
Cambridgeshire County Council,04-Jan-19,51300653581,"-1,400.00",WOODLANDS CARE CENTRE,CARE ESTABLISHMENT,OPMH - City & South,Older People Mental Health City & South,Nursing Care
Cambridgeshire County Council,04-Jan-19,51300653579,"-1,400.00",WOODLANDS CARE CENTRE,CARE ESTABLISHMENT,OPMH - City & South,Older People Mental Health City & South,Nursing Care
Cambridgeshire County Council,04-Jan-19,51300653587,"-1,400.00",WOODLANDS CARE CENTRE,CARE ESTABLISHMENT,OPMH - City & South,Older People Mental Health City & South,Nursing Care
Cambridgeshire County Council,04-Jan-19,51300653574,"-1,400.00",WOODLANDS CARE CENTRE,CARE ESTABLISHMENT,OPMH - City & South,Older People Mental Health City & South,Nursing Care
Cambridgeshire County Council,04-Jan-19,51300626724,"-1,400.00",WOODLANDS CARE CENTRE,CARE ESTABLISHMENT,OPMH - City & South,Older People Mental Health City & South,Nursing Care
Cambridgeshire County Council,04-Jan-19,51300626727,"-1,400.00",WOODLANDS CARE CENTRE,CARE ESTABLISHMENT,OPMH - City & South,Older People Mental Health City & South,Nursing Care
Cambridgeshire County Council,04-Jan-19,51300653588,"-1,400.00",WOODLANDS CARE CENTRE,CARE ESTABLISHMENT,OPMH - City & South,Older People Mental Health City & South,Nursing Care
Cambridgeshire County Council,04-Jan-19,51300653590,"-1,400.00",WOODLANDS CARE CENTRE,CARE ESTABLISHMENT,OPMH - City & South,Older People Mental Health City & South,Nursing Care
Cambridgeshire County Council,04-Jan-19,51300653591,"-1,400.00",WOODLANDS CARE CENTRE,CARE ESTABLISHMENT,OPMH - City & South,Older People Mental Health City & South,Nursing Care
Cambridgeshire County Council,30-Jan-19,51300682364,"-1,394.34",THE CAMBRIDGE NURSING CENTRE,CARE ESTABLISHMENT,OP - City & South Blocks,City and South - Long term blocks,Nursing Care
Cambridgeshire County Council,31-Jan-19,51300661387,"-1,385.32",23 LIONS CROSS (VOYAGE),CARE ESTABLISHMENT,LD - Hunts Locality,LD - Huntigndonshire  - Special Needs,Supported Living
Cambridgeshire County Council,31-Jan-19,51300661350,"-1,385.32",23 LIONS CROSS (VOYAGE),CARE ESTABLISHMENT,LD - Hunts Locality,LD - Huntigndonshire  - Special Needs,Supported Living
Cambridgeshire County Council,31-Jan-19,51300661388,"-1,385.32",23 LIONS CROSS (VOYAGE),CARE ESTABLISHMENT,LD - Hunts Locality,LD - Huntigndonshire  - Special Needs,Supported Living
Cambridgeshire County Council,31-Jan-19,51300661353,"-1,385.32",23 LIONS CROSS (VOYAGE),CARE ESTABLISHMENT,LD - Hunts Locality,LD - Huntigndonshire  - Special Needs,Supported Living
Cambridgeshire County Council,31-Jan-19,51300661366,"-1,385.32",23 LIONS CROSS (VOYAGE),CARE ESTABLISHMENT,LD - Hunts Locality,LD - Huntigndonshire  - Special Needs,Supported Living
Cambridgeshire County Council,31-Jan-19,51300661407,"-1,385.32",23 LIONS CROSS (VOYAGE),CARE ESTABLISHMENT,LD - Hunts Locality,LD - Huntigndonshire  - Special Needs,Supported Living
Cambridgeshire County Council,31-Jan-19,51300661395,"-1,385.32",23 LIONS CROSS (VOYAGE),CARE ESTABLISHMENT,LD - Hunts Locality,LD - Huntigndonshire  - Special Needs,Supported Living
Cambridgeshire County Council,31-Jan-19,51300661373,"-1,385.32",23 LIONS CROSS (VOYAGE),CARE ESTABLISHMENT,LD - Hunts Locality,LD - Huntigndonshire  - Special Needs,Supported Living
Cambridgeshire County Council,31-Jan-19,51300661360,"-1,385.32",23 LIONS CROSS (VOYAGE),CARE ESTABLISHMENT,LD - Hunts Locality,LD - Huntigndonshire  - Special Needs,Supported Living
Cambridgeshire County Council,31-Jan-19,51300661410,"-1,385.32",23 LIONS CROSS (VOYAGE),CARE ESTABLISHMENT,LD - Hunts Locality,LD - Huntigndonshire  - Special Needs,Supported Living
Cambridgeshire County Council,31-Jan-19,51300661367,"-1,385.32",23 LIONS CROSS (VOYAGE),CARE ESTABLISHMENT,LD - Hunts Locality,LD - Huntigndonshire  - Special Needs,Supported Living
Cambridgeshire County Council,31-Jan-19,51300661389,"-1,385.32",23 LIONS CROSS (VOYAGE),CARE ESTABLISHMENT,LD - Hunts Locality,LD - Huntigndonshire  - Special Needs,Supported Living
Cambridgeshire County Council,31-Jan-19,51300661382,"-1,385.32",23 LIONS CROSS (VOYAGE),CARE ESTABLISHMENT,LD - Hunts Locality,LD - Huntigndonshire  - Special Needs,Supported Living
Cambridgeshire County Council,31-Jan-19,51300661386,"-1,385.32",23 LIONS CROSS (VOYAGE),CARE ESTABLISHMENT,LD - Hunts Locality,LD - Huntigndonshire  - Special Needs,Supported Living
Cambridgeshire County Council,31-Jan-19,51300661406,"-1,385.32",23 LIONS CROSS (VOYAGE),CARE ESTABLISHMENT,LD - Hunts Locality,LD - Huntigndonshire  - Special Needs,Supported Living
Cambridgeshire County Council,31-Jan-19,51300661372,"-1,385.32",23 LIONS CROSS (VOYAGE),CARE ESTABLISHMENT,LD - Hunts Locality,LD - Huntigndonshire  - Special Needs,Supported Living
Cambridgeshire County Council,31-Jan-19,51300661380,"-1,385.32",23 LIONS CROSS (VOYAGE),CARE ESTABLISHMENT,LD - Hunts Locality,LD - Huntigndonshire  - Special Needs,Supported Living
Cambridgeshire County Council,31-Jan-19,51300661408,"-1,385.32",23 LIONS CROSS (VOYAGE),CARE ESTABLISHMENT,LD - Hunts Locality,LD - Huntigndonshire  - Special Needs,Supported Living
Cambridgeshire County Council,31-Jan-19,51300661383,"-1,385.32",23 LIONS CROSS (VOYAGE),CARE ESTABLISHMENT,LD - Hunts Locality,LD - Huntigndonshire  - Special Needs,Supported Living
Cambridgeshire County Council,31-Jan-19,51300661399,"-1,385.32",23 LIONS CROSS (VOYAGE),CARE ESTABLISHMENT,LD - Hunts Locality,LD - Huntigndonshire  - Special Needs,Supported Living
Cambridgeshire County Council,31-Jan-19,51300661371,"-1,385.32",23 LIONS CROSS (VOYAGE),CARE ESTABLISHMENT,LD - Hunts Locality,LD - Huntigndonshire  - Special Needs,Supported Living
Cambridgeshire County Council,31-Jan-19,51300661368,"-1,385.32",23 LIONS CROSS (VOYAGE),CARE ESTABLISHMENT,LD - Hunts Locality,LD - Huntigndonshire  - Special Needs,Supported Living
Cambridgeshire County Council,31-Jan-19,51300661356,"-1,385.32",23 LIONS CROSS (VOYAGE),CARE ESTABLISHMENT,LD - Hunts Locality,LD - Huntigndonshire  - Special Needs,Supported Living
Cambridgeshire County Council,31-Jan-19,51300661351,"-1,385.32",23 LIONS CROSS (VOYAGE),CARE ESTABLISHMENT,LD - Hunts Locality,LD - Huntigndonshire  - Special Needs,Supported Living
Cambridgeshire County Council,31-Jan-19,51300661377,"-1,385.32",23 LIONS CROSS (VOYAGE),CARE ESTABLISHMENT,LD - Hunts Locality,LD - Huntigndonshire  - Special Needs,Supported Living
Cambridgeshire County Council,31-Jan-19,51300661362,"-1,385.32",23 LIONS CROSS (VOYAGE),CARE ESTABLISHMENT,LD - Hunts Locality,LD - Huntigndonshire  - Special Needs,Supported Living
Cambridgeshire County Council,31-Jan-19,51300661375,"-1,385.32",23 LIONS CROSS (VOYAGE),CARE ESTABLISHMENT,LD - Hunts Locality,LD - Huntigndonshire  - Special Needs,Supported Living
Cambridgeshire County Council,31-Jan-19,51300661361,"-1,385.32",23 LIONS CROSS (VOYAGE),CARE ESTABLISHMENT,LD - Hunts Locality,LD - Huntigndonshire  - Special Needs,Supported Living
Cambridgeshire County Council,31-Jan-19,51300661394,"-1,385.32",23 LIONS CROSS (VOYAGE),CARE ESTABLISHMENT,LD - Hunts Locality,LD - Huntigndonshire  - Special Needs,Supported Living
Cambridgeshire County Council,31-Jan-19,51300661398,"-1,385.32",23 LIONS CROSS (VOYAGE),CARE ESTABLISHMENT,LD - Hunts Locality,LD - Huntigndonshire  - Special Needs,Supported Living
Cambridgeshire County Council,31-Jan-19,51300661384,"-1,385.32",23 LIONS CROSS (VOYAGE),CARE ESTABLISHMENT,LD - Hunts Locality,LD - Huntigndonshire  - Special Needs,Supported Living
Cambridgeshire County Council,17-Jan-19,53300014864,"-1,383.60",HMRC - PAYE,OTHER PUBLIC BODIES,Early Help - Cambs City Child and Family Centres,EH Child and Family Centre - Cambridge City,Car mileage and allowances - staff
Cambridgeshire County Council,25-Jan-19,51300665044,"-1,378.22",FOSTER CARE ASSOCIATES LTD (FCA),CARE ESTABLISHMENT,Control Accounts,Control Accounts - Payables,Migration Only - Marked as Do Not Use
Cambridgeshire County Council,17-Jan-19,51300671971,"-1,328.44",CARE MANAGEMENT GROUP (64-66 CARLTON),CARE ESTABLISHMENT,LD - East Locality,LD - East Cambs - Special Needs,Residential Care
Cambridgeshire County Council,17-Jan-19,51300671946,"-1,328.44",CARE MANAGEMENT GROUP (64-66 CARLTON),CARE ESTABLISHMENT,LD - East Locality,LD - East Cambs - Special Needs,Residential Care
Cambridgeshire County Council,17-Jan-19,51300625683,"-1,328.44",CARE MANAGEMENT GROUP (64-66 CARLTON),CARE ESTABLISHMENT,LD - East Locality,LD - East Cambs - Special Needs,Residential Care
Cambridgeshire County Council,17-Jan-19,51300647341,"-1,328.44",CARE MANAGEMENT GROUP (64-66 CARLTON),CARE ESTABLISHMENT,LD - East Locality,LD - East Cambs - Special Needs,Residential Care
Cambridgeshire County Council,17-Jan-19,51300647231,"-1,328.44",CARE MANAGEMENT GROUP (64-66 CARLTON),CARE ESTABLISHMENT,LD - East Locality,LD - East Cambs - Special Needs,Residential Care
Cambridgeshire County Council,17-Jan-19,51300671959,"-1,328.44",CARE MANAGEMENT GROUP (64-66 CARLTON),CARE ESTABLISHMENT,LD - East Locality,LD - East Cambs - Special Needs,Residential Care
Cambridgeshire County Council,17-Jan-19,51300647328,"-1,328.44",CARE MANAGEMENT GROUP (64-66 CARLTON),CARE ESTABLISHMENT,LD - East Locality,LD - East Cambs - Special Needs,Residential Care
Cambridgeshire County Council,17-Jan-19,51300671969,"-1,328.44",CARE MANAGEMENT GROUP (64-66 CARLTON),CARE ESTABLISHMENT,LD - East Locality,LD - East Cambs - Special Needs,Residential Care
Cambridgeshire County Council,17-Jan-19,51300671941,"-1,328.44",CARE MANAGEMENT GROUP (64-66 CARLTON),CARE ESTABLISHMENT,LD - East Locality,LD - East Cambs - Special Needs,Residential Care
Cambridgeshire County Council,17-Jan-19,51300671907,"-1,328.44",CARE MANAGEMENT GROUP (64-66 CARLTON),CARE ESTABLISHMENT,LD - East Locality,LD - East Cambs - Special Needs,Residential Care
Cambridgeshire County Council,17-Jan-19,51300671966,"-1,328.44",CARE MANAGEMENT GROUP (64-66 CARLTON),CARE ESTABLISHMENT,LD - East Locality,LD - East Cambs - Special Needs,Residential Care
Cambridgeshire County Council,17-Jan-19,51300672024,"-1,328.44",CARE MANAGEMENT GROUP (64-66 CARLTON),CARE ESTABLISHMENT,LD - East Locality,LD - East Cambs - Special Needs,Residential Care
Cambridgeshire County Council,17-Jan-19,51300647354,"-1,328.44",CARE MANAGEMENT GROUP (64-66 CARLTON),CARE ESTABLISHMENT,LD - East Locality,LD - East Cambs - Special Needs,Residential Care
Cambridgeshire County Council,17-Jan-19,51300647299,"-1,328.44",CARE MANAGEMENT GROUP (64-66 CARLTON),CARE ESTABLISHMENT,LD - East Locality,LD - East Cambs - Special Needs,Residential Care
Cambridgeshire County Council,17-Jan-19,51300625571,"-1,328.44",CARE MANAGEMENT GROUP (64-66 CARLTON),CARE ESTABLISHMENT,LD - East Locality,LD - East Cambs - Special Needs,Residential Care
Cambridgeshire County Council,17-Jan-19,51300625603,"-1,328.44",CARE MANAGEMENT GROUP (64-66 CARLTON),CARE ESTABLISHMENT,LD - East Locality,LD - East Cambs - Special Needs,Residential Care
Cambridgeshire County Council,17-Jan-19,51300662996,"-1,328.44",CARE MANAGEMENT GROUP (64-66 CARLTON),CARE ESTABLISHMENT,LD - East Locality,LD - East Cambs - Special Needs,Residential Care
Cambridgeshire County Council,17-Jan-19,51300671985,"-1,328.44",CARE MANAGEMENT GROUP (64-66 CARLTON),CARE ESTABLISHMENT,LD - East Locality,LD - East Cambs - Special Needs,Residential Care
Cambridgeshire County Council,17-Jan-19,51300672003,"-1,328.44",CARE MANAGEMENT GROUP (64-66 CARLTON),CARE ESTABLISHMENT,LD - East Locality,LD - East Cambs - Special Needs,Residential Care
Cambridgeshire County Council,17-Jan-19,51300663081,"-1,328.44",CARE MANAGEMENT GROUP (64-66 CARLTON),CARE ESTABLISHMENT,LD - East Locality,LD - East Cambs - Special Needs,Residential Care
Cambridgeshire County Council,17-Jan-19,51300625650,"-1,328.44",CARE MANAGEMENT GROUP (64-66 CARLTON),CARE ESTABLISHMENT,LD - East Locality,LD - East Cambs - Special Needs,Residential Care
Cambridgeshire County Council,17-Jan-19,51300625561,"-1,328.44",CARE MANAGEMENT GROUP (64-66 CARLTON),CARE ESTABLISHMENT,LD - East Locality,LD - East Cambs - Special Needs,Residential Care
Cambridgeshire County Council,17-Jan-19,51300625553,"-1,328.44",CARE MANAGEMENT GROUP (64-66 CARLTON),CARE ESTABLISHMENT,LD - East Locality,LD - East Cambs - Special Needs,Residential Care
Cambridgeshire County Council,17-Jan-19,51300647249,"-1,328.44",CARE MANAGEMENT GROUP (64-66 CARLTON),CARE ESTABLISHMENT,LD - East Locality,LD - East Cambs - Special Needs,Residential Care
Cambridgeshire County Council,17-Jan-19,51300625657,"-1,328.44",CARE MANAGEMENT GROUP (64-66 CARLTON),CARE ESTABLISHMENT,LD - East Locality,LD - East Cambs - Special Needs,Residential Care
Cambridgeshire County Council,17-Jan-19,51300663102,"-1,328.44",CARE MANAGEMENT GROUP (64-66 CARLTON),CARE ESTABLISHMENT,LD - East Locality,LD - East Cambs - Special Needs,Residential Care
Cambridgeshire County Council,17-Jan-19,51300647365,"-1,328.44",CARE MANAGEMENT GROUP (64-66 CARLTON),CARE ESTABLISHMENT,LD - East Locality,LD - East Cambs - Special Needs,Residential Care
Cambridgeshire County Council,17-Jan-19,51300672038,"-1,328.44",CARE MANAGEMENT GROUP (64-66 CARLTON),CARE ESTABLISHMENT,LD - East Locality,LD - East Cambs - Special Needs,Residential Care
Cambridgeshire County Council,17-Jan-19,51300663032,"-1,328.44",CARE MANAGEMENT GROUP (64-66 CARLTON),CARE ESTABLISHMENT,LD - East Locality,LD - East Cambs - Special Needs,Residential Care
Cambridgeshire County Council,17-Jan-19,51300671958,"-1,328.44",CARE MANAGEMENT GROUP (64-66 CARLTON),CARE ESTABLISHMENT,LD - East Locality,LD - East Cambs - Special Needs,Residential Care
Cambridgeshire County Council,17-Jan-19,51300671976,"-1,328.44",CARE MANAGEMENT GROUP (64-66 CARLTON),CARE ESTABLISHMENT,LD - East Locality,LD - East Cambs - Special Needs,Residential Care
Cambridgeshire County Council,17-Jan-19,51300671954,"-1,328.44",CARE MANAGEMENT GROUP (64-66 CARLTON),CARE ESTABLISHMENT,LD - East Locality,LD - East Cambs - Special Needs,Residential Care
Cambridgeshire County Council,17-Jan-19,51300662988,"-1,328.44",CARE MANAGEMENT GROUP (64-66 CARLTON),CARE ESTABLISHMENT,LD - East Locality,LD - East Cambs - Special Needs,Residential Care
Cambridgeshire County Council,17-Jan-19,51300625693,"-1,328.44",CARE MANAGEMENT GROUP (64-66 CARLTON),CARE ESTABLISHMENT,LD - East Locality,LD - East Cambs - Special Needs,Residential Care
Cambridgeshire County Council,17-Jan-19,51300647324,"-1,328.44",CARE MANAGEMENT GROUP (64-66 CARLTON),CARE ESTABLISHMENT,LD - East Locality,LD - East Cambs - Special Needs,Residential Care
Cambridgeshire County Council,17-Jan-19,51300647357,"-1,328.44",CARE MANAGEMENT GROUP (64-66 CARLTON),CARE ESTABLISHMENT,LD - East Locality,LD - East Cambs - Special Needs,Residential Care
Cambridgeshire County Council,17-Jan-19,51300671910,"-1,328.44",CARE MANAGEMENT GROUP (64-66 CARLTON),CARE ESTABLISHMENT,LD - East Locality,LD - East Cambs - Special Needs,Residential Care
Cambridgeshire County Council,17-Jan-19,51300663023,"-1,328.44",CARE MANAGEMENT GROUP (64-66 CARLTON),CARE ESTABLISHMENT,LD - East Locality,LD - East Cambs - Special Needs,Residential Care
Cambridgeshire County Council,17-Jan-19,51300662965,"-1,328.44",CARE MANAGEMENT GROUP (64-66 CARLTON),CARE ESTABLISHMENT,LD - East Locality,LD - East Cambs - Special Needs,Residential Care
Cambridgeshire County Council,17-Jan-19,51300625583,"-1,328.44",CARE MANAGEMENT GROUP (64-66 CARLTON),CARE ESTABLISHMENT,LD - East Locality,LD - East Cambs - Special Needs,Residential Care
Cambridgeshire County Council,17-Jan-19,51300647218,"-1,328.44",CARE MANAGEMENT GROUP (64-66 CARLTON),CARE ESTABLISHMENT,LD - East Locality,LD - East Cambs - Special Needs,Residential Care
Cambridgeshire County Council,17-Jan-19,51300647309,"-1,328.44",CARE MANAGEMENT GROUP (64-66 CARLTON),CARE ESTABLISHMENT,LD - East Locality,LD - East Cambs - Special Needs,Residential Care
Cambridgeshire County Council,17-Jan-19,51300662987,"-1,328.44",CARE MANAGEMENT GROUP (64-66 CARLTON),CARE ESTABLISHMENT,LD - East Locality,LD - East Cambs - Special Needs,Residential Care
Cambridgeshire County Council,17-Jan-19,51300625619,"-1,328.44",CARE MANAGEMENT GROUP (64-66 CARLTON),CARE ESTABLISHMENT,LD - East Locality,LD - East Cambs - Special Needs,Residential Care
Cambridgeshire County Council,17-Jan-19,51300625698,"-1,328.44",CARE MANAGEMENT GROUP (64-66 CARLTON),CARE ESTABLISHMENT,LD - East Locality,LD - East Cambs - Special Needs,Residential Care
Cambridgeshire County Council,17-Jan-19,51300647329,"-1,328.44",CARE MANAGEMENT GROUP (64-66 CARLTON),CARE ESTABLISHMENT,LD - East Locality,LD - East Cambs - Special Needs,Residential Care
Cambridgeshire County Council,17-Jan-19,51300647243,"-1,328.44",CARE MANAGEMENT GROUP (64-66 CARLTON),CARE ESTABLISHMENT,LD - East Locality,LD - East Cambs - Special Needs,Residential Care
Cambridgeshire County Council,17-Jan-19,51300625617,"-1,328.44",CARE MANAGEMENT GROUP (64-66 CARLTON),CARE ESTABLISHMENT,LD - East Locality,LD - East Cambs - Special Needs,Residential Care
Cambridgeshire County Council,17-Jan-19,51300663073,"-1,328.44",CARE MANAGEMENT GROUP (64-66 CARLTON),CARE ESTABLISHMENT,LD - East Locality,LD - East Cambs - Special Needs,Residential Care
Cambridgeshire County Council,17-Jan-19,51300662975,"-1,328.44",CARE MANAGEMENT GROUP (64-66 CARLTON),CARE ESTABLISHMENT,LD - East Locality,LD - East Cambs - Special Needs,Residential Care
Cambridgeshire County Council,17-Jan-19,51300663011,"-1,328.44",CARE MANAGEMENT GROUP (64-66 CARLTON),CARE ESTABLISHMENT,LD - East Locality,LD - East Cambs - Special Needs,Residential Care
Cambridgeshire County Council,17-Jan-19,51300625637,"-1,328.44",CARE MANAGEMENT GROUP (64-66 CARLTON),CARE ESTABLISHMENT,LD - East Locality,LD - East Cambs - Special Needs,Residential Care
Cambridgeshire County Council,17-Jan-19,51300625628,"-1,328.44",CARE MANAGEMENT GROUP (64-66 CARLTON),CARE ESTABLISHMENT,LD - East Locality,LD - East Cambs - Special Needs,Residential Care
Cambridgeshire County Council,17-Jan-19,51300671906,"-1,328.44",CARE MANAGEMENT GROUP (64-66 CARLTON),CARE ESTABLISHMENT,LD - East Locality,LD - East Cambs - Special Needs,Residential Care
Cambridgeshire County Council,17-Jan-19,51300647312,"-1,328.44",CARE MANAGEMENT GROUP (64-66 CARLTON),CARE ESTABLISHMENT,LD - East Locality,LD - East Cambs - Special Needs,Residential Care
Cambridgeshire County Council,17-Jan-19,51300647313,"-1,328.44",CARE MANAGEMENT GROUP (64-66 CARLTON),CARE ESTABLISHMENT,LD - East Locality,LD - East Cambs - Special Needs,Residential Care
Cambridgeshire County Council,17-Jan-19,51300625648,"-1,328.44",CARE MANAGEMENT GROUP (64-66 CARLTON),CARE ESTABLISHMENT,LD - East Locality,LD - East Cambs - Special Needs,Residential Care
Cambridgeshire County Council,17-Jan-19,51300625625,"-1,328.44",CARE MANAGEMENT GROUP (64-66 CARLTON),CARE ESTABLISHMENT,LD - East Locality,LD - East Cambs - Special Needs,Residential Care
Cambridgeshire County Council,17-Jan-19,51300647219,"-1,328.44",CARE MANAGEMENT GROUP (64-66 CARLTON),CARE ESTABLISHMENT,LD - East Locality,LD - East Cambs - Special Needs,Residential Care
Cambridgeshire County Council,17-Jan-19,51300647287,"-1,328.44",CARE MANAGEMENT GROUP (64-66 CARLTON),CARE ESTABLISHMENT,LD - East Locality,LD - East Cambs - Special Needs,Residential Care
Cambridgeshire County Council,17-Jan-19,51300647327,"-1,328.44",CARE MANAGEMENT GROUP (64-66 CARLTON),CARE ESTABLISHMENT,LD - East Locality,LD - East Cambs - Special Needs,Residential Care
Cambridgeshire County Council,17-Jan-19,51300647276,"-1,328.44",CARE MANAGEMENT GROUP (64-66 CARLTON),CARE ESTABLISHMENT,LD - East Locality,LD - East Cambs - Special Needs,Residential Care
Cambridgeshire County Council,17-Jan-19,51300671891,"-1,328.44",CARE MANAGEMENT GROUP (64-66 CARLTON),CARE ESTABLISHMENT,LD - East Locality,LD - East Cambs - Special Needs,Residential Care
Cambridgeshire County Council,17-Jan-19,51300663033,"-1,328.44",CARE MANAGEMENT GROUP (64-66 CARLTON),CARE ESTABLISHMENT,LD - East Locality,LD - East Cambs - Special Needs,Residential Care
Cambridgeshire County Council,17-Jan-19,51300663087,"-1,328.44",CARE MANAGEMENT GROUP (64-66 CARLTON),CARE ESTABLISHMENT,LD - East Locality,LD - East Cambs - Special Needs,Residential Care
Cambridgeshire County Council,17-Jan-19,51300663093,"-1,328.44",CARE MANAGEMENT GROUP (64-66 CARLTON),CARE ESTABLISHMENT,LD - East Locality,LD - East Cambs - Special Needs,Residential Care
Cambridgeshire County Council,17-Jan-19,51300625687,"-1,328.44",CARE MANAGEMENT GROUP (64-66 CARLTON),CARE ESTABLISHMENT,LD - East Locality,LD - East Cambs - Special Needs,Residential Care
Cambridgeshire County Council,17-Jan-19,51300625675,"-1,328.44",CARE MANAGEMENT GROUP (64-66 CARLTON),CARE ESTABLISHMENT,LD - East Locality,LD - East Cambs - Special Needs,Residential Care
Cambridgeshire County Council,17-Jan-19,51300625551,"-1,328.44",CARE MANAGEMENT GROUP (64-66 CARLTON),CARE ESTABLISHMENT,LD - East Locality,LD - East Cambs - Special Needs,Residential Care
Cambridgeshire County Council,17-Jan-19,51300625629,"-1,328.44",CARE MANAGEMENT GROUP (64-66 CARLTON),CARE ESTABLISHMENT,LD - East Locality,LD - East Cambs - Special Needs,Residential Care
Cambridgeshire County Council,17-Jan-19,51300625597,"-1,328.44",CARE MANAGEMENT GROUP (64-66 CARLTON),CARE ESTABLISHMENT,LD - East Locality,LD - East Cambs - Special Needs,Residential Care
Cambridgeshire County Council,17-Jan-19,51300625582,"-1,328.44",CARE MANAGEMENT GROUP (64-66 CARLTON),CARE ESTABLISHMENT,LD - East Locality,LD - East Cambs - Special Needs,Residential Care
Cambridgeshire County Council,17-Jan-19,51300625644,"-1,328.44",CARE MANAGEMENT GROUP (64-66 CARLTON),CARE ESTABLISHMENT,LD - East Locality,LD - East Cambs - Special Needs,Residential Care
Cambridgeshire County Council,17-Jan-19,51300647253,"-1,328.44",CARE MANAGEMENT GROUP (64-66 CARLTON),CARE ESTABLISHMENT,LD - East Locality,LD - East Cambs - Special Needs,Residential Care
Cambridgeshire County Council,17-Jan-19,51300647236,"-1,328.44",CARE MANAGEMENT GROUP (64-66 CARLTON),CARE ESTABLISHMENT,LD - East Locality,LD - East Cambs - Special Needs,Residential Care
Cambridgeshire County Council,17-Jan-19,51300663015,"-1,328.44",CARE MANAGEMENT GROUP (64-66 CARLTON),CARE ESTABLISHMENT,LD - East Locality,LD - East Cambs - Special Needs,Residential Care
Cambridgeshire County Council,17-Jan-19,51300625633,"-1,328.44",CARE MANAGEMENT GROUP (64-66 CARLTON),CARE ESTABLISHMENT,LD - East Locality,LD - East Cambs - Special Needs,Residential Care
Cambridgeshire County Council,17-Jan-19,51300647267,"-1,328.44",CARE MANAGEMENT GROUP (64-66 CARLTON),CARE ESTABLISHMENT,LD - East Locality,LD - East Cambs - Special Needs,Residential Care
Cambridgeshire County Council,17-Jan-19,51300671952,"-1,328.44",CARE MANAGEMENT GROUP (64-66 CARLTON),CARE ESTABLISHMENT,LD - East Locality,LD - East Cambs - Special Needs,Residential Care
Cambridgeshire County Council,17-Jan-19,51300672006,"-1,328.44",CARE MANAGEMENT GROUP (64-66 CARLTON),CARE ESTABLISHMENT,LD - East Locality,LD - East Cambs - Special Needs,Residential Care
Cambridgeshire County Council,17-Jan-19,51300671934,"-1,328.44",CARE MANAGEMENT GROUP (64-66 CARLTON),CARE ESTABLISHMENT,LD - East Locality,LD - East Cambs - Special Needs,Residential Care
Cambridgeshire County Council,17-Jan-19,51300647346,"-1,328.44",CARE MANAGEMENT GROUP (64-66 CARLTON),CARE ESTABLISHMENT,LD - East Locality,LD - East Cambs - Special Needs,Residential Care
Cambridgeshire County Council,17-Jan-19,51300647319,"-1,328.44",CARE MANAGEMENT GROUP (64-66 CARLTON),CARE ESTABLISHMENT,LD - East Locality,LD - East Cambs - Special Needs,Residential Care
Cambridgeshire County Council,17-Jan-19,51300663067,"-1,328.44",CARE MANAGEMENT GROUP (64-66 CARLTON),CARE ESTABLISHMENT,LD - East Locality,LD - East Cambs - Special Needs,Residential Care
Cambridgeshire County Council,17-Jan-19,51300662980,"-1,328.44",CARE MANAGEMENT GROUP (64-66 CARLTON),CARE ESTABLISHMENT,LD - East Locality,LD - East Cambs - Special Needs,Residential Care
Cambridgeshire County Council,17-Jan-19,51300625564,"-1,328.44",CARE MANAGEMENT GROUP (64-66 CARLTON),CARE ESTABLISHMENT,LD - East Locality,LD - East Cambs - Special Needs,Residential Care
Cambridgeshire County Council,17-Jan-19,51300663083,"-1,328.44",CARE MANAGEMENT GROUP (64-66 CARLTON),CARE ESTABLISHMENT,LD - East Locality,LD - East Cambs - Special Needs,Residential Care
Cambridgeshire County Council,17-Jan-19,51300671897,"-1,328.44",CARE MANAGEMENT GROUP (64-66 CARLTON),CARE ESTABLISHMENT,LD - East Locality,LD - East Cambs - Special Needs,Residential Care
Cambridgeshire County Council,17-Jan-19,51300671993,"-1,328.44",CARE MANAGEMENT GROUP (64-66 CARLTON),CARE ESTABLISHMENT,LD - East Locality,LD - East Cambs - Special Needs,Residential Care
Cambridgeshire County Council,17-Jan-19,51300662991,"-1,328.44",CARE MANAGEMENT GROUP (64-66 CARLTON),CARE ESTABLISHMENT,LD - East Locality,LD - East Cambs - Special Needs,Residential Care
Cambridgeshire County Council,17-Jan-19,51300662961,"-1,328.44",CARE MANAGEMENT GROUP (64-66 CARLTON),CARE ESTABLISHMENT,LD - East Locality,LD - East Cambs - Special Needs,Residential Care
Cambridgeshire County Council,17-Jan-19,51300662973,"-1,328.44",CARE MANAGEMENT GROUP (64-66 CARLTON),CARE ESTABLISHMENT,LD - East Locality,LD - East Cambs - Special Needs,Residential Care
Cambridgeshire County Council,17-Jan-19,51300625573,"-1,328.44",CARE MANAGEMENT GROUP (64-66 CARLTON),CARE ESTABLISHMENT,LD - East Locality,LD - East Cambs - Special Needs,Residential Care
Cambridgeshire County Council,17-Jan-19,51300663052,"-1,328.44",CARE MANAGEMENT GROUP (64-66 CARLTON),CARE ESTABLISHMENT,LD - East Locality,LD - East Cambs - Special Needs,Residential Care
Cambridgeshire County Council,17-Jan-19,51300625645,"-1,328.44",CARE MANAGEMENT GROUP (64-66 CARLTON),CARE ESTABLISHMENT,LD - East Locality,LD - East Cambs - Special Needs,Residential Care
Cambridgeshire County Council,17-Jan-19,51300625611,"-1,328.44",CARE MANAGEMENT GROUP (64-66 CARLTON),CARE ESTABLISHMENT,LD - East Locality,LD - East Cambs - Special Needs,Residential Care
Cambridgeshire County Council,17-Jan-19,51300671930,"-1,328.44",CARE MANAGEMENT GROUP (64-66 CARLTON),CARE ESTABLISHMENT,LD - East Locality,LD - East Cambs - Special Needs,Residential Care
Cambridgeshire County Council,17-Jan-19,51300663035,"-1,328.44",CARE MANAGEMENT GROUP (64-66 CARLTON),CARE ESTABLISHMENT,LD - East Locality,LD - East Cambs - Special Needs,Residential Care
